Workbook

Sheet Průběh rychlosti větru
A1: vp | B1: 3.5 | D1: m/s | F1: Průměrná rychlost větru
A2: A | B2: =B1/0.886 -> 3.9503386 | D2: m/s
U3: x | V3: 0 | W3: 0.5 | X3: 1 | Y3: 1.5 | Z3: 2 | AA3: 2.5 | AB3: 3 | AC3: 3.5 | AD3: 4 | AE3: 4.5 | AF3: 5 | AG3: 5.5 | AH3: 6 | AI3: 6.5 | AJ3: 7 | AK3: 7.5 | AL3: 8 | AM3: 8.5 | AN3: 9 | AO3: 9.5 | AP3: 10
U4: f(x) | V4: =($B$8*(V3^($B$8-1)))/($B$7^$B$8)*EXP(-((V3/$B$7)^$B$8)) -> 0 | W4: =($B$8*(W3^($B$8-1)))/($B$7^$B$8)*EXP(-((W3/$B$7)^$B$8)) -> 0.0630628822 | X4: =($B$8*(X3^($B$8-1)))/($B$7^$B$8)*EXP(-((X3/$B$7)^$B$8)) -> 0.120207397 | Y4: 0.166431204 | Z4: 0.1983675894 | AA4: 0.2146658074 | AB4: 0.2159788312 | AC4: 0.2046020421 | AD4: 0.1838818311 | AE4: 0.1575481008 | AF4: 0.1291152124 | AG4: 0.1014522706 | AH4: 0.07656440749 | AI4: 0.05557129878 | AJ4: 0.03883127641 | AK4: 0.02614425355 | AL4: =($B$8*(AL3^($B$8-1)))/($B$7^$B$8)*EXP(-((AL3/$B$7)^$B$8)) -> 0.01697153987 | AM4: =($B$8*(AM3^($B$8-1)))/($B$7^$B$8)*EXP(-((AM3/$B$7)^$B$8)) -> 0.01062799611 | AN4: =($B$8*(AN3^($B$8-1)))/($B$7^$B$8)*EXP(-((AN3/$B$7)^$B$8)) -> 0.006423342669 | AO4: =($B$8*(AO3^($B$8-1)))/($B$7^$B$8)*EXP(-((AO3/$B$7)^$B$8)) -> 0.003748117773 | AP4: =($B$8*(AP3^($B$8-1)))/($B$7^$B$8)*EXP(-((AP3/$B$7)^$B$8)) -> 0.002112251302 | AQ4: =SUM(V4:AP4) -> 1.992307652
F5: ( | G5: =B8 -> 2 | H5: -1 | I5: ) | L5: - | M5: ( | N5: =B6 -> x | O5: ) | P5: ^ | Q5: =B8 -> 2 | V5: =_xlfn.WEIBULL.DIST(V3,$B$8,$B$7,FALSE) -> 0 | W5: =_xlfn.WEIBULL.DIST(W3,$B$8,$B$7,FALSE) -> 0.0630628822 | X5: 0.120207397 | Y5: 0.166431204 | Z5: 0.1983675894 | AA5: 0.2146658074 | AB5: 0.2159788312 | AC5: 0.2046020421 | AD5: 0.1838818311 | AE5: 0.1575481008 | AF5: 0.1291152124 | AG5: 0.1014522706 | AH5: 0.07656440749 | AI5: 0.05557129878 | AJ5: 0.03883127641 | AK5: 0.02614425355 | AL5: 0.01697153987 | AM5: 0.01062799611 | AN5: 0.006423342669 | AO5: 0.003748117773 | AP5: 0.002112251302
A6: f(x) | B6: x | C6: =B8 -> 2 | D6: * | E6: =B6 -> x | F6: ^ | G6: * | N6: =B7 -> 3.9503386
A7: A | B7: =B2 -> 3.9503386 | C7: =B7 -> 3.9503386 | D7: ^ | E7: =B8 -> 2 | J7: =B9 -> e | K7: ^
A8: k | B8: =2 -> 2
A9: e | B9: e
A11: f(x) | B11: x | C11: =(C6*(E6^(G5-1)))/(C7^E7) ->  | F11: * | G11: =EXP(-((N5/N6)^Q5)) ->  | J11: = | K11: =C11*G11 -> 
A15: x | B15: 0 | E15: 0.5 | H15: 1 | K15: 1.5 | N15: 2 | Q15: 2.5
A16: f(x) | B16: =($B$8*(B15^($B$8-1)))/($B$7^$B$8)*EXP(-((B15/$B$7)^$B$8)) -> 0

Sheet Průběh trvání teplot
A1: Teplota temperace | D1: 5
D3: v | E3: 1e-07 | F3: =F6/$B$6 -> 0.01945525292 | G3: =G6/$B$6 -> 0.03891050584 | H3: 0.05836575875 | I3: 0.07782101167 | J3: 0.09727626459 | K3: 0.1167315175 | L3: 0.1361867704 | M3: 0.1556420233 | N3: 0.1750972763 | O3: 0.1945525292 | P3: 0.2140077821 | Q3: 0.233463035 | R3: 0.2529182879 | S3: 0.2723735409 | T3: 0.2918287938 | U3: 0.3112840467 | V3: 0.3307392996 | W3: 0.3501945525 | X3: 0.3696498054 | Y3: 0.3891050584 | Z3: 0.4085603113 | AA3: 0.4280155642 | AB3: 0.4474708171 | AC3: 0.46692607 | AD3: 0.486381323 | AE3: 0.5058365759 | AF3: =AF6/$B$6 -> 0.5252918288 | AG3: 0.5447470817 | AH3: 0.5642023346 | AI3: 0.5836575875 | AJ3: 0.6031128405 | AK3: 0.6225680934 | AL3: 0.6420233463 | AM3: 0.6614785992 | AN3: 0.6809338521 | AO3: 0.7003891051 | AP3: 0.719844358 | AQ3: 0.7392996109 | AR3: 0.7587548638 | AS3: 0.7782101167 | AT3: 0.7976653696 | AU3: 0.8171206226 | AV3: 0.8365758755 | AW3: 0.8560311284 | AX3: 0.8754863813 | AY3: 0.8949416342 | AZ3: =AZ6/$B$6 -> 0.9143968872 | BA3: =BA6/$B$6 -> 0.9338521401
A4: max | B4: 13 | D4: V | E4: =(1-E3)^(0.985*(E3^(-0.626))) -> 0.9976290582 | F4: =(1-F3)^(0.985*(F3^(-0.626))) -> 0.7961825646 | G4: =(1-G3)^(0.985*(G3^(-0.626))) -> 0.7420493368 | H4: 0.7041739156 | I4: 0.673935479 | J4: 0.6482396764 | K4: 0.6255825755 | L4: 0.6051079712 | M4: 0.586277369 | N4: 0.5687278186 | O4: 0.5522018196 | P4: 0.5365092805 | Q4: 0.5215053244 | R4: 0.5070765882 | S4: 0.4931323686 | T4: 0.4795986812 | U4: 0.4664141453 | V4: 0.453527055 | W4: 0.4408932439 | X4: 0.4284744959 | Y4: 0.4162373396 | Z4: =(1-Z3)^(0.985*(Z3^(-0.626))) -> 0.4041521173 | AA4: =(1-AA3)^(0.985*(AA3^(-0.626))) -> 0.3921922549 | AB4: =(1-AB3)^(0.985*(AB3^(-0.626))) -> 0.3803336794 | AC4: =(1-AC3)^(0.985*(AC3^(-0.626))) -> 0.3685543477 | AD4: =(1-AD3)^(0.985*(AD3^(-0.626))) -> 0.3568338584 | AE4: =(1-AE3)^(0.985*(AE3^(-0.626))) -> 0.3451531275 | AF4: 0.3334941119 | AG4: 0.3218395691 | AH4: 0.3101728437 | AI4: 0.2984776732 | AJ4: 0.286738006 | AK4: 0.2749378264 | AL4: 0.26306098 | AM4: 0.251090995 | AN4: 0.2390108921 | AO4: 0.2268029772 | AP4: 0.2144486065 | AQ4: 0.2019279143 | AR4: 0.1892194891 | AS4: 0.1762999751 | AT4: 0.1631435726 | AU4: 0.149721392 | AV4: 0.1360005939 | AW4: 0.1219432087 | AX4: 0.1075044488 | AY4: 0.09263018324 | AZ4: =(1-AZ3)^(0.985*(AZ3^(-0.626))) -> 0.07725292207 | BA4: =(1-BA3)^(0.985*(BA3^(-0.626))) -> 0.06128488717
A5: min | B5: -18 | D5: te | E5: =$B$4-E4*($B$4-$B$5) -> -17.9265008 | F5: =$B$4-F4*($B$4-$B$5) -> -11.6816595 | G5: -10.00352944 | H5: -8.829391383 | I5: -7.89199985 | J5: -7.095429968 | K5: -6.393059842 | L5: -5.758347108 | M5: -5.17459844 | N5: -4.630562376 | O5: -4.118256409 | P5: -3.631787696 | Q5: -3.166665058 | R5: -2.719374235 | S5: -2.287103427 | T5: -1.867559116 | U5: -1.458838504 | V5: -1.059338705 | W5: -0.667690561 | X5: -0.2827093734 | Y5: 0.09664247303 | Z5: =$B$4-Z4*($B$4-$B$5) -> 0.4712843644 | AA5: =$B$4-AA4*($B$4-$B$5) -> 0.8420400995 | AB5: =$B$4-AB4*($B$4-$B$5) -> 1.209655939 | AC5: =$B$4-AC4*($B$4-$B$5) -> 1.574815222 | AD5: =$B$4-AD4*($B$4-$B$5) -> 1.93815039 | AE5: =$B$4-AE4*($B$4-$B$5) -> 2.300253047 | AF5: 2.66168253 | AG5: 3.022973357 | AH5: 3.384641845 | AI5: 3.747192132 | AJ5: 4.111121814 | AK5: 4.476927382 | AL5: 4.845109621 | AM5: 5.216179156 | AN5: 5.590662344 | AO5: 5.969107706 | AP5: 6.3520932 | AQ5: 6.740234656 | AR5: 7.134195837 | AS5: 7.534700771 | AT5: 7.942549248 | AU5: 8.35863685 | AV5: 8.783981589 | AW5: 9.21976053 | AX5: 9.667362087 | AY5: 10.12846432 | AZ5: =$B$4-AZ4*($B$4-$B$5) -> 10.60515942 | BA5: =$B$4-BA4*($B$4-$B$5) -> 11.1001685
A6: d | B6: 257 | D6: T | E6: 0.0001 | F6: 5 | G6: 10 | H6: 15 | I6: 20 | J6: 25 | K6: 30 | L6: 35 | M6: 40 | N6: 45 | O6: 50 | P6: 55 | Q6: 60 | R6: 65 | S6: 70 | T6: 75 | U6: 80 | V6: 85 | W6: 90 | X6: 95 | Y6: 100 | Z6: 105 | AA6: 110 | AB6: 115 | AC6: 120 | AD6: 125 | AE6: 130 | AF6: 135 | AG6: 140 | AH6: 145 | AI6: 150 | AJ6: 155 | AK6: 160 | AL6: 165 | AM6: 170 | AN6: 175 | AO6: 180 | AP6: 185 | AQ6: 190 | AR6: 195 | AS6: 200 | AT6: 205 | AU6: 210 | AV6: 215 | AW6: 220 | AX6: 225 | AY6: 230 | AZ6: 235 | BA6: 240
AK7: =160*24 -> 3840
D25: Pz | E25: =363*($D$1-E5) -> 8322.319792 | F25: =363*($D$1-F5) -> 6055.442399 | G25: 5446.281187 | H25: 5020.069072 | I25: 4679.795946 | J25: 4390.641078 | K25: 4135.680723 | L25: 3905.28 | M25: 3693.379234 | N25: 3495.894142 | O25: 3309.927076 | P25: 3133.338934 | Q25: 2964.499416 | R25: 2802.132847 | S25: 2645.218544 | T25: 2492.923959 | U25: 2344.558377 | V25: 2199.53995 | W25: 2057.371674 | X25: 1917.623503 | Y25: 1779.918782 | Z25: 1643.923776 | AA25: 1509.339444 | AB25: 1375.894894 | AC25: 1243.342074 | AD25: 1111.451408 | AE25: 980.008144 | AF25: 848.8092417 | AG25: 717.6606713 | AH25: 586.3750101 | AI25: 454.7692561 | AJ25: 322.6627815 | AK25: 189.8753603 | AL25: 56.22520774 | AM25: -78.47303374 | AN25: -214.4104308 | AO25: -351.7860972 | AP25: -490.8098316 | AQ25: -631.70518 | AR25: -774.713089 | AS25: -920.09638 | AT25: -1068.145377 | AU25: -1219.185176 | AV25: -1373.585317 | AW25: -1531.773072 | AX25: -1694.252438 | AY25: -1861.632548 | AZ25: -2034.672868 | BA25: -2214.361165
D26: Po | E26: 1500 | F26: 1500 | G26: 1500 | H26: 1500 | I26: 1500 | J26: 1500 | K26: 1500 | L26: 1500 | M26: 1500 | N26: 1500 | O26: 1500 | P26: 1500 | Q26: 1500 | R26: 1500 | S26: 1500 | T26: 1500 | U26: 1500 | V26: 1500 | W26: 1500 | X26: 1500 | Y26: 1500 | Z26: 1500 | AA26: 1500 | AB26: 1500 | AC26: 1500 | AD26: 1500 | AE26: 1500 | AF26: 1500 | AG26: 1500 | AH26: 1500 | AI26: 1500 | AJ26: 1500 | AK26: 1500 | AL26: 1500 | AM26: 1500 | AN26: 1500 | AO26: 1500 | AP26: 1500 | AQ26: 1500 | AR26: 1500 | AS26: 1500 | AT26: 1500 | AU26: 1500 | AV26: 1500 | AW26: 1500 | AX26: 1500 | AY26: 1500 | AZ26: 1500 | BA26: 1500
D27: Po max | E27: 8000 | F27: 8000 | G27: 8000 | H27: 8000 | I27: 8000 | J27: 8000 | K27: 8000 | L27: 8000 | M27: 8000 | N27: 8000 | O27: 8000 | P27: 8000 | Q27: 8000 | R27: 8000 | S27: 8000 | T27: 8000 | U27: 8000 | V27: 8000 | W27: 8000 | X27: 8000 | Y27: 8000 | Z27: 8000 | AA27: 8000 | AB27: 8000 | AC27: 8000 | AD27: 8000 | AE27: 8000 | AF27: 8000 | AG27: 8000 | AH27: 8000 | AI27: 8000 | AJ27: 8000 | AK27: 8000 | AL27: 8000 | AM27: 8000 | AN27: 8000 | AO27: 8000 | AP27: 8000 | AQ27: 8000 | AR27: 8000 | AS27: 8000 | AT27: 8000 | AU27: 8000 | AV27: 8000 | AW27: 8000 | AX27: 8000 | AY27: 8000 | AZ27: 8000 | BA27: 8000

Sheet Tepelná kapacita budovy
D1: Poznámka | H1: Ztráta | I1: Ui | J1: bi
A2: Délka | B2: m | C2: =(600+3950+350+3980+350+2020+100+850+600+5390+350)/1000 -> 18.54 | D2: N1x- | E2: =(350+300+2020+100+850+250+350)/1000 -> 4.22
A3: Šířka | B3: m | C3: =(670+5960+670)/1000 -> 7.3
A4: Výška | B4: m | C4: 3 | D4: ?
A5: Zeď levá | B5: m | C5: 0.6 | D5: V | H5: Zed Z | I5: =0.9/C5 -> 1.5 | J5: 1 | K5: =C3*C4-C18*1/3 -> 17.145
A6: Zeď pravá | B6: m | C6: 0.35 | D6: N | H6: Zed V | I6: =0.9/C6 -> 2.571428571 | J6: 0.2 | K6: =C3*C4 -> 21.9
A7: Zeď horní | B7: m | C7: 0.67 | D7: V | H7: Zed S | I7: =0.9/C7 -> 1.343283582 | J7: 1 | K7: =C2*C4-C18*1/3 -> 50.865
A8: Zeď dolní | B8: m | C8: 0.67 | D8: V | H8: Zed J | I8: =0.9/C8 -> 1.343283582 | J8: =(1-E2/C2)*1+(E2/C2)*0.43 -> 0.8702588997 | K8: =C2*C4-C18*1/3 -> 50.865
A10: Vnitřní podlaha | B10: m2 | C10: =(C2-C5-C6)*(C3-C7-C8) -> 104.8364 | H10: Zvolil jsem ten nejměkčí pískovec - http://stavba.tzb-info.cz/tabulky-a-vypocty/58-hodnoty-fyzikalnich-velicin-vybranych-stavebnich-materialu
A11: Vnější plocha | B11: m2 | C11: =C2*C3 -> 135.342
A12: Vnitřní objem | B12: m3 | C12: =C10*C4 -> 314.5092
A13: Vnější objem | B13: m3 | C13: =C11*C4 -> 406.026
A15: Podlaha nad sklepem | B15: m2 | C15: =4.9*4.95 -> 24.255 | H15: Podlaha | I15: =3.1 -> 3.1 | J15: =C15/C10*0.29+C16/C10*0.4 -> 0.374550347
A16: Podlaha na terénu | B16: m2 | C16: =C10-C15 -> 80.5814 | H16: Strop | I16: 0.51 | J16: 0.29
A18: Okna plocha | B18: m2 | C18: =(2*1100*2500+2*1200*850+2*850*850+3*1600*1100)/1000000 -> 14.265 | H18: Okna | I18: 2.37 | J18: 0.82
A19: Zdi | B19: m2 | C19: =(C2*2+C3*2)*C4 -> 155.04 | E19: 5
A20: Zastavěné vnitřní stěny | B20: m2 | C20: =(500*350+350*(300+480+1090)+350*(5960-350-1250)+980*980+100*350+100*950+100*350+600*(5960-1130)+500*500)/1000000 -> 6.6289 | D20: =C20*C4 -> 19.8867 | E20: =1000*(1-A25/D20)+(A25/D20)*E21 -> 877.5905505 | F20: =800*(1-A25/D20)+(A25/D20)*F21 -> 1237.176605 | G20: =F20*E20*D20 -> 21591676.25
D21: =(C11-C10)*C4-C18*C7 -> 81.95925 | E21: 720 | F21: 1800 | G21: =F21*E21*D21 -> 106219188
D22: =C10*0.1 -> 10.48364 | E22: 645 | F22: 1150 | G22: =F22*E22*D22 -> 7776239.97
D23: =A26+B26 -> 52.4182 | E23: =1000*(A26/D23)+(B26/D23)*840 -> 968 | F23: =800*(A26/D23)+(B26/D23)*1150 -> 870 | G23: =F23*E23*D23 -> 44144511.31
A24: =(450+840)/2 -> 645 | B24: =27*H24 -> 9369 | F24: Qk/5K | G24: =E19*SUM(G20:G23) -> 898658077.6 | H24: 347
A25: =(5.96-1.13)*C4*C5 -> 8.694 | F25: Qk/K | G25: =SUM(G20:G23) -> 179731615.5
A26: =0.4*C10 -> 41.93456 | B26: =0.1*C10 -> 10.48364
B28: =G24 -> 898658077.6 | C28: 0 | D28: 10 | E28: 20 | F28: 30 | G28: 40 | H28: 50 | I28: 60 | J28: 70 | K28: 80 | L28: 90 | M28: 100 | N28: 110 | O28: 120 | P28: 130 | Q28: 140 | R28: 150 | S28: 160 | T28: 170 | U28: 180 | V28: 190 | W28: 200 | X28: 210 | Y28: 220 | Z28: 230 | AA28: 240 | AB28: 250 | AC28: 260 | AD28: 270 | AE28: 280 | AF28: 290 | AG28: 300 | AH28: 310 | AI28: 320 | AJ28: 330 | AK28: 340 | AL28: 350 | AM28: 360 | AN28: 370 | AO28: 380 | AP28: 390 | AQ28: 400 | AR28: 410 | AS28: 420 | AT28: 430 | AU28: 440 | AV28: 450 | AW28: 460 | AX28: 470 | AY28: 480 | AZ28: 490 | BA28: 500 | BB28: 510 | BC28: 520 | BD28: 530 | BE28: 540 | BF28: 550 | BG28: 560 | BH28: 570 | BI28: 580 | BJ28: 590 | BK28: 600 | BL28: 610 | BM28: 620 | BN28: 630 | BO28: 640 | BP28: 650 | BQ28: 660 | BR28: 670 | BS28: 680 | BT28: 690 | BU28: 700 | BV28: 710 | BW28: 720 | BX28: 730 | BY28: 740 | BZ28: 750 | CA28: 760 | CB28: 770 | CC28: 780 | CD28: 790 | CE28: 800 | CF28: 810 | CG28: 820 | CH28: 830 | CI28: 840 | CJ28: 850 | CK28: 860 | CL28: 870 | CM28: 880 | CN28: 890 | CO28: 900 | CP28: 910 | CQ28: 920 | CR28: 930 | CS28: 940 | CT28: 950 | CU28: 960 | CV28: 970 | CW28: 980 | CX28: 990 | CY28: 1000 | CZ28: 1010 | DA28: 1020 | DB28: 1030 | DC28: 1040 | DD28: 1050 | DE28: 1060 | DF28: 1070 | DG28: 1080 | DH28: 1090 | DI28: 1100 | DJ28: 1110 | DK28: 1120 | DL28: 1130 | DM28: 1140 | DN28: 1150 | DO28: 1160 | DP28: 1170 | DQ28: 1180 | DR28: 1190 | DS28: 1200 | DT28: 1210 | DU28: 1220 | DV28: 1230 | DW28: 1240 | DX28: 1250 | DY28: 1260 | DZ28: 1270 | EA28: 1280 | EB28: 1290 | EC28: 1300 | ED28: 1310 | EE28: 1320 | EF28: 1330 | EG28: 1340 | EH28: 1350 | EI28: 1360 | EJ28: 1370 | EK28: 1380 | EL28: 1390 | EM28: 1400 | EN28: 1410 | EO28: 1420 | EP28: 1430 | EQ28: 1440 | ER28: 1450 | ES28: 1460 | ET28: 1470 | EU28: 1480 | EV28: 1490 | EW28: 1500 | EX28: 1510 | EY28: 1520 | EZ28: 1530 | FA28: 1540 | FB28: 1550 | FC28: 1560 | FD28: 1570 | FE28: 1580 | FF28: 1590 | FG28: 1600 | FH28: 1610 | FI28: 1620 | FJ28: 1630 | FK28: 1640 | FL28: 1650 | FM28: 1660 | FN28: 1670 | FO28: 1680 | FP28: 1690 | FQ28: 1700 | FR28: 1710 | FS28: 1720 | FT28: 1730 | FU28: 1740 | FV28: 1750 | FW28: 1760 | FX28: 1770 | FY28: 1780 | FZ28: 1790 | GA28: 1800 | GB28: 1810 | GC28: 1820 | GD28: 1830 | GE28: 1840 | GF28: 1850 | GG28: 1860 | GH28: 1870 | GI28: 1880 | GJ28: 1890 | GK28: 1900 | GL28: 1910 | GM28: 1920 | GN28: 1930 | GO28: 1940 | GP28: 1950 | GQ28: 1960 | GR28: 1970 | GS28: 1980 | GT28: 1990 | GU28: 2000 | GV28: 2010 | GW28: 2020 | GX28: 2030 | GY28: 2040 | GZ28: 2050 | HA28: 2060 | HB28: 2070 | HC28: 2080 | HD28: 2090 | HE28: 2100 | HF28: 2110 | HG28: 2120 | HH28: 2130 | HI28: 2140 | HJ28: 2150 | HK28: 2160 | HL28: 2170 | HM28: 2180 | HN28: 2190 | HO28: 2200 | HP28: 2210 | HQ28: 2220 | HR28: 2230 | HS28: 2240 | HT28: 2250 | HU28: 2260 | HV28: 2270 | HW28: 2280 | HX28: 2290 | HY28: 2300 | HZ28: 2310 | IA28: 2320 | IB28: 2330 | IC28: 2340 | ID28: 2350 | IE28: 2360 | IF28: 2370 | IG28: 2380 | IH28: 2390 | II28: 2400 | IJ28: 2410 | IK28: 2420 | IL28: 2430 | IM28: 2440 | IN28: 2450 | IO28: 2460 | IP28: 2470 | IQ28: 2480 | IR28: 2490 | IS28: 2500 | IT28: 2510 | IU28: 2520 | IV28: 2530 | IW28: 2540 | IX28: 2550 | IY28: 2560 | IZ28: 2570 | JA28: 2580 | JB28: 2590 | JC28: 2600 | JD28: 2610 | JE28: 2620 | JF28: 2630 | JG28: 2640 | JH28: 2650 | JI28: 2660 | JJ28: 2670 | JK28: 2680 | JL28: 2690 | JM28: 2700 | JN28: 2710 | JO28: 2720 | JP28: 2730 | JQ28: 2740 | JR28: 2750 | JS28: 2760 | JT28: 2770 | JU28: 2780 | JV28: 2790 | JW28: 2800 | JX28: 2810 | JY28: 2820 | JZ28: 2830 | KA28: 2840 | KB28: 2850 | KC28: 2860 | KD28: 2870 | KE28: 2880 | KF28: 2890 | KG28: 2900 | KH28: 2910 | KI28: 2920 | KJ28: 2930 | KK28: 2940 | KL28: 2950 | KM28: 2960 | KN28: 2970 | KO28: 2980 | KP28: 2990 | KQ28: 3000 | KR28: 3010 | KS28: 3020 | KT28: 3030 | KU28: 3040 | KV28: 3050 | KW28: 3060 | KX28: 3070 | KY28: 3080 | KZ28: 3090 | LA28: 3100 | LB28: 3110 | LC28: 3120 | LD28: 3130 | LE28: 3140 | LF28: 3150 | LG28: 3160 | LH28: 3170 | LI28: 3180 | LJ28: 3190 | LK28: 3200 | LL28: 3210 | LM28: 3220 | LN28: 3230 | LO28: 3240 | LP28: 3250 | LQ28: 3260 | LR28: 3270 | LS28: 3280 | LT28: 3290 | LU28: 3300 | LV28: 3310 | LW28: 3320 | LX28: 3330 | LY28: 3340 | LZ28: 3350 | MA28: 3360 | MB28: 3370 | MC28: 3380 | MD28: 3390 | ME28: 3400 | MF28: 3410 | MG28: 3420 | MH28: 3430 | MI28: 3440 | MJ28: 3450 | MK28: 3460 | ML28: 3470 | MM28: 3480 | MN28: 3490 | MO28: 3500 | MP28: 3510 | MQ28: 3520 | MR28: 3530 | MS28: 3540 | MT28: 3550 | MU28: 3560 | MV28: 3570 | MW28: 3580 | MX28: 3590 | MY28: 3600 | MZ28: 3610 | NA28: 3620 | NB28: 3630 | NC28: 3640 | ND28: 3650 | NE28: 3660 | NF28: 3670 | NG28: 3680 | NH28: 3690 | NI28: 3700 | NJ28: 3710 | NK28: 3720 | NL28: 3730 | NM28: 3740 | NN28: 3750 | NO28: 3760 | NP28: 3770 | NQ28: 3780 | NR28: 3790 | NS28: 3800 | NT28: 3810 | NU28: 3820 | NV28: 3830 | NW28: 3840 | NX28: 3850 | NY28: 3860 | NZ28: 3870 | OA28: 3880 | OB28: 3890 | OC28: 3900 | OD28: 3910 | OE28: 3920 | OF28: 3930 | OG28: 3940 | OH28: 3950 | OI28: 3960 | OJ28: 3970 | OK28: 3980 | OL28: 3990 | OM28: 4000 | ON28: 4010 | OO28: 4020 | OP28: 4030 | OQ28: 4040 | OR28: 4050 | OS28: 4060 | OT28: 4070 | OU28: 4080 | OV28: 4090 | OW28: 4100 | OX28: 4110 | OY28: 4120 | OZ28: 4130 | PA28: 4140 | PB28: 4150 | PC28: 4160 | PD28: 4170 | PE28: 4180 | PF28: 4190 | PG28: 4200 | PH28: 4210 | PI28: 4220 | PJ28: 4230 | PK28: 4240 | PL28: 4250 | PM28: 4260 | PN28: 4270 | PO28: 4280 | PP28: 4290 | PQ28: 4300 | PR28: 4310 | PS28: 4320 | PT28: 4330 | PU28: 4340 | PV28: 4350 | PW28: 4360 | PX28: 4370 | PY28: 4380 | PZ28: 4390 | QA28: 4400 | QB28: 4410 | QC28: 4420 | QD28: 4430 | QE28: 4440 | QF28: 4450 | QG28: 4460 | QH28: 4470 | QI28: 4480 | QJ28: 4490 | QK28: 4500 | QL28: 4510 | QM28: 4520
C29: =C28/60 -> 0 | D29: =D28/60 -> 0.1666666667 | E29: 0.3333333333 | F29: 0.5 | G29: 0.6666666667 | H29: 0.8333333333 | I29: 1 | J29: 1.166666667 | K29: 1.333333333 | L29: 1.5 | M29: 1.666666667 | N29: 1.833333333 | O29: 2 | P29: 2.166666667 | Q29: 2.333333333 | R29: 2.5 | S29: 2.666666667 | T29: 2.833333333 | U29: 3 | V29: 3.166666667 | W29: 3.333333333 | X29: 3.5 | Y29: 3.666666667 | Z29: 3.833333333 | AA29: 4 | AB29: 4.166666667 | AC29: 4.333333333 | AD29: 4.5 | AE29: 4.666666667 | AF29: 4.833333333 | AG29: 5 | AH29: 5.166666667 | AI29: 5.333333333 | AJ29: 5.5 | AK29: 5.666666667 | AL29: 5.833333333 | AM29: 6 | AN29: 6.166666667 | AO29: 6.333333333 | AP29: 6.5 | AQ29: 6.666666667 | AR29: 6.833333333 | AS29: 7 | AT29: 7.166666667 | AU29: 7.333333333 | AV29: 7.5 | AW29: 7.666666667 | AX29: 7.833333333 | AY29: 8 | AZ29: 8.166666667 | BA29: 8.333333333 | BB29: 8.5 | BC29: 8.666666667 | BD29: 8.833333333 | BE29: 9 | BF29: 9.166666667 | BG29: 9.333333333 | BH29: 9.5 | BI29: 9.666666667 | BJ29: 9.833333333 | BK29: 10 | BL29: 10.16666667 | BM29: 10.33333333 | BN29: 10.5 | BO29: 10.66666667 | BP29: =BP28/60 -> 10.83333333 | BQ29: 11 | BR29: 11.16666667 | BS29: 11.33333333 | BT29: 11.5 | BU29: 11.66666667 | BV29: 11.83333333 | BW29: 12 | BX29: 12.16666667 | BY29: 12.33333333 | BZ29: 12.5 | CA29: 12.66666667 | CB29: 12.83333333 | CC29: 13 | CD29: 13.16666667 | CE29: 13.33333333 | CF29: 13.5 | CG29: 13.66666667 | CH29: 13.83333333 | CI29: 14 | CJ29: 14.16666667 | CK29: 14.33333333 | CL29: 14.5 | CM29: 14.66666667 | CN29: 14.83333333 | CO29: 15 | CP29: 15.16666667 | CQ29: 15.33333333 | CR29: 15.5 | CS29: 15.66666667 | CT29: 15.83333333 | CU29: 16 | CV29: 16.16666667 | CW29: 16.33333333 | CX29: 16.5 | CY29: 16.66666667 | CZ29: 16.83333333 | DA29: 17 | DB29: 17.16666667 | DC29: 17.33333333 | DD29: 17.5 | DE29: 17.66666667 | DF29: 17.83333333 | DG29: 18 | DH29: 18.16666667 | DI29: 18.33333333 | DJ29: 18.5 | DK29: 18.66666667 | DL29: 18.83333333 | DM29: 19 | DN29: 19.16666667 | DO29: 19.33333333 | DP29: 19.5 | DQ29: 19.66666667 | DR29: 19.83333333 | DS29: 20 | DT29: 20.16666667 | DU29: 20.33333333 | DV29: 20.5 | DW29: 20.66666667 | DX29: 20.83333333 | DY29: 21 | DZ29: 21.16666667 | EA29: 21.33333333 | EB29: =EB28/60 -> 21.5 | EC29: 21.66666667 | ED29: 21.83333333 | EE29: 22 | EF29: 22.16666667 | EG29: 22.33333333 | EH29: 22.5 | EI29: 22.66666667 | EJ29: 22.83333333 | EK29: 23 | EL29: 23.16666667 | EM29: 23.33333333 | EN29: 23.5 | EO29: 23.66666667 | EP29: 23.83333333 | EQ29: 24 | ER29: 24.16666667 | ES29: 24.33333333 | ET29: 24.5 | EU29: 24.66666667 | EV29: 24.83333333 | EW29: 25 | EX29: 25.16666667 | EY29: 25.33333333 | EZ29: 25.5 | FA29: 25.66666667 | FB29: 25.83333333 | FC29: 26 | FD29: 26.16666667 | FE29: 26.33333333 | FF29: 26.5 | FG29: 26.66666667 | FH29: 26.83333333 | FI29: 27 | FJ29: 27.16666667 | FK29: 27.33333333 | FL29: 27.5 | FM29: 27.66666667 | FN29: 27.83333333 | FO29: 28 | FP29: 28.16666667 | FQ29: 28.33333333 | FR29: 28.5 | FS29: 28.66666667 | FT29: 28.83333333 | FU29: 29 | FV29: 29.16666667 | FW29: 29.33333333 | FX29: 29.5 | FY29: 29.66666667 | FZ29: 29.83333333 | GA29: 30 | GB29: 30.16666667 | GC29: 30.33333333 | GD29: 30.5 | GE29: 30.66666667 | GF29: 30.83333333 | GG29: 31 | GH29: 31.16666667 | GI29: 31.33333333 | GJ29: 31.5 | GK29: 31.66666667 | GL29: 31.83333333 | GM29: 32 | GN29: =GN28/60 -> 32.16666667 | GO29: 32.33333333 | GP29: 32.5 | GQ29: 32.66666667 | GR29: 32.83333333 | GS29: 33 | GT29: 33.16666667 | GU29: 33.33333333 | GV29: 33.5 | GW29: 33.66666667 | GX29: 33.83333333 | GY29: 34 | GZ29: 34.16666667 | HA29: 34.33333333 | HB29: 34.5 | HC29: 34.66666667 | HD29: 34.83333333 | HE29: 35 | HF29: 35.16666667 | HG29: 35.33333333 | HH29: 35.5 | HI29: 35.66666667 | HJ29: 35.83333333 | HK29: 36 | HL29: 36.16666667 | HM29: 36.33333333 | HN29: 36.5 | HO29: 36.66666667 | HP29: 36.83333333 | HQ29: 37 | HR29: 37.16666667 | HS29: 37.33333333 | HT29: 37.5 | HU29: 37.66666667 | HV29: 37.83333333 | HW29: 38 | HX29: 38.16666667 | HY29: 38.33333333 | HZ29: 38.5 | IA29: 38.66666667 | IB29: 38.83333333 | IC29: 39 | ID29: 39.16666667 | IE29: 39.33333333 | IF29: 39.5 | IG29: 39.66666667 | IH29: 39.83333333 | II29: 40 | IJ29: 40.16666667 | IK29: 40.33333333 | IL29: 40.5 | IM29: 40.66666667 | IN29: 40.83333333 | IO29: 41 | IP29: 41.16666667 | IQ29: 41.33333333 | IR29: 41.5 | IS29: 41.66666667 | IT29: 41.83333333 | IU29: 42 | IV29: 42.16666667 | IW29: 42.33333333 | IX29: 42.5 | IY29: 42.66666667 | IZ29: =IZ28/60 -> 42.83333333 | JA29: 43 | JB29: 43.16666667 | JC29: 43.33333333 | JD29: 43.5 | JE29: 43.66666667 | JF29: 43.83333333 | JG29: 44 | JH29: 44.16666667 | JI29: 44.33333333 | JJ29: 44.5 | JK29: 44.66666667 | JL29: 44.83333333 | JM29: 45 | JN29: 45.16666667 | JO29: 45.33333333 | JP29: 45.5 | JQ29: 45.66666667 | JR29: 45.83333333 | JS29: 46 | JT29: 46.16666667 | JU29: 46.33333333 | JV29: 46.5 | JW29: 46.66666667 | JX29: 46.83333333 | JY29: 47 | JZ29: 47.16666667 | KA29: 47.33333333 | KB29: 47.5 | KC29: 47.66666667 | KD29: 47.83333333 | KE29: 48 | KF29: 48.16666667 | KG29: 48.33333333 | KH29: 48.5 | KI29: 48.66666667 | KJ29: 48.83333333 | KK29: 49 | KL29: 49.16666667 | KM29: 49.33333333 | KN29: 49.5 | KO29: 49.66666667 | KP29: 49.83333333 | KQ29: 50 | KR29: 50.16666667 | KS29: 50.33333333 | KT29: 50.5 | KU29: 50.66666667 | KV29: 50.83333333 | KW29: 51 | KX29: 51.16666667 | KY29: 51.33333333 | KZ29: 51.5 | LA29: 51.66666667 | LB29: 51.83333333 | LC29: 52 | LD29: 52.16666667 | LE29: 52.33333333 | LF29: 52.5 | LG29: 52.66666667 | LH29: 52.83333333 | LI29: 53 | LJ29: 53.16666667 | LK29: 53.33333333 | LL29: =LL28/60 -> 53.5 | LM29: 53.66666667 | LN29: 53.83333333 | LO29: 54 | LP29: 54.16666667 | LQ29: 54.33333333 | LR29: 54.5 | LS29: 54.66666667 | LT29: 54.83333333 | LU29: 55 | LV29: 55.16666667 | LW29: 55.33333333 | LX29: 55.5 | LY29: 55.66666667 | LZ29: 55.83333333 | MA29: 56 | MB29: 56.16666667 | MC29: 56.33333333 | MD29: 56.5 | ME29: 56.66666667 | MF29: 56.83333333 | MG29: 57 | MH29: 57.16666667 | MI29: 57.33333333 | MJ29: 57.5 | MK29: 57.66666667 | ML29: 57.83333333 | MM29: 58 | MN29: 58.16666667 | MO29: 58.33333333 | MP29: 58.5 | MQ29: 58.66666667 | MR29: 58.83333333 | MS29: 59 | MT29: 59.16666667 | MU29: 59.33333333 | MV29: 59.5 | MW29: 59.66666667 | MX29: 59.83333333 | MY29: 60 | MZ29: 60.16666667 | NA29: 60.33333333 | NB29: 60.5 | NC29: 60.66666667 | ND29: 60.83333333 | NE29: 61 | NF29: 61.16666667 | NG29: 61.33333333 | NH29: 61.5 | NI29: 61.66666667 | NJ29: 61.83333333 | NK29: 62 | NL29: 62.16666667 | NM29: 62.33333333 | NN29: 62.5 | NO29: 62.66666667 | NP29: 62.83333333 | NQ29: 63 | NR29: 63.16666667 | NS29: 63.33333333 | NT29: 63.5 | NU29: 63.66666667 | NV29: 63.83333333 | NW29: 64 | NX29: =NX28/60 -> 64.16666667 | NY29: 64.33333333 | NZ29: 64.5 | OA29: 64.66666667 | OB29: 64.83333333 | OC29: 65 | OD29: 65.16666667 | OE29: 65.33333333 | OF29: 65.5 | OG29: 65.66666667 | OH29: 65.83333333 | OI29: 66 | OJ29: 66.16666667 | OK29: 66.33333333 | OL29: 66.5 | OM29: 66.66666667 | ON29: 66.83333333 | OO29: 67 | OP29: 67.16666667 | OQ29: 67.33333333 | OR29: 67.5 | OS29: 67.66666667 | OT29: 67.83333333 | OU29: 68 | OV29: 68.16666667 | OW29: 68.33333333 | OX29: 68.5 | OY29: 68.66666667 | OZ29: 68.83333333 | PA29: 69 | PB29: 69.16666667 | PC29: 69.33333333 | PD29: 69.5 | PE29: 69.66666667 | PF29: 69.83333333 | PG29: 70 | PH29: 70.16666667 | PI29: 70.33333333 | PJ29: 70.5 | PK29: 70.66666667 | PL29: 70.83333333 | PM29: 71 | PN29: 71.16666667 | PO29: 71.33333333 | PP29: 71.5 | PQ29: 71.66666667 | PR29: 71.83333333 | PS29: 72 | PT29: 72.16666667 | PU29: 72.33333333 | PV29: 72.5 | PW29: 72.66666667 | PX29: 72.83333333 | PY29: 73 | PZ29: 73.16666667 | QA29: 73.33333333 | QB29: 73.5 | QC29: 73.66666667 | QD29: 73.83333333 | QE29: 74 | QF29: 74.16666667 | QG29: 74.33333333 | QH29: 74.5 | QI29: 74.66666667 | QJ29: =QJ28/60 -> 74.83333333 | QK29: =QK28/60 -> 75 | QL29: =QL28/60 -> 75.16666667 | QM29: =QM28/60 -> 75.33333333
A30: te | B30: -18 | C30: =B28 -> 898658077.6 | D30: =C30-(10*60*$H$24*(C31-$B$30)) -> 893869477.6 | E30: 889086424.7 | F30: 884308912.5 | G30: 879536934.5 | H30: 874770484.3 | I30: 870009555.5 | J30: 865254141.8 | K30: 860504236.7 | L30: 855759833.9 | M30: 851020926.9 | N30: 846287509.5 | O30: 841559575.3 | P30: 836837117.8 | Q30: 832120130.8 | R30: 827408608 | S30: 822702542.9 | T30: 818001929.4 | U30: 813306760.9 | V30: 808617031.4 | W30: 803932734.4 | X30: 799253863.6 | Y30: 794580412.9 | Z30: 789912375.8 | AA30: 785249746.1 | AB30: 780592517.7 | AC30: 775940684.1 | AD30: 771294239.2 | AE30: 766653176.6 | AF30: 762017490.3 | AG30: 757387173.9 | AH30: 752762221.3 | AI30: 748142626.1 | AJ30: =AI30-(10*60*$H$24*(AI31-$B$30)) -> 743528382.3 | AK30: 738919483.6 | AL30: 734315923.8 | AM30: 729717696.8 | AN30: 725124796.3 | AO30: 720537216.1 | AP30: 715954950.3 | AQ30: 711377992.4 | AR30: 706806336.5 | AS30: 702239976.4 | AT30: 697678905.9 | AU30: 693123119 | AV30: 688572609.4 | AW30: 684027371.1 | AX30: 679487398 | AY30: 674952684 | AZ30: 670423222.9 | BA30: 665899008.8 | BB30: 661380035.5 | BC30: 656866296.9 | BD30: 652357787 | BE30: 647854499.8 | BF30: 643356429.1 | BG30: 638863568.9 | BH30: 634375913.3 | BI30: 629893456.1 | BJ30: 625416191.4 | BK30: 620944113.2 | BL30: 616477215.3 | BM30: 612015491.9 | BN30: 607558936.9 | BO30: 603107544.4 | BP30: 598661308.3 | BQ30: =BP30-(10*60*$H$24*(BP31-$B$30)) -> 594220222.7 | BR30: 589784281.6 | BS30: 585353479.2 | BT30: 580927809.3 | BU30: 576507266.1 | BV30: 572091843.6 | BW30: 567681535.9 | BX30: 563276337.1 | BY30: 558876241.3 | BZ30: 554481242.4 | CA30: 550091334.8 | CB30: 545706512.4 | CC30: 541326769.3 | CD30: 536952099.7 | CE30: 532582497.7 | CF30: 528217957.4 | CG30: 523858472.9 | CH30: 519504038.5 | CI30: 515154648.2 | CJ30: 510810296.2 | CK30: 506470976.7 | CL30: 502136683.8 | CM30: 497807411.8 | CN30: 493483154.7 | CO30: 489163906.9 | CP30: 484849662.4 | CQ30: 480540415.5 | CR30: 476236160.5 | CS30: 471936891.4 | CT30: 467642602.6 | CU30: 463353288.3 | CV30: 459068942.7 | CW30: 454789560.1 | CX30: 450515134.6 | CY30: 446245660.7 | CZ30: 441981132.4 | DA30: 437721544.2 | DB30: 433466890.2 | DC30: 429217164.9 | DD30: 424972362.3 | DE30: 420732477 | DF30: 416497503 | DG30: 412267434.9 | DH30: 408042266.8 | DI30: 403821993.2 | DJ30: 399606608.2 | DK30: 395396106.4 | DL30: 391190482 | DM30: 386989729.3 | DN30: 382793842.8 | DO30: 378602816.8 | DP30: 374416645.6 | DQ30: 370235323.6 | DR30: 366058845.3 | DS30: 361887205 | DT30: 357720397.1 | DU30: 353558416 | DV30: 349401256.1 | DW30: 345248911.8 | DX30: 341101377.6 | DY30: 336958647.8 | DZ30: 332820717 | EA30: 328687579.5 | EB30: 324559229.9 | EC30: =EB30-(10*60*$H$24*(EB31-$B$30)) -> 320435662.4 | ED30: 316316871.7 | EE30: 312202852.2 | EF30: 308093598.3 | EG30: 303989104.6 | EH30: 299889365.5 | EI30: 295794375.5 | EJ30: 291704129.1 | EK30: 287618620.8 | EL30: 283537845.2 | EM30: 279461796.7 | EN30: 275390469.9 | EO30: 271323859.2 | EP30: 267261959.3 | EQ30: 263204764.7 | ER30: 259152269.9 | ES30: 255104469.6 | ET30: 251061358.1 | EU30: 247022930.2 | EV30: 242989180.3 | EW30: 238960103.1 | EX30: 234935693.2 | EY30: =EX30-(10*60*$H$24*(EX31-$B$30)) -> 230915945.2 | EZ30: 226900853.5 | FA30: 222890413 | FB30: 218884618.1 | FC30: 214883463.5 | FD30: 210886943.8 | FE30: 206895053.7 | FF30: 202907787.7 | FG30: 198925140.6 | FH30: 194947106.9 | FI30: 190973681.4 | FJ30: 187004858.7 | FK30: 183040633.4 | FL30: 179081000.2 | FM30: 175125953.9 | FN30: 171175489.1 | FO30: 167229600.4 | FP30: 163288282.7 | FQ30: 159351530.5 | FR30: 155419338.7 | FS30: 151491701.9 | FT30: 147568614.8 | FU30: 143650072.3 | FV30: 139736068.9 | FW30: 135826599.5 | FX30: 131921658.8 | FY30: 128021241.6 | FZ30: 124125342.5 | GA30: 120233956.5 | GB30: 116347078.2 | GC30: 112464702.5 | GD30: 108586824.1 | GE30: 104713437.8 | GF30: 100844538.4 | GG30: 96980120.66 | GH30: 93120179.48 | GI30: 89264709.64 | GJ30: 85413705.95 | GK30: 81567163.24 | GL30: 77725076.33 | GM30: 73887440.08 | GN30: 70054249.33 | GO30: 66225498.91 | GP30: 62401183.7 | GQ30: 58581298.55 | GR30: 54765838.34 | GS30: 50954797.93 | GT30: 47148172.2 | GU30: 43345956.05 | GV30: 39548144.36 | GW30: 35754732.03 | GX30: 31965713.97 | GY30: 28181085.08 | GZ30: 24400840.29 | HA30: 20624974.5 | HB30: 16853482.66 | HC30: 13086359.69 | HD30: 9323600.53 | HE30: 5565200.129 | HF30: 1811153.435 | HG30: -1938544.594 | HH30: -5683898.996 | HI30: -9424914.802 | HJ30: -13161597.04 | HK30: =HJ30-(10*60*$H$24*(HJ31-$B$30)) -> -16893950.73 | HL30: -20621980.88 | HM30: -24345692.5 | HN30: -28065090.6 | HO30: -31780180.17 | HP30: -35490966.21 | HQ30: -39197453.69 | HR30: -42899647.6 | HS30: -46597552.91 | HT30: -50291174.59 | HU30: -53980517.6 | HV30: -57665586.9 | HW30: -61346387.44 | HX30: -65022924.16 | HY30: -68695202.01 | HZ30: -72363225.91 | IA30: -76027000.79 | IB30: -79686531.58 | IC30: -83341823.19 | ID30: -86992880.53 | IE30: -90639708.51 | IF30: -94282312.03 | IG30: -97920695.98 | IH30: -101554865.2 | II30: -105184824.7 | IJ30: -108810579.3 | IK30: -112432133.8 | IL30: -116049493.1 | IM30: -119662662 | IN30: -123271645.5 | IO30: -126876448.4 | IP30: -130477075.5 | IQ30: -134073531.7 | IR30: -137665821.7 | IS30: -141253950.5 | IT30: -144837922.8 | IU30: -148417743.4 | IV30: -151993417.2 | IW30: -155564949 | IX30: -159132343.5 | IY30: -162695605.6 | IZ30: -166254740 | JA30: -169809751.5 | JB30: -173360644.9 | JC30: -176907425 | JD30: -180450096.5 | JE30: -183988664.3 | JF30: -187523132.9 | JG30: -191053507.3 | JH30: -194579792.1 | JI30: -198101992 | JJ30: -201620111.9 | JK30: -205134156.4 | JL30: -208644130.3 | JM30: -212150038.2 | JN30: -215651884.9 | JO30: -219149675.1 | JP30: -222643413.4 | JQ30: -226133104.7 | JR30: -229618753.5 | JS30: -233100364.5 | JT30: -236577942.5 | JU30: -240051492 | JV30: -243521017.9 | JW30: =JV30-(10*60*$H$24*(JV31-$B$30)) -> -246986524.6 | JX30: -250448016.9 | JY30: -253905499.5 | JZ30: -257358976.9 | KA30: -260808453.9 | KB30: -264253934.9 | KC30: -267695424.8 | KD30: -271132928.1 | KE30: -274566449.3 | KF30: -277995993.3 | KG30: -281421564.4 | KH30: -284843167.4 | KI30: -288260806.8 | KJ30: -291674487.3 | KK30: -295084213.3 | KL30: -298489989.6 | KM30: -301891820.6 | KN30: -305289711 | KO30: -308683665.3 | KP30: -312073688 | KQ30: -315459783.8 | KR30: -318841957.1 | KS30: -322220212.5 | KT30: -325594554.6 | KU30: -328964987.9 | KV30: -332331516.8 | KW30: -335694146.1 | KX30: -339052880 | KY30: -342407723.2 | KZ30: -345758680.2 | LA30: -349105755.5 | LB30: -352448953.5 | LC30: -355788278.8 | LD30: -359123735.9 | LE30: -362455329.1 | LF30: -365783063.1 | LG30: -369106942.3 | LH30: -372426971 | LI30: -375743153.9 | LJ30: -379055495.4 | LK30: -382363999.8 | LL30: -385668671.7 | LM30: -388969515.5 | LN30: -392266535.6 | LO30: -395559736.4 | LP30: -398849122.5 | LQ30: -402134698.1 | LR30: -405416467.7 | LS30: -408694435.8 | LT30: -411968606.7 | LU30: -415238984.7 | LV30: -418505574.5 | LW30: -421768380.2 | LX30: -425027406.3 | LY30: -428282657.1 | LZ30: -431534137.1 | MA30: -434781850.6 | MB30: -438025802 | MC30: -441265995.6 | MD30: -444502435.8 | ME30: -447735126.9 | MF30: -450964073.3 | MG30: -454189279.3 | MH30: -457410749.2 | MI30: =MH30-(10*60*$H$24*(MH31-$B$30)) -> -460628487.4 | MJ30: -463842498.2 | MK30: -467052785.9 | ML30: -470259354.8 | MM30: -473462209.2 | MN30: -476661353.5 | MO30: -479856791.9 | MP30: -483048528.8 | MQ30: -486236568.3 | MR30: -489420914.9 | MS30: -492601572.7 | MT30: -495778546 | MU30: -498951839.2 | MV30: -502121456.5 | MW30: -505287402.1 | MX30: -508449680.2 | MY30: -511608295.3 | MZ30: -514763251.3 | NA30: -517914552.8 | NB30: -521062203.7 | NC30: -524206208.5 | ND30: -527346571.2 | NE30: -530483296.2 | NF30: -533616387.6 | NG30: -536745849.6 | NH30: -539871686.5 | NI30: -542993902.5 | NJ30: -546112501.7 | NK30: -549227488.3 | NL30: -552338866.6 | NM30: -555446640.6 | NN30: -558550814.6 | NO30: -561651392.8 | NP30: -564748379.3 | NQ30: -567841778.2 | NR30: -570931593.8 | NS30: -574017830.1 | NT30: -577100491.4 | NU30: -580179581.7 | NV30: -583255105.3 | NW30: -586327066.1 | NX30: -589395468.5 | NY30: -592460316.4 | NZ30: -595521614 | OA30: -598579365.4 | OB30: -601633574.7 | OC30: -604684246.1 | OD30: -607731383.6 | OE30: -610774991.3 | OF30: -613815073.3 | OG30: -616851633.7 | OH30: -619884676.5 | OI30: -622914205.9 | OJ30: -625940225.9 | OK30: -628962740.6 | OL30: -631981754 | OM30: -634997270.2 | ON30: -638009293.3 | OO30: -641017827.3 | OP30: -644022876.1 | OQ30: -647024444 | OR30: -650022534.9 | OS30: -653017152.7 | OT30: -656008301.7 | OU30: =OT30-(10*60*$H$24*(OT31-$B$30)) -> -658995985.7 | OV30: -661980208.8 | OW30: -664960975 | OX30: -667938288.3 | OY30: -670912152.7 | OZ30: -673882572.1 | PA30: -676849550.7 | PB30: -679813092.3 | PC30: -682773201 | PD30: -685729880.7 | PE30: -688683135.5 | PF30: -691632969.1 | PG30: -694579385.8 | PH30: -697522389.3 | PI30: -700461983.6 | PJ30: -703398172.7 | PK30: -706330960.6 | PL30: -709260351.2 | PM30: -712186348.3 | PN30: -715108956 | PO30: -718028178.2 | PP30: -720944018.8 | PQ30: -723856481.7 | PR30: -726765570.8 | PS30: -729671290 | PT30: -732573643.2 | PU30: -735472634.4 | PV30: -738368267.4 | PW30: -741260546.2 | PX30: -744149474.5 | PY30: -747035056.3 | PZ30: -749917295.5 | QA30: -752796195.9 | QB30: -755671761.4 | QC30: -758543995.9 | QD30: -761412903.2 | QE30: -764278487.1 | QF30: -767140751.6 | QG30: -769999700.5 | QH30: -772855337.6 | QI30: -775707666.7 | QJ30: -778556691.7 | QK30: -781402416.4 | QL30: -784244844.6 | QM30: -787083980.2
A31: ti | B31: 5 | C31: 5 | D31: =D30/$G$25 -> 4.973356941 | E31: =E30/$G$25 -> 4.946744746 | F31: 4.920163377 | G31: 4.893612801 | H31: 4.86709298 | I31: 4.84060388 | J31: 4.814145465 | K31: 4.787717699 | L31: 4.761320547 | M31: 4.734953973 | N31: 4.708617941 | O31: 4.682312418 | P31: 4.656037366 | Q31: 4.629792752 | R31: 4.603578539 | S31: 4.577394692 | T31: 4.551241177 | U31: 4.525117957 | V31: 4.499024999 | W31: 4.472962267 | X31: 4.446929725 | Y31: 4.42092734 | Z31: 4.394955075 | AA31: 4.369012896 | AB31: 4.343100769 | AC31: 4.317218659 | AD31: 4.291366529 | AE31: 4.265544347 | AF31: 4.239752077 | AG31: 4.213989685 | AH31: =AH30/$G$25 -> 4.188257136 | AI31: 4.162554395 | AJ31: 4.136881428 | AK31: 4.111238201 | AL31: 4.085624678 | AM31: 4.060040826 | AN31: 4.03448661 | AO31: 4.008961996 | AP31: 3.98346695 | AQ31: 3.958001436 | AR31: 3.932565422 | AS31: 3.907158873 | AT31: 3.881781755 | AU31: 3.856434033 | AV31: 3.831115674 | AW31: 3.805826644 | AX31: 3.780566908 | AY31: 3.755336433 | AZ31: 3.730135185 | BA31: 3.70496313 | BB31: 3.679820234 | BC31: 3.654706463 | BD31: 3.629621784 | BE31: 3.604566163 | BF31: 3.579539566 | BG31: 3.55454196 | BH31: 3.529573311 | BI31: 3.504633585 | BJ31: 3.47972275 | BK31: 3.454840771 | BL31: 3.429987615 | BM31: 3.405163249 | BN31: =BN30/$G$25 -> 3.380367639 | BO31: 3.355600753 | BP31: 3.330862556 | BQ31: 3.306153016 | BR31: 3.281472099 | BS31: 3.256819772 | BT31: 3.232196003 | BU31: 3.207600757 | BV31: 3.183034003 | BW31: 3.158495706 | BX31: 3.133985835 | BY31: 3.109504355 | BZ31: 3.085051235 | CA31: 3.060626441 | CB31: 3.036229941 | CC31: 3.011861701 | CD31: 2.987521689 | CE31: 2.963209873 | CF31: 2.93892622 | CG31: 2.914670696 | CH31: 2.89044327 | CI31: 2.866243909 | CJ31: 2.84207258 | CK31: 2.817929251 | CL31: 2.793813889 | CM31: 2.769726463 | CN31: 2.745666939 | CO31: 2.721635286 | CP31: 2.697631471 | CQ31: 2.673655462 | CR31: 2.649707226 | CS31: 2.625786732 | CT31: =CT30/$G$25 -> 2.601893948 | CU31: 2.57802884 | CV31: 2.554191378 | CW31: 2.530381529 | CX31: 2.506599261 | CY31: 2.482844542 | CZ31: 2.459117341 | DA31: 2.435417625 | DB31: 2.411745362 | DC31: 2.388100522 | DD31: 2.364483072 | DE31: 2.340892979 | DF31: 2.317330214 | DG31: 2.293794743 | DH31: 2.270286536 | DI31: 2.24680556 | DJ31: 2.223351785 | DK31: 2.199925179 | DL31: 2.176525709 | DM31: 2.153153346 | DN31: 2.129808057 | DO31: 2.106489811 | DP31: 2.083198576 | DQ31: 2.059934322 | DR31: 2.036697018 | DS31: 2.013486631 | DT31: 1.990303131 | DU31: 1.967146486 | DV31: 1.944016666 | DW31: 1.92091364 | DX31: 1.897837376 | DY31: 1.874787843 | DZ31: =DZ30/$G$25 -> 1.851765011 | EA31: 1.828768848 | EB31: 1.805799324 | EC31: 1.782856408 | ED31: 1.759940068 | EE31: 1.737050275 | EF31: 1.714186997 | EG31: 1.691350204 | EH31: 1.668539865 | EI31: 1.645755949 | EJ31: 1.622998426 | EK31: 1.600267265 | EL31: 1.577562436 | EM31: 1.554883908 | EN31: 1.53223165 | EO31: 1.509605633 | EP31: 1.487005826 | EQ31: 1.464432198 | ER31: 1.441884719 | ES31: 1.419363359 | ET31: 1.396868088 | EU31: 1.374398875 | EV31: 1.35195569 | EW31: 1.329538504 | EX31: 1.307147285 | EY31: =EY30/$G$25 -> 1.284782004 | EZ31: 1.262442631 | FA31: 1.240129136 | FB31: 1.217841488 | FC31: 1.195579658 | FD31: 1.173343617 | FE31: 1.151133333 | FF31: 1.128948778 | FG31: 1.106789921 | FH31: 1.084656733 | FI31: 1.062549184 | FJ31: 1.040467244 | FK31: 1.018410884 | FL31: 0.9963800732 | FM31: 0.9743747831 | FN31: 0.9523949838 | FO31: 0.9304406459 | FP31: 0.9085117396 | FQ31: 0.8866082357 | FR31: 0.8647301047 | FS31: 0.8428773171 | FT31: 0.8210498437 | FU31: 0.7992476552 | FV31: 0.7774707221 | FW31: 0.7557190153 | FX31: 0.7339925055 | FY31: 0.7122911636 | FZ31: 0.6906149604 | GA31: 0.6689638668 | GB31: 0.6473378537 | GC31: 0.625736892 | GD31: 0.6041609527 | GE31: 0.5826100069 | GF31: 0.5610840255 | GG31: 0.5395829797 | GH31: 0.5181068406 | GI31: 0.4966555794 | GJ31: 0.4752291671 | GK31: 0.4538275751 | GL31: 0.4324507745 | GM31: 0.4110987367 | GN31: 0.3897714329 | GO31: 0.3684688346 | GP31: 0.3471909131 | GQ31: 0.3259376398 | GR31: 0.3047089861 | GS31: 0.2835049236 | GT31: 0.2623254237 | GU31: 0.2411704581 | GV31: 0.2200399982 | GW31: 0.1989340157 | GX31: 0.1778524823 | GY31: 0.1567953696 | GZ31: 0.1357626493 | HA31: 0.1147542932 | HB31: 0.09377027303 | HC31: 0.07281056063 | HD31: 0.05187512783 | HE31: 0.03096394651 | HF31: 0.01007698857 | HG31: -0.01078577405 | HH31: -0.03162436936 | HI31: -0.05243882538 | HJ31: -0.07322917006 | HK31: =HK30/$G$25 -> -0.09399543133 | HL31: -0.1147376371 | HM31: -0.1354558152 | HN31: -0.1561499935 | HO31: -0.1768201998 | HP31: -0.1974664619 | HQ31: -0.2180888074 | HR31: -0.2386872642 | HS31: -0.2592618598 | HT31: -0.279812622 | HU31: -0.3003395782 | HV31: -0.3208427562 | HW31: -0.3413221834 | HX31: -0.3617778874 | HY31: -0.3822098956 | HZ31: -0.4026182355 | IA31: -0.4230029345 | IB31: -0.44336402 | IC31: -0.4637015193 | ID31: -0.4840154598 | IE31: -0.5043058688 | IF31: -0.5245727734 | IG31: -0.5448162011 | IH31: -0.5650361788 | II31: -0.5852327339 | IJ31: -0.6054058933 | IK31: -0.6255556844 | IL31: -0.645682134 | IM31: -0.6657852693 | IN31: -0.6858651172 | IO31: -0.7059217047 | IP31: -0.7259550589 | IQ31: -0.7459652065 | IR31: -0.7659521745 | IS31: -0.7859159896 | IT31: -0.8058566789 | IU31: -0.8257742689 | IV31: -0.8456687866 | IW31: -0.8655402586 | IX31: -0.8853887115 | IY31: -0.9052141722 | IZ31: -0.9250166671 | JA31: -0.944796223 | JB31: -0.9645528663 | JC31: -0.9842866237 | JD31: -1.003997522 | JE31: -1.023685587 | JF31: -1.043350845 | JG31: -1.062993323 | JH31: -1.082613048 | JI31: -1.102210045 | JJ31: -1.121784341 | JK31: -1.141335963 | JL31: -1.160864935 | JM31: -1.180371286 | JN31: -1.199855041 | JO31: -1.219316226 | JP31: -1.238754867 | JQ31: -1.25817099 | JR31: -1.277564622 | JS31: -1.296935788 | JT31: -1.316284516 | JU31: -1.335610829 | JV31: -1.354914755 | JW31: =JW30/$G$25 -> -1.37419632 | JX31: -1.393455549 | JY31: -1.412692468 | JZ31: -1.431907103 | KA31: -1.45109948 | KB31: -1.470269625 | KC31: -1.489417563 | KD31: -1.50854332 | KE31: -1.527646923 | KF31: -1.546728395 | KG31: -1.565787764 | KH31: -1.584825055 | KI31: -1.603840292 | KJ31: -1.622833503 | KK31: -1.641804712 | KL31: -1.660753945 | KM31: -1.679681228 | KN31: -1.698586585 | KO31: -1.717470042 | KP31: -1.736331625 | KQ31: -1.755171358 | KR31: -1.773989268 | KS31: -1.792785379 | KT31: -1.811559717 | KU31: -1.830312307 | KV31: -1.849043174 | KW31: -1.867752343 | KX31: -1.88643984 | KY31: -1.905105689 | KZ31: -1.923749916 | LA31: -1.942372545 | LB31: -1.960973602 | LC31: -1.979553112 | LD31: -1.998111099 | LE31: -2.016647589 | LF31: -2.035162606 | LG31: -2.053656176 | LH31: -2.072128323 | LI31: -2.090579072 | LJ31: -2.109008447 | LK31: -2.127416474 | LL31: -2.145803178 | LM31: -2.164168582 | LN31: -2.182512712 | LO31: -2.200835592 | LP31: -2.219137247 | LQ31: -2.237417701 | LR31: -2.25567698 | LS31: -2.273915107 | LT31: -2.292132107 | LU31: -2.310328005 | LV31: -2.328502825 | LW31: -2.346656591 | LX31: -2.364789328 | LY31: -2.38290106 | LZ31: -2.400991811 | MA31: -2.419061607 | MB31: -2.43711047 | MC31: -2.455138426 | MD31: -2.473145498 | ME31: -2.491131711 | MF31: -2.509097089 | MG31: -2.527041656 | MH31: -2.544965435 | MI31: =MI30/$G$25 -> -2.562868453 | MJ31: -2.580750731 | MK31: -2.598612295 | ML31: -2.616453168 | MM31: -2.634273374 | MN31: -2.652072937 | MO31: -2.669851882 | MP31: -2.687610231 | MQ31: -2.70534801 | MR31: -2.723065241 | MS31: -2.740761948 | MT31: -2.758438156 | MU31: -2.776093887 | MV31: -2.793729167 | MW31: -2.811344017 | MX31: -2.828938463 | MY31: -2.846512528 | MZ31: -2.864066235 | NA31: -2.881599607 | NB31: -2.89911267 | NC31: -2.916605445 | ND31: -2.934077956 | NE31: -2.951530228 | NF31: -2.968962283 | NG31: -2.986374145 | NH31: -3.003765837 | NI31: -3.021137382 | NJ31: -3.038488805 | NK31: -3.055820128 | NL31: -3.073131374 | NM31: -3.090422567 | NN31: -3.10769373 | NO31: -3.124944886 | NP31: -3.142176059 | NQ31: -3.159387271 | NR31: -3.176578545 | NS31: -3.193749906 | NT31: -3.210901375 | NU31: -3.228032976 | NV31: -3.245144732 | NW31: -3.262236666 | NX31: -3.2793088 | NY31: -3.296361158 | NZ31: -3.313393763 | OA31: -3.330406638 | OB31: -3.347399805 | OC31: -3.364373287 | OD31: -3.381327107 | OE31: -3.398261288 | OF31: -3.415175852 | OG31: -3.432070823 | OH31: -3.448946223 | OI31: -3.465802074 | OJ31: -3.4826384 | OK31: -3.499455223 | OL31: -3.516252565 | OM31: -3.533030449 | ON31: -3.549788897 | OO31: -3.566527933 | OP31: -3.583247579 | OQ31: -3.599947856 | OR31: -3.616628788 | OS31: -3.633290397 | OT31: -3.649932705 | OU31: =OU30/$G$25 -> -3.666555735 | OV31: -3.683159509 | OW31: -3.699744049 | OX31: -3.716309378 | OY31: -3.732855517 | OZ31: -3.74938249 | PA31: -3.765890318 | PB31: -3.782379023 | PC31: -3.798848628 | PD31: -3.815299154 | PE31: -3.831730625 | PF31: -3.848143061 | PG31: -3.864536485 | PH31: -3.880910919 | PI31: -3.897266385 | PJ31: -3.913602906 | PK31: -3.929920501 | PL31: -3.946219195 | PM31: -3.962499009 | PN31: -3.978759964 | PO31: -3.995002082 | PP31: -4.011225385 | PQ31: -4.027429896 | PR31: -4.043615636 | PS31: -4.059782626 | PT31: -4.075930888 | PU31: -4.092060444 | PV31: -4.108171316 | PW31: -4.124263525 | PX31: -4.140337093 | PY31: -4.156392041 | PZ31: -4.172428392 | QA31: -4.188446166 | QB31: -4.204445385 | QC31: -4.220426071 | QD31: -4.236388244 | QE31: -4.252331928 | QF31: -4.268257142 | QG31: -4.284163909 | QH31: -4.300052249 | QI31: -4.315922184 | QJ31: -4.331773736 | QK31: -4.347606926 | QL31: -4.363421774 | QM31: -4.379218302
A32: te | B32: -10 | C32: =B28 -> 898658077.6 | D32: =C32-(10*60*$H$24*(C33-$B$32)) -> 895535077.6 | E32: =D32-(10*60*$H$24*(D33-$B$32)) -> 892415695.3 | F32: 889299926.4 | G32: 886187766.9 | H32: 883079212.4 | I32: 879974258.9 | J32: 876872902.1 | K32: 873775137.9 | L32: 870680962.1 | M32: 867590370.7 | N32: 864503359.3 | O32: 861419923.9 | P32: 858340060.4 | Q32: 855263764.5 | R32: 852191032.2 | S32: 849121859.4 | T32: 846056241.8 | U32: 842994175.4 | V32: 839935656.2 | W32: 836880679.9 | X32: 833829242.4 | Y32: 830781339.7 | Z32: 827736967.7 | AA32: 824696122.3 | AB32: 821658799.4 | AC32: 818624994.9 | AD32: 815594704.7 | AE32: 812567924.8 | AF32: 809544651.1 | AG32: 806524879.6 | AH32: 803508606.1 | AI32: 800495826.7 | AJ32: 797486537.2 | AK32: 794480733.7 | AL32: 791478412.1 | AM32: 788479568.4 | AN32: 785484198.5 | AO32: 782492298.4 | AP32: 779503864.1 | AQ32: 776518891.6 | AR32: 773537376.9 | AS32: 770559316 | AT32: 767584704.8 | AU32: 764613539.4 | AV32: 761645815.8 | AW32: 758681529.9 | AX32: 755720677.9 | AY32: 752763255.7 | AZ32: 749809259.4 | BA32: 746858684.9 | BB32: 743911528.4 | BC32: 740967785.9 | BD32: 738027453.3 | BE32: 735090526.8 | BF32: 732157002.5 | BG32: 729226876.3 | BH32: 726300144.4 | BI32: 723376802.8 | BJ32: 720456847.5 | BK32: 717540274.7 | BL32: 714627080.5 | BM32: 711717260.8 | BN32: 708810811.9 | BO32: 705907729.8 | BP32: 703008010.7 | BQ32: =BP32-(10*60*$H$24*(BP33-$B$32)) -> 700111650.5 | BR32: 697218645.5 | BS32: 694328991.7 | BT32: 691442685.2 | BU32: 688559722.3 | BV32: 685680098.9 | BW32: 682803811.3 | BX32: 679930855.6 | BY32: 677061227.8 | BZ32: 674194924.3 | CA32: 671331941 | CB32: 668472274.2 | CC32: 665615920 | CD32: 662762874.6 | CE32: 659913134.2 | CF32: 657066694.8 | CG32: 654223552.8 | CH32: 651383704.3 | CI32: 648547145.4 | CJ32: 645713872.4 | CK32: 642883881.4 | CL32: 640057168.6 | CM32: 637233730.3 | CN32: 634413562.7 | CO32: 631596661.9 | CP32: 628783024.2 | CQ32: 625972645.8 | CR32: 623165523 | CS32: 620361651.8 | CT32: 617561028.7 | CU32: 614763649.8 | CV32: 611969511.4 | CW32: 609178609.7 | CX32: 606390940.9 | CY32: 603606501.3 | CZ32: 600825287.3 | DA32: 598047295 | DB32: 595272520.6 | DC32: 592500960.6 | DD32: 589732611.1 | DE32: 586967468.5 | DF32: 584205529 | DG32: 581446788.9 | DH32: 578691244.5 | DI32: 575938892.1 | DJ32: 573189728 | DK32: 570443748.6 | DL32: 567700950 | DM32: 564961328.7 | DN32: 562224881 | DO32: 559491603.2 | DP32: 556761491.5 | DQ32: 554034542.4 | DR32: 551310752.2 | DS32: 548590117.2 | DT32: 545872633.8 | DU32: 543158298.3 | DV32: 540447107.1 | DW32: 537739056.4 | DX32: 535034142.8 | DY32: 532332362.6 | DZ32: 529633712 | EA32: 526938187.6 | EB32: 524245785.6 | EC32: =EB32-(10*60*$H$24*(EB33-$B$32)) -> 521556502.5 | ED32: 518870334.7 | EE32: 516187278.4 | EF32: 513507330.3 | EG32: 510830486.5 | EH32: 508156743.6 | EI32: 505486098 | EJ32: 502818546 | EK32: 500154084.1 | EL32: 497492708.7 | EM32: 494834416.2 | EN32: 492179203 | EO32: 489527065.6 | EP32: 486878000.5 | EQ32: 484232004 | ER32: 481589072.6 | ES32: 478949202.8 | ET32: 476312391 | EU32: 473678633.6 | EV32: 471047927.2 | EW32: 468420268.2 | EX32: 465795653 | EY32: =EX32-(10*60*$H$24*(EX33-$B$32)) -> 463174078.2 | EZ32: 460555540.2 | FA32: 457940035.5 | FB32: 455327560.6 | FC32: 452718111.9 | FD32: 450111686 | FE32: 447508279.4 | FF32: 444907888.6 | FG32: 442310510 | FH32: 439716140.2 | FI32: 437124775.7 | FJ32: 434536413.1 | FK32: 431951048.8 | FL32: 429368679.3 | FM32: 426789301.3 | FN32: 424212911.2 | FO32: 421639505.5 | FP32: 419069080.9 | FQ32: 416501633.9 | FR32: 413937160.9 | FS32: 411375658.7 | FT32: 408817123.6 | FU32: 406261552.4 | FV32: 403708941.5 | FW32: 401159287.5 | FX32: 398612587.1 | FY32: 396068836.7 | FZ32: 393528033 | GA32: 390990172.6 | GB32: 388455251.9 | GC32: 385923267.8 | GD32: 383394216.6 | GE32: 380868095.1 | GF32: 378344899.8 | GG32: 375824627.4 | GH32: 373307274.5 | GI32: 370792837.6 | GJ32: 368281313.5 | GK32: 365772698.7 | GL32: 363266989.8 | GM32: 360764183.6 | GN32: 358264276.6 | GO32: 355767265.4 | GP32: 353273146.8 | GQ32: 350781917.4 | GR32: 348293573.7 | GS32: 345808112.6 | GT32: 343325530.6 | GU32: 340845824.4 | GV32: 338368990.7 | GW32: 335895026.2 | GX32: 333423927.4 | GY32: 330955691.2 | GZ32: 328490314.1 | HA32: 326027793 | HB32: 323568124.4 | HC32: 321111305.1 | HD32: 318657331.7 | HE32: 316206201 | HF32: 313757909.7 | HG32: 311312454.4 | HH32: 308869832 | HI32: 306430039.1 | HJ32: 303993072.4 | HK32: =HJ32-(10*60*$H$24*(HJ33-$B$32)) -> 301558928.7 | HL32: 299127604.7 | HM32: 296699097.1 | HN32: 294273402.7 | HO32: 291850518.2 | HP32: 289430440.3 | HQ32: 287013165.9 | HR32: 284598691.6 | HS32: 282187014.2 | HT32: 279778130.5 | HU32: 277372037.3 | HV32: 274968731.2 | HW32: 272568209.1 | HX32: 270170467.8 | HY32: 267775504 | HZ32: 265383314.5 | IA32: 262993896.1 | IB32: 260607245.5 | IC32: 258223359.7 | ID32: 255842235.4 | IE32: 253463869.3 | IF32: 251088258.3 | IG32: 248715399.2 | IH32: 246345288.8 | II32: 243977923.9 | IJ32: 241613301.4 | IK32: 239251418 | IL32: 236892270.7 | IM32: 234535856.1 | IN32: 232182171.2 | IO32: 229831212.8 | IP32: 227482977.7 | IQ32: 225137462.9 | IR32: 222794665 | IS32: 220454581 | IT32: 218117207.8 | IU32: 215782542.2 | IV32: 213450581 | IW32: 211121321.2 | IX32: 208794759.5 | IY32: 206470892.9 | IZ32: 204149718.3 | JA32: 201831232.5 | JB32: 199515432.5 | JC32: 197202315 | JD32: 194891877.1 | JE32: 192584115.5 | JF32: 190279027.3 | JG32: 187976609.2 | JH32: 185676858.3 | JI32: 183379771.3 | JJ32: 181085345.3 | JK32: 178793577.2 | JL32: 176504463.8 | JM32: 174218002.1 | JN32: 171934189 | JO32: 169653021.5 | JP32: 167374496.5 | JQ32: 165098610.9 | JR32: 162825361.7 | JS32: 160554745.8 | JT32: 158286760.2 | JU32: 156021401.8 | JV32: 153758667.5 | JW32: =JV32-(10*60*$H$24*(JV33-$B$32)) -> 151498554.4 | JX32: 149241059.4 | JY32: 146986179.5 | JZ32: 144733911.6 | KA32: 142484252.8 | KB32: 140237199.9 | KC32: 137992750 | KD32: 135750900 | KE32: 133511647 | KF32: 131274987.9 | KG32: 129040919.8 | KH32: 126809439.6 | KI32: 124580544.3 | KJ32: 122354231 | KK32: 120130496.6 | KL32: 117909338.1 | KM32: 115690752.7 | KN32: 113474737.2 | KO32: 111261288.8 | KP32: 109050404.4 | KQ32: 106842081.1 | KR32: 104636315.9 | KS32: 102433105.8 | KT32: 100232447.9 | KU32: 98034339.27 | KV32: 95838776.89 | KW32: 93645757.84 | KX32: 91455279.17 | KY32: 89267337.93 | KZ32: 87081931.2 | LA32: 84899056.02 | LB32: 82718709.48 | LC32: 80540888.63 | LD32: 78365590.56 | LE32: 76192812.34 | LF32: 74022551.06 | LG32: 71854803.79 | LH32: 69689567.62 | LI32: 67526839.66 | LJ32: 65366616.98 | LK32: 63208896.69 | LL32: 61053675.9 | LM32: 58900951.69 | LN32: 56750721.19 | LO32: 54602981.5 | LP32: 52457729.75 | LQ32: 50314963.03 | LR32: 48174678.49 | LS32: 46036873.24 | LT32: 43901544.41 | LU32: 41768689.13 | LV32: 39638304.53 | LW32: 37510387.76 | LX32: 35384935.96 | LY32: 33261946.27 | LZ32: 31141415.84 | MA32: 29023341.81 | MB32: 26907721.35 | MC32: 24794551.61 | MD32: 22683829.75 | ME32: 20575552.94 | MF32: 18469718.35 | MG32: 16366323.14 | MH32: 14265364.49 | MI32: =MH32-(10*60*$H$24*(MH33-$B$32)) -> 12166839.58 | MJ32: 10070745.59 | MK32: 7977079.701 | ML32: 5885839.101 | MM32: 3797020.981 | MN32: 1710622.535 | MO32: -373359.0395 | MP32: -2454926.543 | MQ32: -4534082.771 | MR32: -6610830.517 | MS32: -8685172.572 | MT32: -10757111.72 | MU32: -12826650.75 | MV32: -14893792.44 | MW32: -16958539.56 | MX32: -19020894.89 | MY32: -21080861.2 | MZ32: -23138441.26 | NA32: -25193637.83 | NB32: -27246453.68 | NC32: -29296891.55 | ND32: -31344954.21 | NE32: -33390644.41 | NF32: -35433964.89 | NG32: -37474918.41 | NH32: -39513507.69 | NI32: -41549735.49 | NJ32: -43583604.53 | NK32: -45615117.55 | NL32: -47644277.28 | NM32: -49671086.44 | NN32: -51695547.76 | NO32: -53717663.95 | NP32: -55737437.74 | NQ32: -57754871.83 | NR32: -59769968.94 | NS32: -61782731.78 | NT32: -63793163.04 | NU32: -65801265.43 | NV32: -67807041.65 | NW32: -69810494.39 | NX32: -71811626.34 | NY32: -73810440.2 | NZ32: -75806938.63 | OA32: -77801124.34 | OB32: -79793000 | OC32: -81782568.28 | OD32: -83769831.85 | OE32: -85754793.39 | OF32: -87737455.57 | OG32: -89717821.04 | OH32: -91695892.46 | OI32: -93671672.5 | OJ32: -95645163.81 | OK32: -97616369.04 | OL32: -99585290.84 | OM32: -101551931.9 | ON32: -103516294.7 | OO32: -105478382.1 | OP32: -107438196.6 | OQ32: -109395740.8 | OR32: -111351017.5 | OS32: -113304029.1 | OT32: -115254778.4 | OU32: =OT32-(10*60*$H$24*(OT33-$B$32)) -> -117203268 | OV32: -119149500.5 | OW32: -121093478.4 | OX32: -123035204.5 | OY32: -124974681.2 | OZ32: -126911911.3 | PA32: -128846897.4 | PB32: -130779641.9 | PC32: -132710147.6 | PD32: -134638417 | PE32: -136564452.6 | PF32: -138488257.2 | PG32: -140409833.3 | PH32: -142329183.4 | PI32: -144246310.1 | PJ32: -146161216.1 | PK32: -148073903.8 | PL32: -149984375.9 | PM32: -151892635 | PN32: -153798683.5 | PO32: -155702524 | PP32: -157604159.2 | PQ32: -159503591.5 | PR32: -161400823.5 | PS32: -163295857.8 | PT32: -165188696.8 | PU32: -167079343.3 | PV32: -168967799.6 | PW32: -170854068.3 | PX32: -172738152 | PY32: -174620053.2 | PZ32: -176499774.4 | QA32: -178377318.2 | QB32: -180252687 | QC32: -182125883.4 | QD32: -183996909.9 | QE32: -185865769 | QF32: -187732463.2 | QG32: -189596995.1 | QH32: -191459367.1 | QI32: -193319581.7 | QJ32: -195177641.5 | QK32: -197033548.9 | QL32: -198887306.5 | QM32: -200738916.6
A33: ti | B33: 5 | C33: 5 | D33: =D32/$G$25 -> 4.982624092 | E33: =E32/$G$25 -> 4.965268312 | F33: 4.947932637 | G33: 4.930617044 | H33: 4.913321509 | I33: 4.896046009 | J33: 4.878790521 | K33: 4.861555021 | L33: 4.844339487 | M33: 4.827143895 | N33: 4.809968223 | O33: 4.792812446 | P33: 4.775676543 | Q33: 4.75856049 | R33: 4.741464264 | S33: 4.724387843 | T33: 4.707331202 | U33: 4.69029432 | V33: 4.673277173 | W33: 4.656279739 | X33: 4.639301995 | Y33: 4.622343917 | Z33: 4.605405484 | AA33: 4.588486672 | AB33: 4.571587458 | AC33: 4.554707821 | AD33: 4.537847737 | AE33: 4.521007183 | AF33: 4.504186137 | AG33: 4.487384577 | AH33: 4.47060248 | AI33: 4.453839823 | AJ33: 4.437096584 | AK33: 4.420372739 | AL33: 4.403668268 | AM33: 4.386983147 | AN33: 4.370317354 | AO33: 4.353670867 | AP33: 4.337043663 | AQ33: 4.320435719 | AR33: 4.303847015 | AS33: 4.287277526 | AT33: 4.270727231 | AU33: 4.254196109 | AV33: 4.237684135 | AW33: 4.22119129 | AX33: 4.204717549 | AY33: 4.188262891 | AZ33: 4.171827295 | BA33: 4.155410737 | BB33: 4.139013196 | BC33: 4.12263465 | BD33: 4.106275077 | BE33: 4.089934454 | BF33: 4.073612761 | BG33: 4.057309974 | BH33: 4.041026072 | BI33: 4.024761034 | BJ33: 4.008514837 | BK33: 3.992287459 | BL33: 3.976078879 | BM33: 3.959889075 | BN33: 3.943718026 | BO33: 3.927565708 | BP33: 3.911432102 | BQ33: =BQ32/$G$25 -> 3.895317184 | BR33: 3.879220934 | BS33: 3.86314333 | BT33: 3.84708435 | BU33: 3.831043972 | BV33: 3.815022176 | BW33: 3.799018939 | BX33: 3.78303424 | BY33: 3.767068058 | BZ33: 3.751120371 | CA33: 3.735191157 | CB33: 3.719280396 | CC33: 3.703388066 | CD33: 3.687514145 | CE33: 3.671658613 | CF33: 3.655821448 | CG33: 3.640002628 | CH33: 3.624202133 | CI33: 3.60841994 | CJ33: 3.59265603 | CK33: 3.576910381 | CL33: 3.561182971 | CM33: 3.54547378 | CN33: 3.529782787 | CO33: 3.514109969 | CP33: 3.498455307 | CQ33: 3.48281878 | CR33: 3.467200365 | CS33: 3.451600043 | CT33: 3.436017792 | CU33: 3.420453591 | CV33: 3.40490742 | CW33: 3.389379258 | CX33: 3.373869083 | CY33: 3.358376875 | CZ33: 3.342902614 | DA33: 3.327446277 | DB33: 3.312007845 | DC33: 3.296587297 | DD33: 3.281184612 | DE33: 3.265799769 | DF33: 3.250432748 | DG33: 3.235083528 | DH33: 3.219752089 | DI33: 3.204438409 | DJ33: 3.189142469 | DK33: 3.173864247 | DL33: 3.158603723 | DM33: 3.143360878 | DN33: 3.128135689 | DO33: 3.112928137 | DP33: 3.097738202 | DQ33: 3.082565862 | DR33: 3.067411098 | DS33: 3.05227389 | DT33: 3.037154216 | DU33: 3.022052056 | DV33: 3.006967391 | DW33: 2.9919002 | DX33: 2.976850463 | DY33: 2.961818159 | DZ33: 2.946803268 | EA33: 2.931805771 | EB33: 2.916825646 | EC33: =EC32/$G$25 -> 2.901862875 | ED33: 2.886917436 | EE33: 2.87198931 | EF33: 2.857078477 | EG33: 2.842184916 | EH33: 2.827308608 | EI33: 2.812449532 | EJ33: 2.797607669 | EK33: 2.782782999 | EL33: 2.767975502 | EM33: 2.753185157 | EN33: 2.738411946 | EO33: 2.723655848 | EP33: 2.708916843 | EQ33: 2.694194912 | ER33: 2.679490034 | ES33: 2.664802191 | ET33: 2.650131362 | EU33: 2.635477527 | EV33: 2.620840668 | EW33: 2.606220763 | EX33: 2.591617794 | EY33: =EY32/$G$25 -> 2.577031742 | EZ33: 2.562462585 | FA33: 2.547910306 | FB33: 2.533374884 | FC33: 2.518856299 | FD33: 2.504354533 | FE33: 2.489869565 | FF33: 2.475401377 | FG33: 2.460949949 | FH33: 2.446515261 | FI33: 2.432097294 | FJ33: 2.417696029 | FK33: 2.403311446 | FL33: 2.388943526 | FM33: 2.37459225 | FN33: 2.360257598 | FO33: 2.345939552 | FP33: 2.331638091 | FQ33: 2.317353197 | FR33: 2.303084851 | FS33: 2.288833033 | FT33: 2.274597724 | FU33: 2.260378906 | FV33: 2.246176558 | FW33: 2.231990662 | FX33: 2.217821199 | FY33: 2.20366815 | FZ33: 2.189531496 | GA33: 2.175411217 | GB33: 2.161307296 | GC33: 2.147219712 | GD33: 2.133148447 | GE33: 2.119093483 | GF33: 2.105054799 | GG33: 2.091032378 | GH33: 2.0770262 | GI33: 2.063036247 | GJ33: 2.0490625 | GK33: 2.03510494 | GL33: 2.021163549 | GM33: 2.007238307 | GN33: 1.993329195 | GO33: 1.979436196 | GP33: 1.965559291 | GQ33: 1.951698461 | GR33: 1.937853687 | GS33: 1.92402495 | GT33: 1.910212233 | GU33: 1.896415516 | GV33: 1.882634781 | GW33: 1.86887001 | GX33: 1.855121184 | GY33: 1.841388285 | GZ33: 1.827671293 | HA33: 1.813970191 | HB33: 1.800284961 | HC33: 1.786615583 | HD33: 1.77296204 | HE33: 1.759324313 | HF33: 1.745702384 | HG33: 1.732096234 | HH33: 1.718505846 | HI33: 1.704931201 | HJ33: 1.69137228 | HK33: =HK32/$G$25 -> 1.677829067 | HL33: 1.664301541 | HM33: 1.650789686 | HN33: 1.637293482 | HO33: 1.623812913 | HP33: 1.61034796 | HQ33: 1.596898604 | HR33: 1.583464828 | HS33: 1.570046613 | HT33: 1.556643942 | HU33: 1.543256797 | HV33: 1.529885159 | HW33: 1.516529011 | HX33: 1.503188334 | HY33: 1.489863112 | HZ33: 1.476553325 | IA33: 1.463258956 | IB33: 1.449979987 | IC33: 1.4367164 | ID33: 1.423468178 | IE33: 1.410235303 | IF33: 1.397017756 | IG33: 1.383815521 | IH33: 1.370628579 | II33: 1.357456913 | IJ33: 1.344300504 | IK33: 1.331159336 | IL33: 1.318033391 | IM33: 1.30492265 | IN33: 1.291827097 | IO33: 1.278746714 | IP33: 1.265681483 | IQ33: 1.252631387 | IR33: 1.239596408 | IS33: 1.226576528 | IT33: 1.213571731 | IU33: 1.200581999 | IV33: 1.187607313 | IW33: 1.174647657 | IX33: 1.161703014 | IY33: 1.148773366 | IZ33: 1.135858695 | JA33: 1.122958985 | JB33: 1.110074218 | JC33: 1.097204376 | JD33: 1.084349442 | JE33: 1.0715094 | JF33: 1.058684232 | JG33: 1.04587392 | JH33: 1.033078447 | JI33: 1.020297797 | JJ33: 1.007531951 | JK33: 0.994780894 | JL33: 0.9820446073 | JM33: 0.9693230743 | JN33: 0.9566162778 | JO33: 0.9439242007 | JP33: 0.9312468261 | JQ33: 0.9185841369 | JR33: 0.9059361161 | JS33: 0.8933027467 | JT33: 0.8806840116 | JU33: 0.8680798941 | JV33: 0.855490377 | JW33: =JW32/$G$25 -> 0.8429154436 | JX33: 0.830355077 | JY33: 0.8178092601 | JZ33: 0.8052779763 | KA33: 0.7927612086 | KB33: 0.7802589403 | KC33: 0.7677711545 | KD33: 0.7552978345 | KE33: 0.7428389635 | KF33: 0.7303945248 | KG33: 0.7179645017 | KH33: 0.7055488774 | KI33: 0.6931476353 | KJ33: 0.6807607588 | KK33: 0.6683882311 | KL33: 0.6560300356 | KM33: 0.6436861559 | KN33: 0.6313565752 | KO33: 0.619041277 | KP33: 0.6067402448 | KQ33: 0.594453462 | KR33: 0.5821809121 | KS33: 0.5699225787 | KT33: 0.5576784453 | KU33: 0.5454484954 | KV33: 0.5332327126 | KW33: 0.5210310805 | KX33: 0.5088435827 | KY33: 0.4966702028 | KZ33: 0.4845109245 | LA33: 0.4723657314 | LB33: 0.4602346072 | LC33: 0.4481175357 | LD33: 0.4360145005 | LE33: 0.4239254853 | LF33: 0.4118504741 | LG33: 0.3997894504 | LH33: 0.3877423981 | LI33: 0.3757093011 | LJ33: 0.3636901432 | LK33: 0.3516849081 | LL33: 0.3396935799 | LM33: 0.3277161423 | LN33: 0.3157525793 | LO33: 0.3038028749 | LP33: 0.2918670129 | LQ33: 0.2799449773 | LR33: 0.2680367522 | LS33: 0.2561423214 | LT33: 0.2442616691 | LU33: 0.2323947793 | LV33: 0.220541636 | LW33: 0.2087022233 | LX33: 0.1968765254 | LY33: 0.1850645262 | LZ33: 0.17326621 | MA33: 0.1614815609 | MB33: 0.149710563 | MC33: 0.1379532006 | MD33: 0.1262094578 | ME33: 0.114479319 | MF33: 0.1027627682 | MG33: 0.09105978986 | MH33: 0.07937036816 | MI33: =MI32/$G$25 -> 0.0676944874 | MJ33: 0.05603213192 | MK33: 0.04438328603 | ML33: 0.0327479341 | MM33: 0.02112606049 | MN33: 0.00951764958 | MO33: -0.002077314213 | MP33: -0.01365884647 | MQ33: -0.02522696276 | MR33: -0.0367816786 | MS33: -0.04832300954 | MT33: -0.05985097107 | MU33: -0.07136557868 | MV33: -0.08286684784 | MW33: -0.094354794 | MX33: -0.1058294326 | MY33: -0.117290779 | MZ33: -0.1287388487 | NA33: -0.140173657 | NB33: -0.1515952193 | NC33: -0.163003551 | ND33: -0.1743986673 | NE33: -0.1857805835 | NF33: -0.197149315 | NG33: -0.2085048771 | NH33: -0.2198472849 | NI33: -0.2311765538 | NJ33: -0.2424926989 | NK33: -0.2537957355 | NL33: -0.2650856786 | NM33: -0.2763625436 | NN33: -0.2876263456 | NO33: -0.2988770996 | NP33: -0.3101148208 | NQ33: -0.3213395243 | NR33: -0.3325512252 | NS33: -0.3437499385 | NT33: -0.3549356793 | NU33: -0.3661084626 | NV33: -0.3772683034 | NW33: -0.3884152167 | NX33: -0.3995492175 | NY33: -0.4106703207 | NZ33: -0.4217785414 | OA33: -0.4328738943 | OB33: -0.4439563944 | OC33: -0.4550260567 | OD33: -0.4660828959 | OE33: -0.4771269269 | OF33: -0.4881581647 | OG33: -0.4991766238 | OH33: -0.5101823193 | OI33: -0.5211752659 | OJ33: -0.5321554782 | OK33: -0.5431229712 | OL33: -0.5540777595 | OM33: -0.5650198578 | ON33: -0.5759492809 | OO33: -0.5868660434 | OP33: -0.59777016 | OQ33: -0.6086616453 | OR33: -0.619540514 | OS33: -0.6304067807 | OT33: -0.6412604599 | OU33: =OU32/$G$25 -> -0.6521015664 | OV33: -0.6629301145 | OW33: -0.6737461189 | OX33: -0.6845495942 | OY33: -0.6953405547 | OZ33: -0.7061190151 | PA33: -0.7168849898 | PB33: -0.7276384932 | PC33: -0.7383795399 | PD33: -0.7491081442 | PE33: -0.7598243205 | PF33: -0.7705280833 | PG33: -0.7812194469 | PH33: -0.7918984257 | PI33: -0.802565034 | PJ33: -0.8132192862 | PK33: -0.8238611966 | PL33: -0.8344907794 | PM33: -0.845108049 | PN33: -0.8557130197 | PO33: -0.8663057056 | PP33: -0.876886121 | PQ33: -0.8874542801 | PR33: -0.8980101971 | PS33: -0.9085538862 | PT33: -0.9190853616 | PU33: -0.9296046373 | PV33: -0.9401117276 | PW33: -0.9506066466 | PX33: -0.9610894083 | PY33: -0.9715600268 | PZ33: -0.9820185163 | QA33: -0.9924648907 | QB33: -1.002899164 | QC33: -1.01332135 | QD33: -1.023731464 | QE33: -1.034129518 | QF33: -1.044515527 | QG33: -1.054889506 | QH33: -1.065251467 | QI33: -1.075601425 | QJ33: -1.085939393 | QK33: -1.096265386 | QL33: -1.106579418 | QM33: -1.116881502
A34: te | B34: -5 | C34: =B28 -> 898658077.6 | D34: =C34-(10*60*$H$24*(C35-$B$34)) -> 896576077.6 | E34: =D34-(10*60*$H$24*(D35-$B$34)) -> 894496489.4 | F34: 892419310.2 | G34: 890344537.1 | H34: 888272167.5 | I34: 886202198.5 | J34: 884134627.3 | K34: 882069451.1 | L34: 880006667.3 | M34: 877946273 | N34: 875888265.4 | O34: 873832641.8 | P34: 871779399.5 | Q34: 869728535.6 | R34: 867680047.4 | S34: 865633932.1 | T34: 863590187.1 | U34: 861548809.5 | V34: 859509796.7 | W34: 857473145.8 | X34: 855438854.2 | Y34: 853406919 | Z34: 851377337.7 | AA34: 849350107.4 | AB34: 847325225.5 | AC34: 845302689.1 | AD34: 843282495.7 | AE34: 841264642.4 | AF34: 839249126.6 | AG34: 837235945.6 | AH34: 835225096.6 | AI34: 833216577 | AJ34: 831210384 | AK34: 829206515 | AL34: 827204967.3 | AM34: 825205738.1 | AN34: 823208824.9 | AO34: 821214224.8 | AP34: 819221935.3 | AQ34: 817231953.6 | AR34: 815244277.2 | AS34: 813258903.2 | AT34: 811275829.1 | AU34: 809295052.1 | AV34: 807316569.7 | AW34: 805340379.2 | AX34: 803366477.8 | AY34: 801394863 | AZ34: 799425532.1 | BA34: 797458482.5 | BB34: 795493711.5 | BC34: 793531216.4 | BD34: 791570994.8 | BE34: 789613043.8 | BF34: 787657360.9 | BG34: 785703943.4 | BH34: 783752788.8 | BI34: 781803894.4 | BJ34: 779857257.6 | BK34: 777912875.7 | BL34: 775970746.2 | BM34: 774030866.4 | BN34: 772093233.8 | BO34: 770157845.8 | BP34: 768224699.7 | BQ34: =BP34-(10*60*$H$24*(BP35-$B$34)) -> 766293792.9 | BR34: 764365122.9 | BS34: 762438687 | BT34: 760514482.7 | BU34: 758592507.4 | BV34: 756672758.5 | BW34: 754755233.4 | BX34: 752839929.6 | BY34: 750926844.4 | BZ34: 749015975.4 | CA34: 747107319.9 | CB34: 745200875.3 | CC34: 743296639.2 | CD34: 741394609 | CE34: 739494782 | CF34: 737597155.8 | CG34: 735701727.8 | CH34: 733808495.4 | CI34: 731917456.1 | CJ34: 730028607.5 | CK34: 728141946.8 | CL34: 726257471.6 | CM34: 724375179.4 | CN34: 722495067.7 | CO34: 720617133.8 | CP34: 718741375.4 | CQ34: 716867789.8 | CR34: 714996374.5 | CS34: 713127127.1 | CT34: 711260045 | CU34: 709395125.8 | CV34: 707532366.8 | CW34: 705671765.6 | CX34: 703813319.8 | CY34: 701957026.8 | CZ34: 700102884.1 | DA34: 698250889.2 | DB34: 696401039.6 | DC34: 694553333 | DD34: 692707766.6 | DE34: 690864338.2 | DF34: 689023045.2 | DG34: 687183885.1 | DH34: 685346855.5 | DI34: 683511954 | DJ34: 681679177.9 | DK34: 679848524.9 | DL34: 678019992.6 | DM34: 676193578.4 | DN34: 674369279.9 | DO34: 672547094.7 | DP34: 670727020.2 | DQ34: 668909054.2 | DR34: 667093194 | DS34: 665279437.4 | DT34: 663467781.7 | DU34: 661658224.7 | DV34: 659850763.9 | DW34: 658045396.8 | DX34: 656242121.1 | DY34: 654440934.2 | DZ34: 652641833.9 | EA34: 650844817.6 | EB34: 649049883 | EC34: =EB34-(10*60*$H$24*(EB35-$B$34)) -> 647257027.6 | ED34: 645466249 | EE34: 643677544.8 | EF34: 641890912.7 | EG34: 640106350.2 | EH34: 638323855 | EI34: 636543424.5 | EJ34: 634765056.5 | EK34: 632988748.6 | EL34: 631214498.3 | EM34: 629442303.3 | EN34: 627672161.2 | EO34: 625904069.6 | EP34: 624138026.2 | EQ34: 622374028.5 | ER34: 620612074.3 | ES34: 618852161.1 | ET34: 617094286.5 | EU34: 615338448.3 | EV34: 613584644 | EW34: 611832871.3 | EX34: 610083127.9 | EY34: =EX34-(10*60*$H$24*(EX35-$B$34)) -> 608335411.3 | EZ34: 606589719.3 | FA34: 604846049.5 | FB34: 603104399.6 | FC34: 601364767.1 | FD34: 599627149.9 | FE34: 597891545.5 | FF34: 596157951.6 | FG34: 594426365.9 | FH34: 592696786 | FI34: 590969209.7 | FJ34: 589243634.6 | FK34: 587520058.4 | FL34: 585798478.8 | FM34: 584078893.4 | FN34: 582361300 | FO34: 580645696.2 | FP34: 578932079.8 | FQ34: 577220448.5 | FR34: 575510799.8 | FS34: 573803131.7 | FT34: 572097441.6 | FU34: 570393727.5 | FV34: 568691986.9 | FW34: 566992217.6 | FX34: 565294417.3 | FY34: 563598583.7 | FZ34: 561904714.6 | GA34: 560212807.6 | GB34: 558522860.5 | GC34: 556834871.1 | GD34: 555148837 | GE34: 553464756 | GF34: 551782625.8 | GG34: 550102444.2 | GH34: 548424208.9 | GI34: 546747917.6 | GJ34: 545073568.2 | GK34: 543401158.3 | GL34: 541730685.8 | GM34: 540062148.3 | GN34: 538395543.6 | GO34: 536730869.5 | GP34: 535068123.8 | GQ34: 533407304.1 | GR34: 531748408.4 | GS34: 530091434.3 | GT34: 528436379.6 | GU34: 526783242.2 | GV34: 525132019.7 | GW34: 523482710 | GX34: 521835310.8 | GY34: 520189820 | GZ34: 518546235.3 | HA34: 516904554.5 | HB34: 515264775.5 | HC34: 513626895.9 | HD34: 511990913.7 | HE34: 510356826.5 | HF34: 508724632.3 | HG34: 507094328.8 | HH34: 505465913.9 | HI34: 503839385.3 | HJ34: 502214740.8 | HK34: =HJ34-(10*60*$H$24*(HJ35-$B$34)) -> 500591978.3 | HL34: 498971095.7 | HM34: 497352090.6 | HN34: 495734961 | HO34: 494119704.7 | HP34: 492506319.4 | HQ34: 490894803.1 | HR34: 489285153.6 | HS34: 487677368.7 | HT34: 486071446.2 | HU34: 484467384.1 | HV34: 482865180 | HW34: 481264832 | HX34: 479666337.7 | HY34: 478069695.2 | HZ34: 476474902.2 | IA34: 474881956.6 | IB34: 473290856.2 | IC34: 471701599 | ID34: 470114182.8 | IE34: 468528605.4 | IF34: 466944864.7 | IG34: 465362958.7 | IH34: 463782885.1 | II34: 462204641.8 | IJ34: 460628226.8 | IK34: 459053637.9 | IL34: 457480873 | IM34: 455909930 | IN34: 454340806.7 | IO34: 452773501.1 | IP34: 451208011 | IQ34: 449644334.5 | IR34: 448082469.2 | IS34: 446522413.2 | IT34: 444964164.4 | IU34: 443407720.7 | IV34: 441853079.9 | IW34: 440300240 | IX34: 438749198.9 | IY34: 437199954.5 | IZ34: 435652504.8 | JA34: 434106847.6 | JB34: 432562980.9 | JC34: 431020902.6 | JD34: 429480610.6 | JE34: 427942102.9 | JF34: 426405377.4 | JG34: 424870432 | JH34: 423337264.7 | JI34: 421805873.4 | JJ34: 420276256.1 | JK34: 418748410.7 | JL34: 417222335.1 | JM34: 415698027.3 | JN34: 414175485.2 | JO34: 412654706.9 | JP34: 411135690.2 | JQ34: 409618433.2 | JR34: 408102933.7 | JS34: 406589189.8 | JT34: 405077199.3 | JU34: 403566960.4 | JV34: 402058470.9 | JW34: =JV34-(10*60*$H$24*(JV35-$B$34)) -> 400551728.8 | JX34: 399046732.2 | JY34: 397543478.9 | JZ34: 396041967 | KA34: 394542194.4 | KB34: 393044159.1 | KC34: 391547859.2 | KD34: 390053292.5 | KE34: 388560457.2 | KF34: 387069351.2 | KG34: 385579972.4 | KH34: 384092318.9 | KI34: 382606388.7 | KJ34: 381122179.9 | KK34: 379639690.3 | KL34: 378158918 | KM34: 376679861 | KN34: 375202517.4 | KO34: 373726885.1 | KP34: 372252962.1 | KQ34: 370780746.6 | KR34: 369310236.5 | KS34: 367841429.7 | KT34: 366374324.5 | KU34: 364908918.7 | KV34: 363445210.5 | KW34: 361983197.8 | KX34: 360522878.7 | KY34: 359064251.2 | KZ34: 357607313.3 | LA34: 356152063.2 | LB34: 354698498.9 | LC34: 353246618.3 | LD34: 351796419.6 | LE34: 350347900.8 | LF34: 348901059.9 | LG34: 347455895.1 | LH34: 346012404.3 | LI34: 344570585.7 | LJ34: 343130437.2 | LK34: 341691957 | LL34: 340255143.1 | LM34: 338819993.7 | LN34: 337386506.7 | LO34: 335954680.2 | LP34: 334524512.4 | LQ34: 333096001.2 | LR34: 331669144.9 | LS34: 330243941.4 | LT34: 328820388.8 | LU34: 327398485.3 | LV34: 325978228.9 | LW34: 324559617.7 | LX34: 323142649.9 | LY34: 321727323.4 | LZ34: 320313636.4 | MA34: 318901587.1 | MB34: 317491173.4 | MC34: 316082393.6 | MD34: 314675245.7 | ME34: 313269727.8 | MF34: 311865838.1 | MG34: 310463574.6 | MH34: 309062935.5 | MI34: =MH34-(10*60*$H$24*(MH35-$B$34)) -> 307663918.9 | MJ34: 306266522.9 | MK34: 304870745.7 | ML34: 303476585.3 | MM34: 302084039.9 | MN34: 300693107.6 | MO34: 299303786.5 | MP34: 297916074.9 | MQ34: 296529970.7 | MR34: 295145472.2 | MS34: 293762577.5 | MT34: 292381284.7 | MU34: 291001592 | MV34: 289623497.6 | MW34: 288246999.5 | MX34: 286872096 | MY34: 285498785.1 | MZ34: 284127065 | NA34: 282756934 | NB34: 281388390.1 | NC34: 280021431.5 | ND34: 278656056.4 | NE34: 277292262.9 | NF34: 275930049.3 | NG34: 274569413.6 | NH34: 273210354.1 | NI34: 271852868.9 | NJ34: 270496956.2 | NK34: 269142614.2 | NL34: 267789841 | NM34: 266438634.9 | NN34: 265088994 | NO34: 263740916.6 | NP34: 262394400.7 | NQ34: 261049444.7 | NR34: 259706046.6 | NS34: 258364204.7 | NT34: 257023917.2 | NU34: 255685182.3 | NV34: 254347998.1 | NW34: 253012363 | NX34: 251678275 | NY34: 250345732.4 | NZ34: 249014733.5 | OA34: 247685276.3 | OB34: 246357359.2 | OC34: 245030980.4 | OD34: 243706138 | OE34: 242382830.3 | OF34: 241061055.5 | OG34: 239740811.9 | OH34: 238422097.6 | OI34: 237104910.9 | OJ34: 235789250 | OK34: 234475113.2 | OL34: 233162498.7 | OM34: 231851404.6 | ON34: 230541829.4 | OO34: 229233771.2 | OP34: 227927228.2 | OQ34: 226622198.7 | OR34: 225318680.9 | OS34: 224016673.1 | OT34: 222716173.6 | OU34: =OT34-(10*60*$H$24*(OT35-$B$34)) -> 221417180.5 | OV34: 220119692.2 | OW34: 218823706.9 | OX34: 217529222.9 | OY34: 216236238.4 | OZ34: 214944751.7 | PA34: 213654761 | PB34: 212366264.6 | PC34: 211079260.8 | PD34: 209793747.9 | PE34: 208509724.1 | PF34: 207227187.7 | PG34: 205946137 | PH34: 204666570.3 | PI34: 203388485.8 | PJ34: 202111881.8 | PK34: 200836756.7 | PL34: 199563108.6 | PM34: 198290935.9 | PN34: 197020236.9 | PO34: 195751009.9 | PP34: 194483253.1 | PQ34: 193216964.9 | PR34: 191952143.6 | PS34: 190688787.4 | PT34: 189426894.7 | PU34: 188166463.7 | PV34: 186907492.8 | PW34: 185649980.3 | PX34: 184393924.5 | PY34: 183139323.7 | PZ34: 181886176.3 | QA34: 180634480.4 | QB34: 179384234.6 | QC34: 178135437 | QD34: 176888086 | QE34: 175642179.9 | QF34: 174397717.1 | QG34: 173154695.8 | QH34: 171913114.5 | QI34: 170672971.4 | QJ34: 169434264.9 | QK34: 168196993.3 | QL34: 166961154.9 | QM34: 165726748.1
A35: ti | B35: 5 | C35: 5 | D35: =D34/$G$25 -> 4.988416061 | E35: =E34/$G$25 -> 4.976845542 | F35: 4.965288425 | G35: 4.953744696 | H35: 4.942214339 | I35: 4.930697339 | J35: 4.91919368 | K35: 4.907703347 | L35: 4.896226325 | M35: 4.884762597 | N35: 4.873312148 | O35: 4.861874964 | P35: 4.850451029 | Q35: 4.839040327 | R35: 4.827642843 | S35: 4.816258562 | T35: 4.804887468 | U35: 4.793529547 | V35: 4.782184782 | W35: 4.770853159 | X35: 4.759534663 | Y35: 4.748229278 | Z35: 4.736936989 | AA35: 4.725657781 | AB35: 4.714391639 | AC35: 4.703138547 | AD35: 4.691898491 | AE35: 4.680671455 | AF35: 4.669457425 | AG35: 4.658256385 | AH35: 4.64706832 | AI35: 4.635893215 | AJ35: 4.624731056 | AK35: 4.613581826 | AL35: 4.602445512 | AM35: 4.591322098 | AN35: 4.58021157 | AO35: 4.569113911 | AP35: 4.558029109 | AQ35: 4.546957146 | AR35: 4.53589801 | AS35: 4.524851684 | AT35: 4.513818154 | AU35: 4.502797406 | AV35: 4.491789424 | AW35: 4.480794193 | AX35: 4.469811699 | AY35: 4.458841927 | AZ35: 4.447884863 | BA35: 4.436940491 | BB35: 4.426008797 | BC35: 4.415089767 | BD35: 4.404183384 | BE35: 4.393289636 | BF35: 4.382408507 | BG35: 4.371539983 | BH35: 4.360684048 | BI35: 4.349840689 | BJ35: 4.339009891 | BK35: 4.32819164 | BL35: 4.31738592 | BM35: 4.306592717 | BN35: 4.295812017 | BO35: 4.285043806 | BP35: 4.274288068 | BQ35: =BQ34/$G$25 -> 4.263544789 | BR35: 4.252813956 | BS35: 4.242095553 | BT35: 4.231389566 | BU35: 4.220695981 | BV35: 4.210014784 | BW35: 4.199345959 | BX35: 4.188689493 | BY35: 4.178045372 | BZ35: 4.16741358 | CA35: 4.156794105 | CB35: 4.146186931 | CC35: 4.135592044 | CD35: 4.12500943 | CE35: 4.114439075 | CF35: 4.103880965 | CG35: 4.093335085 | CH35: 4.082801422 | CI35: 4.07227996 | CJ35: 4.061770687 | CK35: 4.051273587 | CL35: 4.040788648 | CM35: 4.030315854 | CN35: 4.019855191 | CO35: 4.009406646 | CP35: 3.998970205 | CQ35: 3.988545853 | CR35: 3.978133577 | CS35: 3.967733362 | CT35: 3.957345195 | CU35: 3.946969061 | CV35: 3.936604947 | CW35: 3.926252839 | CX35: 3.915912722 | CY35: 3.905584584 | CZ35: 3.895268409 | DA35: 3.884964185 | DB35: 3.874671897 | DC35: 3.864391531 | DD35: 3.854123075 | DE35: 3.843866513 | DF35: 3.833621832 | DG35: 3.823389019 | DH35: 3.813168059 | DI35: 3.802958939 | DJ35: 3.792761646 | DK35: 3.782576165 | DL35: 3.772402482 | DM35: 3.762240585 | DN35: 3.752090459 | DO35: 3.741952092 | DP35: 3.731825468 | DQ35: 3.721710575 | DR35: 3.711607399 | DS35: 3.701515926 | DT35: 3.691436144 | DU35: 3.681368038 | DV35: 3.671311594 | DW35: 3.6612668 | DX35: 3.651233642 | DY35: 3.641212106 | DZ35: 3.631202179 | EA35: 3.621203847 | EB35: 3.611217097 | EC35: =EC34/$G$25 -> 3.601241916 | ED35: 3.591278291 | EE35: 3.581326207 | EF35: 3.571385651 | EG35: 3.56145661 | EH35: 3.551539072 | EI35: 3.541633021 | EJ35: 3.531738446 | EK35: 3.521855333 | EL35: 3.511983668 | EM35: 3.502123438 | EN35: 3.492274631 | EO35: 3.482437232 | EP35: 3.472611229 | EQ35: 3.462796608 | ER35: 3.452993356 | ES35: 3.44320146 | ET35: 3.433420908 | EU35: 3.423651685 | EV35: 3.413893778 | EW35: 3.404147175 | EX35: 3.394411863 | EY35: =EY34/$G$25 -> 3.384687828 | EZ35: 3.374975057 | FA35: 3.365273537 | FB35: 3.355583256 | FC35: 3.345904199 | FD35: 3.336236355 | FE35: 3.32657971 | FF35: 3.316934251 | FG35: 3.307299966 | FH35: 3.29767684 | FI35: 3.288064863 | FJ35: 3.278464019 | FK35: 3.268874297 | FL35: 3.259295684 | FM35: 3.249728167 | FN35: 3.240171732 | FO35: 3.230626368 | FP35: 3.221092061 | FQ35: 3.211568798 | FR35: 3.202056567 | FS35: 3.192555355 | FT35: 3.183065149 | FU35: 3.173585937 | FV35: 3.164117705 | FW35: 3.154660441 | FX35: 3.145214133 | FY35: 3.135778767 | FZ35: 3.126354331 | GA35: 3.116940812 | GB35: 3.107538197 | GC35: 3.098146475 | GD35: 3.088765632 | GE35: 3.079395655 | GF35: 3.070036533 | GG35: 3.060688252 | GH35: 3.0513508 | GI35: 3.042024165 | GJ35: 3.032708334 | GK35: 3.023403294 | GL35: 3.014109032 | GM35: 3.004825538 | GN35: 2.995552797 | GO35: 2.986290798 | GP35: 2.977039527 | GQ35: 2.967798974 | GR35: 2.958569124 | GS35: 2.949349967 | GT35: 2.940141489 | GU35: 2.930943677 | GV35: 2.921756521 | GW35: 2.912580007 | GX35: 2.903414123 | GY35: 2.894258856 | GZ35: 2.885114195 | HA35: 2.875980127 | HB35: 2.86685664 | HC35: 2.857743722 | HD35: 2.84864136 | HE35: 2.839549542 | HF35: 2.830468256 | HG35: 2.82139749 | HH35: 2.812337231 | HI35: 2.803287467 | HJ35: 2.794248187 | HK35: =HK34/$G$25 -> 2.785219378 | HL35: 2.776201027 | HM35: 2.767193124 | HN35: 2.758195655 | HO35: 2.749208609 | HP35: 2.740231973 | HQ35: 2.731265736 | HR35: 2.722309885 | HS35: 2.713364409 | HT35: 2.704429295 | HU35: 2.695504531 | HV35: 2.686590106 | HW35: 2.677686007 | HX35: 2.668792223 | HY35: 2.659908741 | HZ35: 2.65103555 | IA35: 2.642172637 | IB35: 2.633319991 | IC35: 2.6244776 | ID35: 2.615645452 | IE35: 2.606823535 | IF35: 2.598011838 | IG35: 2.589210347 | IH35: 2.580419053 | II35: 2.571637942 | IJ35: 2.562867003 | IK35: 2.554106224 | IL35: 2.545355594 | IM35: 2.5366151 | IN35: 2.527884732 | IO35: 2.519164476 | IP35: 2.510454322 | IQ35: 2.501754258 | IR35: 2.493064272 | IS35: 2.484384352 | IT35: 2.475714487 | IU35: 2.467054666 | IV35: 2.458404875 | IW35: 2.449765105 | IX35: 2.441135343 | IY35: 2.432515577 | IZ35: 2.423905797 | JA35: 2.41530599 | JB35: 2.406716145 | JC35: 2.398136251 | JD35: 2.389566295 | JE35: 2.381006267 | JF35: 2.372456154 | JG35: 2.363915946 | JH35: 2.355385631 | JI35: 2.346865198 | JJ35: 2.338354634 | JK35: 2.329853929 | JL35: 2.321363072 | JM35: 2.31288205 | JN35: 2.304410852 | JO35: 2.295949467 | JP35: 2.287497884 | JQ35: 2.279056091 | JR35: 2.270624077 | JS35: 2.262201831 | JT35: 2.253789341 | JU35: 2.245386596 | JV35: 2.236993585 | JW35: =JW34/$G$25 -> 2.228610296 | JX35: 2.220236718 | JY35: 2.21187284 | JZ35: 2.203518651 | KA35: 2.195174139 | KB35: 2.186839294 | KC35: 2.178514103 | KD35: 2.170198556 | KE35: 2.161892642 | KF35: 2.15359635 | KG35: 2.145309668 | KH35: 2.137032585 | KI35: 2.12876509 | KJ35: 2.120507173 | KK35: 2.112258821 | KL35: 2.104020024 | KM35: 2.095790771 | KN35: 2.08757105 | KO35: 2.079360851 | KP35: 2.071160163 | KQ35: 2.062968975 | KR35: 2.054787275 | KS35: 2.046615052 | KT35: 2.038452297 | KU35: 2.030298997 | KV35: 2.022155142 | KW35: 2.01402072 | KX35: 2.005895722 | KY35: 1.997780135 | KZ35: 1.98967395 | LA35: 1.981577154 | LB35: 1.973489738 | LC35: 1.96541169 | LD35: 1.957343 | LE35: 1.949283657 | LF35: 1.941233649 | LG35: 1.933192967 | LH35: 1.925161599 | LI35: 1.917139534 | LJ35: 1.909126762 | LK35: 1.901123272 | LL35: 1.893129053 | LM35: 1.885144095 | LN35: 1.877168386 | LO35: 1.869201917 | LP35: 1.861244675 | LQ35: 1.853296652 | LR35: 1.845357835 | LS35: 1.837428214 | LT35: 1.829507779 | LU35: 1.82159652 | LV35: 1.813694424 | LW35: 1.805801482 | LX35: 1.797917684 | LY35: 1.790043017 | LZ35: 1.782177473 | MA35: 1.774321041 | MB35: 1.766473709 | MC35: 1.758635467 | MD35: 1.750806305 | ME35: 1.742986213 | MF35: 1.735175179 | MG35: 1.727373193 | MH35: 1.719580245 | MI35: =MI34/$G$25 -> 1.711796325 | MJ35: 1.704021421 | MK35: 1.696255524 | ML35: 1.688498623 | MM35: 1.680750707 | MN35: 1.673011766 | MO35: 1.665281791 | MP35: 1.657560769 | MQ35: 1.649848691 | MR35: 1.642145548 | MS35: 1.634451327 | MT35: 1.626766019 | MU35: 1.619089614 | MV35: 1.611422101 | MW35: 1.603763471 | MX35: 1.596113712 | MY35: 1.588472814 | MZ35: 1.580840768 | NA35: 1.573217562 | NB35: 1.565603187 | NC35: 1.557997633 | ND35: 1.550400888 | NE35: 1.542812944 | NF35: 1.53523379 | NG35: 1.527663415 | NH35: 1.52010181 | NI35: 1.512548964 | NJ35: 1.505004867 | NK35: 1.49746951 | NL35: 1.489942881 | NM35: 1.482424971 | NN35: 1.47491577 | NO35: 1.467415267 | NP35: 1.459923453 | NQ35: 1.452440317 | NR35: 1.44496585 | NS35: 1.437500041 | NT35: 1.43004288 | NU35: 1.422594358 | NV35: 1.415154464 | NW35: 1.407723189 | NX35: 1.400300522 | NY35: 1.392886453 | NZ35: 1.385480972 | OA35: 1.37808407 | OB35: 1.370695737 | OC35: 1.363315962 | OD35: 1.355944736 | OE35: 1.348582049 | OF35: 1.34122789 | OG35: 1.333882251 | OH35: 1.32654512 | OI35: 1.319216489 | OJ35: 1.311896348 | OK35: 1.304584686 | OL35: 1.297281494 | OM35: 1.289986761 | ON35: 1.282700479 | OO35: 1.275422638 | OP35: 1.268153227 | OQ35: 1.260892236 | OR35: 1.253639657 | OS35: 1.24639548 | OT35: 1.239159693 | OU35: =OU34/$G$25 -> 1.231932289 | OV35: 1.224713257 | OW35: 1.217502587 | OX35: 1.210300271 | OY35: 1.203106297 | OZ35: 1.195920657 | PA35: 1.18874334 | PB35: 1.181574338 | PC35: 1.17441364 | PD35: 1.167261237 | PE35: 1.16011712 | PF35: 1.152981278 | PG35: 1.145853702 | PH35: 1.138734383 | PI35: 1.131623311 | PJ35: 1.124520476 | PK35: 1.117425869 | PL35: 1.11033948 | PM35: 1.103261301 | PN35: 1.09619132 | PO35: 1.08912953 | PP35: 1.082075919 | PQ35: 1.07503048 | PR35: 1.067993202 | PS35: 1.060964076 | PT35: 1.053943092 | PU35: 1.046930242 | PV35: 1.039925515 | PW35: 1.032928902 | PX35: 1.025940394 | PY35: 1.018959982 | PZ35: 1.011987656 | QA35: 1.005023406 | QB35: 0.998067224 | QC35: 0.9911190997 | QD35: 0.9841790242 | QE35: 0.9772469879 | QF35: 0.9703229817 | QG35: 0.9634069962 | QH35: 0.9564990222 | QI35: 0.9495990503 | QJ35: 0.9427070712 | QK35: 0.9358230759 | QL35: 0.9289470548 | QM35: 0.922078999
A36: te | B36: 0 | C36: =B28 -> 898658077.6 | D36: =C36-(10*60*$H$24*(C37-$B$36)) -> 897617077.6 | E36: =D36-(10*60*$H$24*(D37-$B$36)) -> 896577283.5 | F36: 895538693.9 | G36: 894501307.4 | H36: 893465122.6 | I36: 892430138 | J36: 891396352.5 | K36: 890363764.4 | L36: 889332372.5 | M36: 888302175.3 | N36: 887273171.5 | O36: 886245359.7 | P36: 885218738.5 | Q36: 884193306.6 | R36: 883169062.5 | S36: 882146004.9 | T36: 881124132.4 | U36: 880103443.6 | V36: 879083937.1 | W36: 878065611.7 | X36: 877048465.9 | Y36: 876032498.3 | Z36: 875017707.7 | AA36: 874004092.5 | AB36: 872991651.6 | AC36: 871980383.4 | AD36: 870970286.7 | AE36: 869961360 | AF36: 868953602.1 | AG36: 867947011.6 | AH36: 866941587.1 | AI36: 865937327.3 | AJ36: 864934230.8 | AK36: 863932296.3 | AL36: 862931522.5 | AM36: 861931907.9 | AN36: 860933451.3 | AO36: 859936151.2 | AP36: 858940006.5 | AQ36: 857945015.6 | AR36: 856951177.4 | AS36: 855958490.4 | AT36: 854966953.4 | AU36: 853976564.9 | AV36: 852987323.7 | AW36: 851999228.4 | AX36: 851012277.7 | AY36: 850026470.3 | AZ36: 849041804.9 | BA36: 848058280.1 | BB36: 847075894.6 | BC36: 846094647 | BD36: 845114536.2 | BE36: 844135560.7 | BF36: 843157719.3 | BG36: 842181010.5 | BH36: 841205433.2 | BI36: 840230986 | BJ36: 839257667.6 | BK36: 838285476.7 | BL36: 837314411.9 | BM36: 836344472 | BN36: 835375655.7 | BO36: 834407961.7 | BP36: 833441388.6 | BQ36: =BP36-(10*60*$H$24*(BP37-$B$36)) -> 832475935.3 | BR36: 831511600.2 | BS36: 830548382.3 | BT36: 829586280.2 | BU36: 828625292.5 | BV36: 827665418.1 | BW36: 826706655.5 | BX36: 825749003.6 | BY36: 824792461 | BZ36: 823837026.5 | CA36: 822882698.8 | CB36: 821929476.5 | CC36: 820977358.4 | CD36: 820026343.3 | CE36: 819076429.8 | CF36: 818127616.7 | CG36: 817179902.7 | CH36: 816233286.5 | CI36: 815287766.9 | CJ36: 814343342.5 | CK36: 813400012.2 | CL36: 812457774.6 | CM36: 811516628.5 | CN36: 810576572.7 | CO36: 809637605.7 | CP36: 808699726.5 | CQ36: 807762933.7 | CR36: 806827226.1 | CS36: 805892602.4 | CT36: 804959061.3 | CU36: 804026601.7 | CV36: 803095222.2 | CW36: 802164921.6 | CX36: 801235698.7 | CY36: 800307552.2 | CZ36: 799380480.9 | DA36: 798454483.4 | DB36: 797529558.6 | DC36: 796605705.3 | DD36: 795682922.1 | DE36: 794761207.9 | DF36: 793840561.4 | DG36: 792920981.4 | DH36: 792002466.6 | DI36: 791085015.8 | DJ36: 790168627.8 | DK36: 789253301.3 | DL36: 788339035.1 | DM36: 787425828 | DN36: 786513678.8 | DO36: 785602586.1 | DP36: 784692548.9 | DQ36: 783783565.9 | DR36: 782875635.8 | DS36: 781968757.5 | DT36: 781062929.7 | DU36: 780158151.2 | DV36: 779254420.8 | DW36: 778351737.2 | DX36: 777450099.4 | DY36: 776549505.9 | DZ36: 775649955.8 | EA36: 774751447.6 | EB36: 773853980.3 | EC36: =EB36-(10*60*$H$24*(EB37-$B$36)) -> 772957552.6 | ED36: 772062163.3 | EE36: 771167811.2 | EF36: 770274495.2 | EG36: 769382213.9 | EH36: 768490966.3 | EI36: 767600751.1 | EJ36: 766711567.1 | EK36: 765823413.1 | EL36: 764936288 | EM36: 764050190.5 | EN36: 763165119.4 | EO36: 762281073.6 | EP36: 761398051.9 | EQ36: 760516053.1 | ER36: 759635076 | ES36: 758755119.4 | ET36: 757876182.1 | EU36: 756998263 | EV36: 756121360.8 | EW36: 755245474.5 | EX36: 754370602.8 | EY36: =EX36-(10*60*$H$24*(EX37-$B$36)) -> 753496744.5 | EZ36: 752623898.5 | FA36: 751752063.6 | FB36: 750881238.6 | FC36: 750011422.4 | FD36: 749142613.8 | FE36: 748274811.6 | FF36: 747408014.6 | FG36: 746542221.8 | FH36: 745677431.8 | FI36: 744813643.7 | FJ36: 743950856.1 | FK36: 743089068 | FL36: 742228278.2 | FM36: 741368485.5 | FN36: 740509688.8 | FO36: 739651886.9 | FP36: 738795078.7 | FQ36: 737939263.1 | FR36: 737084438.7 | FS36: 736230604.7 | FT36: 735377759.6 | FU36: 734525902.6 | FV36: 733675032.3 | FW36: 732825147.6 | FX36: 731976247.5 | FY36: 731128330.7 | FZ36: 730281396.1 | GA36: 729435442.6 | GB36: 728590469.1 | GC36: 727746474.3 | GD36: 726903457.3 | GE36: 726061416.8 | GF36: 725220351.7 | GG36: 724380260.9 | GH36: 723541143.3 | GI36: 722702997.6 | GJ36: 721865822.9 | GK36: 721029618 | GL36: 720194381.7 | GM36: 719360113 | GN36: 718526810.6 | GO36: 717694473.6 | GP36: 716863100.7 | GQ36: 716032690.9 | GR36: 715203243 | GS36: 714374756 | GT36: 713547228.6 | GU36: 712720659.9 | GV36: 711895048.7 | GW36: 711070393.8 | GX36: 710246694.2 | GY36: 709423948.8 | GZ36: 708602156.5 | HA36: 707781316.1 | HB36: 706961426.6 | HC36: 706142486.8 | HD36: 705324495.7 | HE36: 704507452.1 | HF36: 703691355 | HG36: 702876203.2 | HH36: 702061995.8 | HI36: 701248731.5 | HJ36: 700436409.2 | HK36: =HJ36-(10*60*$H$24*(HJ37-$B$36)) -> 699625028 | HL36: 698814586.7 | HM36: 698005084.1 | HN36: 697196519.3 | HO36: 696388891.2 | HP36: 695582198.5 | HQ36: 694776440.4 | HR36: 693971615.6 | HS36: 693167723.2 | HT36: 692364761.9 | HU36: 691562730.8 | HV36: 690761628.8 | HW36: 689961454.8 | HX36: 689162207.7 | HY36: 688363886.4 | HZ36: 687566489.9 | IA36: 686770017.1 | IB36: 685974466.9 | IC36: 685179838.3 | ID36: 684386130.2 | IE36: 683593341.5 | IF36: 682801471.2 | IG36: 682010518.2 | IH36: 681220481.4 | II36: 680431359.7 | IJ36: 679643152.2 | IK36: 678855857.8 | IL36: 678069475.3 | IM36: 677284003.8 | IN36: 676499442.2 | IO36: 675715789.4 | IP36: 674933044.3 | IQ36: 674151206 | IR36: 673370273.4 | IS36: 672590245.4 | IT36: 671811121 | IU36: 671032899.1 | IV36: 670255578.8 | IW36: 669479158.8 | IX36: 668703638.3 | IY36: 667929016.1 | IZ36: 667155291.2 | JA36: 666382462.6 | JB36: 665610529.3 | JC36: 664839490.1 | JD36: 664069344.1 | JE36: 663300090.3 | JF36: 662531727.5 | JG36: 661764254.8 | JH36: 660997671.2 | JI36: 660231975.5 | JJ36: 659467166.9 | JK36: 658703244.2 | JL36: 657940206.4 | JM36: 657178052.5 | JN36: 656416781.4 | JO36: 655656392.3 | JP36: 654896883.9 | JQ36: 654138255.4 | JR36: 653380505.7 | JS36: 652623633.7 | JT36: 651867638.5 | JU36: 651112519 | JV36: 650358274.3 | JW36: =JV36-(10*60*$H$24*(JV37-$B$36)) -> 649604903.2 | JX36: 648852404.9 | JY36: 648100778.3 | JZ36: 647350022.3 | KA36: 646600136 | KB36: 645851118.4 | KC36: 645102968.4 | KD36: 644355685.1 | KE36: 643609267.4 | KF36: 642863714.4 | KG36: 642119025 | KH36: 641375198.3 | KI36: 640632233.2 | KJ36: 639890128.7 | KK36: 639148883.9 | KL36: 638408497.8 | KM36: 637668969.3 | KN36: 636930297.5 | KO36: 636192481.4 | KP36: 635455519.9 | KQ36: 634719412.1 | KR36: 633984157 | KS36: 633249753.7 | KT36: 632516201.1 | KU36: 631783498.2 | KV36: 631051644.1 | KW36: 630320637.7 | KX36: 629590478.1 | KY36: 628861164.4 | KZ36: 628132695.5 | LA36: 627405070.4 | LB36: 626678288.3 | LC36: 625952348 | LD36: 625227248.6 | LE36: 624502989.2 | LF36: 623779568.8 | LG36: 623056986.4 | LH36: 622335241 | LI36: 621614331.6 | LJ36: 620894257.4 | LK36: 620175017.3 | LL36: 619456610.4 | LM36: 618739035.7 | LN36: 618022292.2 | LO36: 617306378.9 | LP36: 616591295 | LQ36: 615877039.4 | LR36: 615163611.3 | LS36: 614451009.5 | LT36: 613739233.2 | LU36: 613028281.5 | LV36: 612318153.3 | LW36: 611608847.7 | LX36: 610900363.7 | LY36: 610192700.5 | LZ36: 609485857 | MA36: 608779832.4 | MB36: 608074625.5 | MC36: 607370235.6 | MD36: 606666661.7 | ME36: 605963902.7 | MF36: 605261957.9 | MG36: 604560826.1 | MH36: 603860506.6 | MI36: =MH36-(10*60*$H$24*(MH37-$B$36)) -> 603160998.3 | MJ36: 602462300.3 | MK36: 601764411.7 | ML36: 601067331.5 | MM36: 600371058.8 | MN36: 599675592.6 | MO36: 598980932.1 | MP36: 598287076.2 | MQ36: 597594024.2 | MR36: 596901774.9 | MS36: 596210327.6 | MT36: 595519681.2 | MU36: 594829834.8 | MV36: 594140787.6 | MW36: 593452538.6 | MX36: 592765086.8 | MY36: 592078431.4 | MZ36: 591392571.3 | NA36: 590707505.8 | NB36: 590023233.9 | NC36: 589339754.6 | ND36: 588657067 | NE36: 587975170.3 | NF36: 587294063.5 | NG36: 586613745.6 | NH36: 585934215.9 | NI36: 585255473.3 | NJ36: 584577516.9 | NK36: 583900345.9 | NL36: 583223959.3 | NM36: 582548356.3 | NN36: 581873535.8 | NO36: 581199497.1 | NP36: 580526239.2 | NQ36: 579853761.1 | NR36: 579182062.1 | NS36: 578511141.2 | NT36: 577840997.4 | NU36: 577171629.9 | NV36: 576503037.9 | NW36: 575835220.3 | NX36: 575168176.3 | NY36: 574501905 | NZ36: 573836405.5 | OA36: 573171677 | OB36: 572507718.4 | OC36: 571844529 | OD36: 571182107.8 | OE36: 570520454 | OF36: 569859566.6 | OG36: 569199444.7 | OH36: 568540087.6 | OI36: 567881494.3 | OJ36: 567223663.8 | OK36: 566566595.4 | OL36: 565910288.1 | OM36: 565254741.1 | ON36: 564599953.5 | OO36: 563945924.4 | OP36: 563292652.9 | OQ36: 562640138.2 | OR36: 561988379.3 | OS36: 561337375.4 | OT36: 560687125.6 | OU36: =OT36-(10*60*$H$24*(OT37-$B$36)) -> 560037629.1 | OV36: 559388884.9 | OW36: 558740892.3 | OX36: 558093650.3 | OY36: 557447158 | OZ36: 556801414.6 | PA36: 556156419.3 | PB36: 555512171.1 | PC36: 554868669.2 | PD36: 554225912.8 | PE36: 553583900.9 | PF36: 552942632.7 | PG36: 552302107.3 | PH36: 551662324 | PI36: 551023281.7 | PJ36: 550384979.7 | PK36: 549747417.1 | PL36: 549110593.1 | PM36: 548474506.8 | PN36: 547839157.3 | PO36: 547204543.8 | PP36: 546570665.4 | PQ36: 545937521.3 | PR36: 545305110.6 | PS36: 544673432.5 | PT36: 544042486.1 | PU36: 543412270.7 | PV36: 542782785.2 | PW36: 542154029 | PX36: 541526001.1 | PY36: 540898700.7 | PZ36: 540272127 | QA36: 539646279 | QB36: 539021156.1 | QC36: 538396757.3 | QD36: 537773081.8 | QE36: 537150128.8 | QF36: 536527897.4 | QG36: 535906386.7 | QH36: 535285596.1 | QI36: 534665524.5 | QJ36: 534046171.3 | QK36: 533427535.5 | QL36: 532809616.3 | QM36: 532192412.9
A37: ti | B37: 5 | C37: 5 | D37: =D36/$G$25 -> 4.994208031 | E37: =E36/$G$25 -> 4.988422771 | F37: 4.982644212 | G37: 4.976872348 | H37: 4.97110717 | I37: 4.96534867 | J37: 4.95959684 | K37: 4.953851674 | L37: 4.948113162 | M37: 4.942381298 | N37: 4.936656074 | O37: 4.930937482 | P37: 4.925225514 | Q37: 4.919520163 | R37: 4.913821421 | S37: 4.908129281 | T37: 4.902443734 | U37: 4.896764773 | V37: 4.891092391 | W37: 4.88542658 | X37: 4.879767332 | Y37: 4.874114639 | Z37: 4.868468495 | AA37: 4.862828891 | AB37: 4.857195819 | AC37: 4.851569274 | AD37: 4.845949246 | AE37: 4.840335728 | AF37: 4.834728712 | AG37: 4.829128192 | AH37: 4.82353416 | AI37: 4.817946608 | AJ37: 4.812365528 | AK37: 4.806790913 | AL37: 4.801222756 | AM37: 4.795661049 | AN37: 4.790105785 | AO37: 4.784556956 | AP37: 4.779014554 | AQ37: 4.773478573 | AR37: 4.767949005 | AS37: 4.762425842 | AT37: 4.756909077 | AU37: 4.751398703 | AV37: 4.745894712 | AW37: 4.740397097 | AX37: 4.73490585 | AY37: 4.729420964 | AZ37: 4.723942432 | BA37: 4.718470246 | BB37: 4.713004399 | BC37: 4.707544883 | BD37: 4.702091692 | BE37: 4.696644818 | BF37: 4.691204254 | BG37: 4.685769991 | BH37: 4.680342024 | BI37: 4.674920345 | BJ37: 4.669504946 | BK37: 4.66409582 | BL37: 4.65869296 | BM37: 4.653296358 | BN37: 4.647906009 | BO37: 4.642521903 | BP37: 4.637144034 | BQ37: =BQ36/$G$25 -> 4.631772395 | BR37: 4.626406978 | BS37: 4.621047777 | BT37: 4.615694783 | BU37: 4.610347991 | BV37: 4.605007392 | BW37: 4.59967298 | BX37: 4.594344747 | BY37: 4.589022686 | BZ37: 4.58370679 | CA37: 4.578397052 | CB37: 4.573093465 | CC37: 4.567796022 | CD37: 4.562504715 | CE37: 4.557219538 | CF37: 4.551940483 | CG37: 4.546667543 | CH37: 4.541400711 | CI37: 4.53613998 | CJ37: 4.530885343 | CK37: 4.525636794 | CL37: 4.520394324 | CM37: 4.515157927 | CN37: 4.509927596 | CO37: 4.504703323 | CP37: 4.499485102 | CQ37: 4.494272927 | CR37: 4.489066788 | CS37: 4.483866681 | CT37: 4.478672597 | CU37: 4.47348453 | CV37: 4.468302473 | CW37: 4.463126419 | CX37: 4.457956361 | CY37: 4.452792292 | CZ37: 4.447634205 | DA37: 4.442482092 | DB37: 4.437335948 | DC37: 4.432195766 | DD37: 4.427061537 | DE37: 4.421933256 | DF37: 4.416810916 | DG37: 4.411694509 | DH37: 4.40658403 | DI37: 4.40147947 | DJ37: 4.396380823 | DK37: 4.391288082 | DL37: 4.386201241 | DM37: 4.381120293 | DN37: 4.37604523 | DO37: 4.370976046 | DP37: 4.365912734 | DQ37: 4.360855287 | DR37: 4.355803699 | DS37: 4.350757963 | DT37: 4.345718072 | DU37: 4.340684019 | DV37: 4.335655797 | DW37: 4.3306334 | DX37: 4.325616821 | DY37: 4.320606053 | DZ37: 4.315601089 | EA37: 4.310601924 | EB37: 4.305608549 | EC37: =EC36/$G$25 -> 4.300620958 | ED37: 4.295639145 | EE37: 4.290663103 | EF37: 4.285692826 | EG37: 4.280728305 | EH37: 4.275769536 | EI37: 4.270816511 | EJ37: 4.265869223 | EK37: 4.260927666 | EL37: 4.255991834 | EM37: 4.251061719 | EN37: 4.246137315 | EO37: 4.241218616 | EP37: 4.236305614 | EQ37: 4.231398304 | ER37: 4.226496678 | ES37: 4.22160073 | ET37: 4.216710454 | EU37: 4.211825842 | EV37: 4.206946889 | EW37: 4.202073588 | EX37: 4.197205931 | EY37: =EY36/$G$25 -> 4.192343914 | EZ37: 4.187487528 | FA37: 4.182636769 | FB37: 4.177791628 | FC37: 4.1729521 | FD37: 4.168118178 | FE37: 4.163289855 | FF37: 4.158467126 | FG37: 4.153649983 | FH37: 4.14883842 | FI37: 4.144032431 | FJ37: 4.13923201 | FK37: 4.134437149 | FL37: 4.129647842 | FM37: 4.124864083 | FN37: 4.120085866 | FO37: 4.115313184 | FP37: 4.11054603 | FQ37: 4.105784399 | FR37: 4.101028284 | FS37: 4.096277678 | FT37: 4.091532575 | FU37: 4.086792969 | FV37: 4.082058853 | FW37: 4.077330221 | FX37: 4.072607066 | FY37: 4.067889383 | FZ37: 4.063177165 | GA37: 4.058470406 | GB37: 4.053769099 | GC37: 4.049073237 | GD37: 4.044382816 | GE37: 4.039697828 | GF37: 4.035018266 | GG37: 4.030344126 | GH37: 4.0256754 | GI37: 4.021012082 | GJ37: 4.016354167 | GK37: 4.011701647 | GL37: 4.007054516 | GM37: 4.002412769 | GN37: 3.997776398 | GO37: 3.993145399 | GP37: 3.988519764 | GQ37: 3.983899487 | GR37: 3.979284562 | GS37: 3.974674983 | GT37: 3.970070744 | GU37: 3.965471839 | GV37: 3.96087826 | GW37: 3.956290003 | GX37: 3.951707061 | GY37: 3.947129428 | GZ37: 3.942557098 | HA37: 3.937990064 | HB37: 3.93342832 | HC37: 3.928871861 | HD37: 3.92432068 | HE37: 3.919774771 | HF37: 3.915234128 | HG37: 3.910698745 | HH37: 3.906168615 | HI37: 3.901643734 | HJ37: 3.897124093 | HK37: =HK36/$G$25 -> 3.892609689 | HL37: 3.888100514 | HM37: 3.883596562 | HN37: 3.879097827 | HO37: 3.874604304 | HP37: 3.870115987 | HQ37: 3.865632868 | HR37: 3.861154943 | HS37: 3.856682204 | HT37: 3.852214647 | HU37: 3.847752266 | HV37: 3.843295053 | HW37: 3.838843004 | HX37: 3.834396111 | HY37: 3.829954371 | HZ37: 3.825517775 | IA37: 3.821086319 | IB37: 3.816659996 | IC37: 3.8122388 | ID37: 3.807822726 | IE37: 3.803411768 | IF37: 3.799005919 | IG37: 3.794605174 | IH37: 3.790209526 | II37: 3.785818971 | IJ37: 3.781433501 | IK37: 3.777053112 | IL37: 3.772677797 | IM37: 3.76830755 | IN37: 3.763942366 | IO37: 3.759582238 | IP37: 3.755227161 | IQ37: 3.750877129 | IR37: 3.746532136 | IS37: 3.742192176 | IT37: 3.737857244 | IU37: 3.733527333 | IV37: 3.729202438 | IW37: 3.724882552 | IX37: 3.720567671 | IY37: 3.716257789 | IZ37: 3.711952898 | JA37: 3.707652995 | JB37: 3.703358073 | JC37: 3.699068125 | JD37: 3.694783147 | JE37: 3.690503133 | JF37: 3.686228077 | JG37: 3.681957973 | JH37: 3.677692816 | JI37: 3.673432599 | JJ37: 3.669177317 | JK37: 3.664926965 | JL37: 3.660681536 | JM37: 3.656441025 | JN37: 3.652205426 | JO37: 3.647974734 | JP37: 3.643748942 | JQ37: 3.639528046 | JR37: 3.635312039 | JS37: 3.631100916 | JT37: 3.626894671 | JU37: 3.622693298 | JV37: 3.618496792 | JW37: =JW36/$G$25 -> 3.614305148 | JX37: 3.610118359 | JY37: 3.60593642 | JZ37: 3.601759325 | KA37: 3.59758707 | KB37: 3.593419647 | KC37: 3.589257052 | KD37: 3.585099278 | KE37: 3.580946321 | KF37: 3.576798175 | KG37: 3.572654834 | KH37: 3.568516292 | KI37: 3.564382545 | KJ37: 3.560253586 | KK37: 3.55612941 | KL37: 3.552010012 | KM37: 3.547895385 | KN37: 3.543785525 | KO37: 3.539680426 | KP37: 3.535580082 | KQ37: 3.531484487 | KR37: 3.527393637 | KS37: 3.523307526 | KT37: 3.519226148 | KU37: 3.515149498 | KV37: 3.511077571 | KW37: 3.50701036 | KX37: 3.502947861 | KY37: 3.498890068 | KZ37: 3.494836975 | LA37: 3.490788577 | LB37: 3.486744869 | LC37: 3.482705845 | LD37: 3.4786715 | LE37: 3.474641828 | LF37: 3.470616825 | LG37: 3.466596483 | LH37: 3.462580799 | LI37: 3.458569767 | LJ37: 3.454563381 | LK37: 3.450561636 | LL37: 3.446564527 | LM37: 3.442572047 | LN37: 3.438584193 | LO37: 3.434600958 | LP37: 3.430622338 | LQ37: 3.426648326 | LR37: 3.422678917 | LS37: 3.418714107 | LT37: 3.41475389 | LU37: 3.41079826 | LV37: 3.406847212 | LW37: 3.402900741 | LX37: 3.398958842 | LY37: 3.395021509 | LZ37: 3.391088737 | MA37: 3.38716052 | MB37: 3.383236854 | MC37: 3.379317734 | MD37: 3.375403153 | ME37: 3.371493106 | MF37: 3.367587589 | MG37: 3.363686597 | MH37: 3.359790123 | MI37: =MI36/$G$25 -> 3.355898162 | MJ37: 3.352010711 | MK37: 3.348127762 | ML37: 3.344249311 | MM37: 3.340375353 | MN37: 3.336505883 | MO37: 3.332640895 | MP37: 3.328780385 | MQ37: 3.324924346 | MR37: 3.321072774 | MS37: 3.317225663 | MT37: 3.31338301 | MU37: 3.309544807 | MV37: 3.305711051 | MW37: 3.301881735 | MX37: 3.298056856 | MY37: 3.294236407 | MZ37: 3.290420384 | NA37: 3.286608781 | NB37: 3.282801594 | NC37: 3.278998816 | ND37: 3.275200444 | NE37: 3.271406472 | NF37: 3.267616895 | NG37: 3.263831708 | NH37: 3.260050905 | NI37: 3.256274482 | NJ37: 3.252502434 | NK37: 3.248734755 | NL37: 3.24497144 | NM37: 3.241212485 | NN37: 3.237457885 | NO37: 3.233707633 | NP37: 3.229961726 | NQ37: 3.226220159 | NR37: 3.222482925 | NS37: 3.218750021 | NT37: 3.21502144 | NU37: 3.211297179 | NV37: 3.207577232 | NW37: 3.203861594 | NX37: 3.200150261 | NY37: 3.196443226 | NZ37: 3.192740486 | OA37: 3.189042035 | OB37: 3.185347869 | OC37: 3.181657981 | OD37: 3.177972368 | OE37: 3.174291024 | OF37: 3.170613945 | OG37: 3.166941125 | OH37: 3.16327256 | OI37: 3.159608245 | OJ37: 3.155948174 | OK37: 3.152292343 | OL37: 3.148640747 | OM37: 3.144993381 | ON37: 3.14135024 | OO37: 3.137711319 | OP37: 3.134076613 | OQ37: 3.130446118 | OR37: 3.126819829 | OS37: 3.12319774 | OT37: 3.119579847 | OU37: =OU36/$G$25 -> 3.115966145 | OV37: 3.112356628 | OW37: 3.108751294 | OX37: 3.105150135 | OY37: 3.101553148 | OZ37: 3.097960328 | PA37: 3.09437167 | PB37: 3.090787169 | PC37: 3.08720682 | PD37: 3.083630619 | PE37: 3.08005856 | PF37: 3.076490639 | PG37: 3.072926851 | PH37: 3.069367191 | PI37: 3.065811655 | PJ37: 3.062260238 | PK37: 3.058712934 | PL37: 3.05516974 | PM37: 3.05163065 | PN37: 3.04809566 | PO37: 3.044564765 | PP37: 3.04103796 | PQ37: 3.03751524 | PR37: 3.033996601 | PS37: 3.030482038 | PT37: 3.026971546 | PU37: 3.023465121 | PV37: 3.019962757 | PW37: 3.016464451 | PX37: 3.012970197 | PY37: 3.009479991 | PZ37: 3.005993828 | QA37: 3.002511703 | QB37: 2.999033612 | QC37: 2.99555955 | QD37: 2.992089512 | QE37: 2.988623494 | QF37: 2.985161491 | QG37: 2.981703498 | QH37: 2.978249511 | QI37: 2.974799525 | QJ37: 2.971353536 | QK37: 2.967911538 | QL37: 2.964473527 | QM37: 2.961039499

Sheet Konstanty
A1: Životnost | B1: roky | C1: 20
A2: Přepočet | B2: měsíce | C2: 12
A3: Diskont | B3: - | C3: 0.03
A5: Sazba | C5: D45d | D5: 4 | E5: <- vychází z výpočtu v Cena energie
A6: Platba za jistič | B6: Kč/měsíc | C6: 363
A7: Platba za silovou | B7: Kč/měsíc | C7: 72.6
A8: NT
A9: Platba - distribuce | B9: Kč/MWh | C9: 44.7
A10: Platba - silová | B10: Kč/MWh | C10: 1560
A11: VT
A12: Platba - distribuce | B12: Kč/MWh | C12: 302.48
A13: Platba - silová | B13: Kč/MWh | C13: 1786.32
A14: Ostatní
A15: Systémové služby | B15: Kč/MWh | C15: 127.38
A16: Podpora výkupu | B16: =$B$13 -> Kč/MWh | C16: 598.95
A17: OTE | B17: Kč/MWh | C17: 8.4
A19: CYKY | B19: 5x | C19: 3
A20: Cena | B20: Kč/m | C20: 59
A21: Měď
A22: Rezistivita | B22: 10-6 Rho m | C22: 0.0175
A23: Alpha | B23: K-1 | C23: 0.0068
A25: Hustota vzduchu | B25: teplota | C25: °C | D25: -18 | E25: -17 | F25: -16 | G25: -15 | H25: -14 | I25: -13 | J25: -12 | K25: -11 | L25: -10 | M25: -9 | N25: -8 | O25: -7 | P25: -6 | Q25: -5 | R25: -4 | S25: -3 | T25: -2 | U25: -1 | V25: 0 | W25: 1 | X25: 2 | Y25: 3 | Z25: 4 | AA25: 5
B26: hustota | C26: kgm-3 | D26: 1.283 | E26: 1.278 | F26: 1.273 | G26: 1.268 | H26: 1.264 | I26: 1.259 | J26: 1.254 | K26: 1.249 | L26: 1.244 | M26: 1.24 | N26: 1.235 | O26: 1.23 | P26: 1.226 | Q26: 1.221 | R26: 1.217 | S26: 1.212 | T26: 1.208 | U26: 1.203 | V26: 1.199 | W26: 1.194 | X26: 1.19 | Y26: 1.186 | Z26: 1.181 | AA26: 1.177

Sheet List elektráren
A1: Kód | B1: Rychlost | C1: Rozběh | D1: Doběh | E1: Výkon | F1: při Rychlosti | G1: Vyrobená energie | H1: Při rychlosti | I1: Plocha | J1: Prumer | K1: Odkaz
A2: 1 | B2: Air breeze | C2: 2.68 | D2: 50 | E2: 160 | F2: 12.5 | G2: =38*12 -> 456 | H2: 5.4 | I2: =PI()*(J2*J2/4) -> 1.075131546 | J2: 1.17 | K2: http://www.energyforever.cz/vfdata/Vetrne_elektrarny/3-CMLT-1095_Air_Breeze_spec.pdf
A3: 2 | B3: Hy 3000W | C3: 2.5 | D3: 50 | E3: 3000 | F3: 12 | G3: 3360 | H3: 3.5 | I3: =PI()*(J3*J3/4) -> 7.068583471 | J3: 3 | K3: http://www.hyenergy.com.cn/a/English/HY_3000/20150902/398.html
A4: 3 | B4: Savonius | C4: 4 | D4: 20 | E4: 300 | F4: 15 | I4: 3.125

Sheet NPV Graphs
A2: Rychlost větru | B2: 2 | C2: 2.5 | D2: 3 | E2: 3.5 | F2: 4 | G2: 4.5 | H2: 5 | I2: 5.5 | J2: 6 | K2: 6.5 | L2: 7 | M2: 7.5 | N2: 8 | O2: 8.5 | P2: 9 | Q2: 9.5 | R2: 10
A3: Rocni uspora | B3: 822.1916728 | C3: 1570.08142 | D3: 2593.581583 | E3: 3958.507066 | F3: 5445.862156 | G3: 6993.549684 | H3: 8513.076265 | I3: 9935.073398 | J3: 11267.12744 | K3: 12429.23914 | L3: 13553.80448 | M3: 14367.35246 | N3: 15052.11455 | O3: 15718.29164 | P3: 16195.63513 | Q3: 16593.68154 | R3: 16986.6748
A4: 10000 | B4: 4866.236242 | C4: 18389.00232 | D4: 36895.14355 | E4: 61574.67432 | F4: 88467.88289 | G4: 116451.9761 | H4: 143926.8848 | I4: 169638.3412 | J4: 193723.5158 | K4: 214735.9241 | L4: 235069.4481 | M4: 249779.3955 | N4: 262160.736 | O4: 274206.0368 | P4: 282836.9939 | Q4: 290034.1624 | R4: 297139.9638
A5: 20000 | B5: -5133.763758 | C5: 8389.002324 | D5: 26895.14355 | E5: 51574.67432 | F5: 78467.88289 | G5: 106451.9761 | H5: 133926.8848 | I5: 159638.3412 | J5: 183723.5158 | K5: 204735.9241 | L5: 225069.4481 | M5: 239779.3955 | N5: 252160.736 | O5: 264206.0368 | P5: 272836.9939 | Q5: 280034.1624 | R5: 287139.9638
A6: 30000 | B6: -15133.76376 | C6: -1610.997676 | D6: 16895.14355 | E6: 41574.67432 | F6: 68467.88289 | G6: 96451.97611 | H6: 123926.8848 | I6: 149638.3412 | J6: 173723.5158 | K6: 194735.9241 | L6: 215069.4481 | M6: 229779.3955 | N6: 242160.736 | O6: 254206.0368 | P6: 262836.9939 | Q6: 270034.1624 | R6: 277139.9638
A7: 40000 | B7: -25133.76376 | C7: -11610.99768 | D7: 6895.143551 | E7: 31574.67432 | F7: 58467.88289 | G7: 86451.97611 | H7: 113926.8848 | I7: 139638.3412 | J7: 163723.5158 | K7: 184735.9241 | L7: 205069.4481 | M7: 219779.3955 | N7: 232160.736 | O7: 244206.0368 | P7: 252836.9939 | Q7: 260034.1624 | R7: 267139.9638
A8: 50000 | B8: -35133.76376 | C8: -21610.99768 | D8: -3104.856449 | E8: 21574.67432 | F8: 48467.88289 | G8: 76451.97611 | H8: 103926.8848 | I8: 129638.3412 | J8: 153723.5158 | K8: 174735.9241 | L8: 195069.4481 | M8: 209779.3955 | N8: 222160.736 | O8: 234206.0368 | P8: 242836.9939 | Q8: 250034.1624 | R8: 257139.9638
A9: 60000 | B9: -45133.76376 | C9: -31610.99768 | D9: -13104.85645 | E9: 11574.67432 | F9: 38467.88289 | G9: 66451.97611 | H9: 93926.8848 | I9: 119638.3412 | J9: 143723.5158 | K9: 164735.9241 | L9: 185069.4481 | M9: 199779.3955 | N9: 212160.736 | O9: 224206.0368 | P9: 232836.9939 | Q9: 240034.1624 | R9: 247139.9638
A10: 70000 | B10: -55133.76376 | C10: -41610.99768 | D10: -23104.85645 | E10: 1574.674316 | F10: 28467.88289 | G10: 56451.97611 | H10: 83926.8848 | I10: 109638.3412 | J10: 133723.5158 | K10: 154735.9241 | L10: 175069.4481 | M10: 189779.3955 | N10: 202160.736 | O10: 214206.0368 | P10: 222836.9939 | Q10: 230034.1624 | R10: 237139.9638
A11: 80000 | B11: -65133.76376 | C11: -51610.99768 | D11: -33104.85645 | E11: -8425.325684 | F11: 18467.88289 | G11: 46451.97611 | H11: 73926.8848 | I11: 99638.34116 | J11: 123723.5158 | K11: 144735.9241 | L11: 165069.4481 | M11: 179779.3955 | N11: 192160.736 | O11: 204206.0368 | P11: 212836.9939 | Q11: 220034.1624 | R11: 227139.9638
A12: 90000 | B12: -75133.76376 | C12: -61610.99768 | D12: -43104.85645 | E12: -18425.32568 | F12: 8467.882892 | G12: 36451.97611 | H12: 63926.8848 | I12: 89638.34116 | J12: 113723.5158 | K12: 134735.9241 | L12: 155069.4481 | M12: 169779.3955 | N12: 182160.736 | O12: 194206.0368 | P12: 202836.9939 | Q12: 210034.1624 | R12: 217139.9638
A13: 100000 | B13: -85133.76376 | C13: -71610.99768 | D13: -53104.85645 | E13: -28425.32568 | F13: -1532.117108 | G13: 26451.97611 | H13: 53926.8848 | I13: 79638.34116 | J13: 103723.5158 | K13: 124735.9241 | L13: 145069.4481 | M13: 159779.3955 | N13: 172160.736 | O13: 184206.0368 | P13: 192836.9939 | Q13: 200034.1624 | R13: 207139.9638
A14: 110000 | B14: -95133.76376 | C14: -81610.99768 | D14: -63104.85645 | E14: -38425.32568 | F14: -11532.11711 | G14: 16451.97611 | H14: 43926.8848 | I14: 69638.34116 | J14: 93723.51577 | K14: 114735.9241 | L14: 135069.4481 | M14: 149779.3955 | N14: 162160.736 | O14: 174206.0368 | P14: 182836.9939 | Q14: 190034.1624 | R14: 197139.9638
A15: 120000 | B15: -105133.7638 | C15: -91610.99768 | D15: -73104.85645 | E15: -48425.32568 | F15: -21532.11711 | G15: 6451.976111 | H15: 33926.8848 | I15: 59638.34116 | J15: 83723.51577 | K15: 104735.9241 | L15: 125069.4481 | M15: 139779.3955 | N15: 152160.736 | O15: 164206.0368 | P15: 172836.9939 | Q15: 180034.1624 | R15: 187139.9638
A16: 130000 | B16: -115133.7638 | C16: -101610.9977 | D16: -83104.85645 | E16: -58425.32568 | F16: -31532.11711 | G16: -3548.023889 | H16: 23926.8848 | I16: 49638.34116 | J16: 73723.51577 | K16: 94735.92409 | L16: 115069.4481 | M16: 129779.3955 | N16: 142160.736 | O16: 154206.0368 | P16: 162836.9939 | Q16: 170034.1624 | R16: 177139.9638
A17: 140000 | B17: -125133.7638 | C17: -111610.9977 | D17: -93104.85645 | E17: -68425.32568 | F17: -41532.11711 | G17: -13548.02389 | H17: 13926.8848 | I17: 39638.34116 | J17: 63723.51577 | K17: 84735.92409 | L17: 105069.4481 | M17: 119779.3955 | N17: 132160.736 | O17: 144206.0368 | P17: 152836.9939 | Q17: 160034.1624 | R17: 167139.9638
A18: 150000 | B18: -135133.7638 | C18: -121610.9977 | D18: -103104.8564 | E18: -78425.32568 | F18: -51532.11711 | G18: -23548.02389 | H18: 3926.884801 | I18: 29638.34116 | J18: 53723.51577 | K18: 74735.92409 | L18: 95069.44805 | M18: 109779.3955 | N18: 122160.736 | O18: 134206.0368 | P18: 142836.9939 | Q18: 150034.1624 | R18: 157139.9638
A19: 160000 | B19: -145133.7638 | C19: -131610.9977 | D19: -113104.8564 | E19: -88425.32568 | F19: -61532.11711 | G19: -33548.02389 | H19: -6073.115199 | I19: 19638.34116 | J19: 43723.51577 | K19: 64735.92409 | L19: 85069.44805 | M19: 99779.39555 | N19: 112160.736 | O19: 124206.0368 | P19: 132836.9939 | Q19: 140034.1624 | R19: 147139.9638
A20: 170000 | B20: -155133.7638 | C20: -141610.9977 | D20: -123104.8564 | E20: -98425.32568 | F20: -71532.11711 | G20: -43548.02389 | H20: -16073.1152 | I20: 9638.341157 | J20: 33723.51577 | K20: 54735.92409 | L20: 75069.44805 | M20: 89779.39555 | N20: 102160.736 | O20: 114206.0368 | P20: 122836.9939 | Q20: 130034.1624 | R20: 137139.9638
A21: 180000 | B21: -165133.7638 | C21: -151610.9977 | D21: -133104.8564 | E21: -108425.3257 | F21: -81532.11711 | G21: -53548.02389 | H21: -26073.1152 | I21: -361.658843 | J21: 23723.51577 | K21: 44735.92409 | L21: 65069.44805 | M21: 79779.39555 | N21: 92160.73604 | O21: 104206.0368 | P21: 112836.9939 | Q21: 120034.1624 | R21: 127139.9638
A22: 190000 | B22: -175133.7638 | C22: -161610.9977 | D22: -143104.8564 | E22: -118425.3257 | F22: -91532.11711 | G22: -63548.02389 | H22: -36073.1152 | I22: -10361.65884 | J22: 13723.51577 | K22: 34735.92409 | L22: 55069.44805 | M22: 69779.39555 | N22: 82160.73604 | O22: 94206.03681 | P22: 102836.9939 | Q22: 110034.1624 | R22: 117139.9638
A23: 200000 | B23: -185133.7638 | C23: -171610.9977 | D23: -153104.8564 | E23: -128425.3257 | F23: -101532.1171 | G23: -73548.02389 | H23: -46073.1152 | I23: -20361.65884 | J23: 3723.515774 | K23: 24735.92409 | L23: 45069.44805 | M23: 59779.39555 | N23: 72160.73604 | O23: 84206.03681 | P23: 92836.99392 | Q23: 100034.1624 | R23: 107139.9638
P28: Spočte hodnoty ročních úspor pro danou rychlost větru
P29: Ostatní hodnoty jsou vzaty z výpočtu vyrobené energie
P30: Tj. výpočet je prováděn pro stejnou velikost, cp atd

Sheet NPV
A1: Diskont | B1: - | C1: 0.03 | D1: 0.03
A2: Růst cen | B2: - | C2: 0.02 | D2: 0.02
A3: Investiční náklady | B3: Kč | C3: 115000
A4: Úspora | B4: Kč/rok | C4: 5072.219178
A5: Životnost | B5: roky | C5: 15 | E5: =IF(E6>$C$5,0,1) -> 1 | F5: =IF(F6>$C$5,0,1) -> 1 | G5: 1 | H5: 1 | I5: 1 | J5: 1 | K5: 1 | L5: 1 | M5: 1 | N5: 1 | O5: 1 | P5: 1 | Q5: 1 | R5: 1 | S5: 1 | T5: 1 | U5: 0 | V5: 0 | W5: 0 | X5: 0 | Y5: 0 | Z5: =IF(Z6>$C$5,0,1) -> 0 | AA5: 0 | AB5: 0 | AC5: 0 | AD5: 0 | AE5: 0 | AF5: 0 | AG5: 0 | AH5: 0 | AI5: 0
D6: Rok | E6: 0 | F6: 1 | G6: 2 | H6: 3 | I6: 4 | J6: 5 | K6: 6 | L6: 7 | M6: 8 | N6: 9 | O6: 10 | P6: 11 | Q6: 12 | R6: 13 | S6: 14 | T6: 15 | U6: 16 | V6: 17 | W6: 18 | X6: 19 | Y6: 20 | Z6: 21 | AA6: 22 | AB6: 23 | AC6: 24 | AD6: 25 | AE6: 26 | AF6: 27 | AG6: 28 | AH6: 29 | AI6: 30
D7: CF | E7: =-C3 -> -115000 | F7: =F5*$C$4 -> 5072.219178 | G7: =G5*$C$4 -> 5072.219178 | H7: 5072.219178 | I7: 5072.219178 | J7: 5072.219178 | K7: 5072.219178 | L7: 5072.219178 | M7: 5072.219178 | N7: 5072.219178 | O7: 5072.219178 | P7: 5072.219178 | Q7: 5072.219178 | R7: 5072.219178 | S7: 5072.219178 | T7: 5072.219178 | U7: 0 | V7: 0 | W7: 0 | X7: 0 | Y7: 0 | Z7: 0 | AA7: 0 | AB7: 0 | AC7: 0 | AD7: 0 | AE7: 0 | AF7: 0 | AG7: 0 | AH7: 0 | AI7: 0
D8: Úspora | F8: =$C$4*(1+$C$2)^F6 -> 5173.663562 | G8: =$C$4*(1+$C$2)^G6 -> 5277.136833 | H8: 5382.67957 | I8: 5490.333161 | J8: 5600.139824 | K8: 5712.142621 | L8: 5826.385473 | M8: 5942.913182 | N8: 6061.771446 | O8: 6183.006875 | P8: 6306.667013 | Q8: 6432.800353 | R8: 6561.45636 | S8: 6692.685487 | T8: 6826.539197 | U8: 6963.069981 | V8: 7102.33138 | W8: 7244.378008 | X8: 7389.265568 | Y8: 7537.05088 | Z8: =$C$4*(1+$C$2)^Z6 -> 7687.791897 | AA8: 7841.547735 | AB8: 7998.37869 | AC8: 8158.346264 | AD8: 8321.513189 | AE8: 8487.943453 | AF8: 8657.702322 | AG8: 8830.856368 | AH8: 9007.473495 | AI8: 9187.622965
D9: Investice | E9: =-C3 -> -115000
D10: CF | E10: =SUM(E8:E9) -> -115000 | F10: =SUM(F8:F9) -> 5173.663562 | G10: =SUM(G8:G9) -> 5277.136833 | H10: 5382.67957 | I10: 5490.333161 | J10: 5600.139824 | K10: 5712.142621 | L10: 5826.385473 | M10: 5942.913182 | N10: 6061.771446 | O10: 6183.006875 | P10: 6306.667013 | Q10: 6432.800353 | R10: 6561.45636 | S10: 6692.685487 | T10: 6826.539197 | U10: 6963.069981 | V10: 7102.33138 | W10: 7244.378008 | X10: 7389.265568 | Y10: 7537.05088 | Z10: =SUM(Z8:Z9) -> 7687.791897 | AA10: 7841.547735 | AB10: 7998.37869 | AC10: 8158.346264 | AD10: 8321.513189 | AE10: 8487.943453 | AF10: 8657.702322 | AG10: 8830.856368 | AH10: 9007.473495 | AI10: 9187.622965
D11: DCF | E11: =E5*E10/(1+$C$1)^E6 -> -115000 | F11: =F5*F10/(1+$C$1)^F6 -> 5022.974332 | G11: =G5*G10/(1+$C$1)^G6 -> 4974.207591 | H11: 4925.914313 | I11: 4878.089902 | J11: 4830.729806 | K11: 4783.829517 | L11: 4737.38457 | M11: 4691.390545 | N11: 4645.843064 | O11: 4600.737792 | P11: 4556.070434 | Q11: 4511.836741 | R11: 4468.032501 | S11: 4424.653544 | T11: 4381.695743 | U11: 0 | V11: 0 | W11: 0 | X11: 0 | Y11: 0 | Z11: 0 | AA11: 0 | AB11: 0 | AC11: 0 | AD11: 0 | AE11: 0 | AF11: 0 | AG11: 0 | AH11: 0 | AI11: 0
D12: NPV | E12: =NPV(C1-C2,E7:AI7) -> -44231.10368
D13: RCF | E13: =PMT(C1-C2,C5,-E12) -> -3190.114399
D14: a | E14: =(E15^(-1)-1)/(E15^(-C5)-1) -> 0.07140968335
D15: q | E15: =1+C1-C2 -> 1.01

Sheet Výpočty - Varianta A
A1: Číslo elektrárny | B1: 1 | C1: -
A2: Rychlost větru | B2: 3.5 | C2: m/s
A3: Parametr k | B3: ='Průběh rychlosti větru'!B8 -> 2 | C3: -
A4: Obdobi | B4: 8760 | C4: h
A5: Plocha rotoru | B5: 1.075 | C5: m2
A6: Vyrobena energie | B6: 456 | C6: kWh
A7: Ucinnost | B7: 0.27 | C7: - | E7: Rychlost vetru | F7: m/s | G7: 0 | H7: 0.2 | I7: =H7+($H$7-$G$7) -> 0.4 | J7: =I7+($H$7-$G$7) -> 0.6 | K7: 0.8 | L7: 1 | M7: 1.2 | N7: 1.4 | O7: 1.6 | P7: 1.8 | Q7: 2 | R7: 2.2 | S7: 2.4 | T7: 2.6 | U7: 2.8 | V7: 3 | W7: 3.2 | X7: 3.4 | Y7: 3.6 | Z7: 3.8 | AA7: 4 | AB7: 4.2 | AC7: 4.4 | AD7: 4.6 | AE7: 4.8 | AF7: 5 | AG7: 5.2 | AH7: 5.4 | AI7: 5.6 | AJ7: 5.8 | AK7: 6 | AL7: 6.2 | AM7: 6.4 | AN7: 6.6 | AO7: 6.8 | AP7: 7 | AQ7: 7.2 | AR7: 7.4 | AS7: 7.6 | AT7: 7.8 | AU7: 8 | AV7: 8.2 | AW7: 8.4 | AX7: 8.6 | AY7: 8.8 | AZ7: 9 | BA7: 9.2 | BB7: 9.4 | BC7: 9.6 | BD7: 9.8 | BE7: 10 | BF7: 10.2 | BG7: 10.4 | BH7: 10.6 | BI7: 10.8 | BJ7: 11 | BK7: 11.2 | BL7: 11.4 | BM7: 11.6 | BN7: 11.8 | BO7: 12 | BP7: 12.2 | BQ7: 12.4 | BR7: 12.6 | BS7: 12.8 | BT7: 13 | BU7: 13.2 | BV7: =BU7+($H$7-$G$7) -> 13.4 | BW7: 13.6 | BX7: 13.8 | BY7: 14 | BZ7: 14.2 | CA7: 14.4 | CB7: 14.6 | CC7: 14.8 | CD7: 15 | CE7: 15.2 | CF7: 15.4 | CG7: 15.6 | CH7: 15.8 | CI7: 16 | CJ7: 16.2 | CK7: 16.4 | CL7: 16.6 | CM7: 16.8 | CN7: 17 | CO7: 17.2 | CP7: 17.4 | CQ7: 17.6 | CR7: 17.8 | CS7: 18 | CT7: 18.2 | CU7: 18.4 | CV7: 18.6 | CW7: 18.8 | CX7: 19 | CY7: 19.2 | CZ7: 19.4 | DA7: 19.6 | DB7: 19.8 | DC7: 20
B8: 2.68 | E8: Rozdeleni | F8: - | G8: =_xlfn.WEIBULL.DIST(G7,$B$2/0.886,$B$3,FALSE) -> 0 | H8: =_xlfn.WEIBULL.DIST(H7,$B$3,$B$2/0.886,FALSE) -> 0.02556690396 | I8: =_xlfn.WEIBULL.DIST(I7,$B$3,$B$2/0.886,FALSE) -> 0.05074210934 | J8: 0.07514390225 | K8: 0.09841018242 | L8: 0.120207397 | M8: 0.1402384716 | N8: 0.1582494748 | O8: 0.1740348126 | P8: 0.1874408069 | Q8: 0.1983675894 | R8: 0.2067693053 | S8: =_xlfn.WEIBULL.DIST(S7,$B$3,$B$2/0.886,FALSE) -> 0.2126526918 | T8: 0.2160741599 | U8: 0.2171355565 | V8: 0.2159788312 | W8: 0.212779858 | X8: 0.2077416829 | Y8: 0.2010874693 | Z8: 0.1930534072 | AA8: 0.1838818311 | AB8: 0.1738147629 | AC8: 0.1630880632 | AD8: 0.1519263299 | AE8: 0.1405386431 | AF8: 0.1291152124 | AG8: 0.1178249412 | AH8: 0.1068138856 | AI8: 0.09620455478 | AJ8: 0.08609597354 | AK8: 0.07656440749 | AL8: 0.06766464077 | AM8: 0.05943168831 | AN8: 0.0518828255 | AO8: 0.04501982205 | AP8: 0.03883127641 | AQ8: 0.03329495828 | AR8: 0.02838008148 | AS8: 0.02404944385 | AT8: 0.02026138656 | AU8: 0.01697153987 | AV8: 0.01413433574 | AW8: 0.01170428029 | AX8: 0.009636988545 | AY8: =_xlfn.WEIBULL.DIST(AY7,$B$3,$B$2/0.886,FALSE) -> 0.007889992949 | AZ8: 0.006423342669 | BA8: 0.005200015465 | BB8: 0.00418616628 | BC8: 0.003351237873 | BD8: 0.002667958602 | BE8: 0.002112251302 | BF8: 0.00166307533 | BG8: 0.001302221434 | BH8: 0.001014076464 | BI8: 0.00078537219 | BJ8: 0.0006049297749 | BK8: 0.0004634089303 | BL8: 0.0003530684532 | BM8: 0.0002675428368 | BN8: 0.0002016379196 | BO8: 0.0001511471269 | BP8: 0.0001126887387 | BQ8: 8.356376457e-05 | BR8: 6.163339182e-05 | BS8: 4.521455827e-05 | BT8: 3.299195578e-05 | BU8: 2.394465667e-05 | BV8: 1.728554364e-05 | BW8: 1.241178665e-05 | BX8: 8.864723943e-06 | BY8: 6.297649537e-06 | BZ8: 4.450171091e-06 | CA8: 3.12796838e-06 | CB8: 2.186944711e-06 | CC8: 1.520916377e-06 | CD8: 1.052124516e-06 | CE8: =_xlfn.WEIBULL.DIST(CE7,$B$3,$B$2/0.886,FALSE) -> 7.23977913e-07 | CF8: 4.955436155e-07 | CG8: 3.373951111e-07 | CH8: 2.285061451e-07 | CI8: 1.539433656e-07 | CJ8: 1.03164385e-07 | CK8: 6.877110449e-08 | CL8: 4.560276743e-08 | CM8: 3.008063082e-08 | CN8: 1.973761682e-08 | CO8: 1.288296897e-08 | CP8: 8.364732775e-09 | CQ8: 5.402619569e-09 | CR8: 3.471156588e-09 | CS8: 2.218517096e-09 | CT8: 1.410494254e-09 | CU8: 8.920742478e-10 | CV8: 5.612456101e-10 | CW8: 3.512596651e-10 | CX8: 2.18689556e-10 | CY8: 1.354419713e-10 | CZ8: 8.344588989e-11 | DA8: 5.114274829e-11 | DB8: 3.118110768e-11 | DC8: 1.89116007e-11
B9: 50 | C9: Kontrola | D9: =SUM(G9:DC9) -> 8756.256692 | E9: Doba rychlosti | F9: h | G9: =G8*$B$4 -> 0 | H9: =H8*$B$4*($H$7-$G$7) -> 44.79321574 | I9: =I8*$B$4*($H$7-$G$7) -> 88.90017557 | J9: 131.6521167 | K9: 172.4146396 | L9: 210.6033596 | M9: 245.6978022 | N9: 277.2530799 | O9: 304.9089916 | P9: 328.3962936 | Q9: 347.5400167 | R9: 362.2598228 | S9: 372.567516 | T9: 378.5619281 | U9: 380.421495 | V9: 378.3949123 | W9: 372.7903113 | X9: 363.9634284 | Y9: 352.3052462 | Z9: 338.2295695 | AA9: 322.1609681 | AB9: 304.5234646 | AC9: 285.7302868 | AD9: 266.17493 | AE9: 246.2237027 | AF9: 226.2098521 | AG9: 206.429297 | AH9: 187.1379275 | AI9: 168.55038 | AJ9: 150.8401456 | AK9: 134.1408419 | AL9: 118.5484506 | AM9: 104.1243179 | AN9: 90.89871027 | AO9: 78.87472824 | AP9: 68.03239626 | AQ9: 58.3327669 | AR9: 49.72190275 | AS9: 42.13462562 | AT9: 35.49794926 | AU9: 29.73413785 | AV9: 24.76335622 | AW9: 20.50589907 | AX9: 16.88400393 | AY9: 13.82326765 | AZ9: 11.25369636 | BA9: 9.110427095 | BB9: 7.334163322 | BC9: 5.871368754 | BD9: 4.674263471 | BE9: 3.700664281 | BF9: =BF8*$B$4*($H$7-$G$7) -> 2.913707979 | BG9: 2.281491953 | BH9: 1.776661966 | BI9: 1.375972077 | BJ9: 1.059836966 | BK9: 0.8118924459 | BL9: 0.61857593 | BM9: 0.4687350501 | BN9: 0.3532696351 | BO9: 0.2648097664 | BP9: 0.1974306702 | BQ9: 0.1464037155 | BR9: 0.1079817025 | BS9: 0.07921590609 | BT9: 0.05780190653 | BU9: 0.04195103849 | BV9: 0.03028427246 | BW9: 0.0217454502 | BX9: 0.01553099635 | BY9: 0.01103348199 | BZ9: 0.007796699751 | CA9: 0.005480200601 | CB9: 0.003831527133 | CC9: 0.002664645492 | CD9: 0.001843322152 | CE9: 0.001268409304 | CF9: 0.0008681924144 | CG9: 0.0005911162346 | CH9: 0.0004003427663 | CI9: 0.0002697087765 | CJ9: 0.0001807440026 | CK9: 0.0001204869751 | CL9: =CL8*$B$4*($H$7-$G$7) -> 7.989604854e-05 | CM9: 5.270126519e-05 | CN9: 3.458030467e-05 | CO9: 2.257096164e-05 | CP9: 1.465501182e-05 | CQ9: 9.465389485e-06 | CR9: 6.081466343e-06 | CS9: 3.886841952e-06 | CT9: 2.471185933e-06 | CU9: 1.562914082e-06 | CV9: 9.833023089e-07 | CW9: 6.154069333e-07 | CX9: 3.831441021e-07 | CY9: 2.372943338e-07 | CZ9: 1.461971991e-07 | DA9: 8.960209501e-08 | DB9: 5.462930065e-08 | DC9: 3.313312442e-08
E10: Výkon čistý | F10: W | G10: =0.5*1.17*$B$5*G7^3 -> 0 | H10: =0.5*1.17*$B$5*H7^3 -> 0.005031 | I10: =0.5*1.17*$B$5*I7^3 -> 0.040248 | J10: 0.135837 | K10: 0.321984 | L10: 0.628875 | M10: 1.086696 | N10: 1.725633 | O10: 2.575872 | P10: 3.667599 | Q10: 5.031 | R10: 6.696261 | S10: 8.693568 | T10: 11.053107 | U10: 13.805064 | V10: 16.979625 | W10: 20.606976 | X10: 24.717303 | Y10: 29.340792 | Z10: 34.507629 | AA10: 40.248 | AB10: 46.592091 | AC10: 53.570088 | AD10: 61.212177 | AE10: 69.548544 | AF10: 78.609375 | AG10: 88.424856 | AH10: 99.025173 | AI10: 110.440512 | AJ10: 122.701059 | AK10: 135.837 | AL10: 149.878521 | AM10: 164.855808 | AN10: 180.799047 | AO10: 197.738424 | AP10: 215.704125 | AQ10: 234.726336 | AR10: 254.835243 | AS10: 276.061032 | AT10: 298.433889 | AU10: 321.984 | AV10: 346.741551 | AW10: 372.736728 | AX10: 399.999717 | AY10: 428.560704 | AZ10: 458.449875 | BA10: 489.697416 | BB10: 522.333513 | BC10: 556.388352 | BD10: 591.892119 | BE10: 628.875 | BF10: 667.367181 | BG10: 707.398848 | BH10: 749.000187 | BI10: 792.201384 | BJ10: 837.032625 | BK10: 883.524096 | BL10: 931.705983 | BM10: 981.608472 | BN10: 1033.261749 | BO10: 1086.696 | BP10: 1141.941411 | BQ10: 1199.028168 | BR10: 1257.986457 | BS10: 1318.846464 | BT10: =0.5*1.17*$B$5*BT7^3 -> 1381.638375 | BU10: 1446.392376 | BV10: 1513.138653 | BW10: 1581.907392 | BX10: 1652.728779 | BY10: 1725.633 | BZ10: 1800.650241 | CA10: 1877.810688 | CB10: 1957.144527 | CC10: 2038.681944 | CD10: 2122.453125 | CE10: 2208.488256 | CF10: 2296.817523 | CG10: 2387.471112 | CH10: 2480.479209 | CI10: 2575.872 | CJ10: 2673.679671 | CK10: 2773.932408 | CL10: 2876.660397 | CM10: 2981.893824 | CN10: 3089.662875 | CO10: 3199.997736 | CP10: 3312.928593 | CQ10: 3428.485632 | CR10: 3546.699039 | CS10: 3667.599 | CT10: 3791.215701 | CU10: 3917.579328 | CV10: 4046.720067 | CW10: 4178.668104 | CX10: 4313.453625 | CY10: 4451.106816 | CZ10: 4591.657863 | DA10: 4735.136952 | DB10: 4881.574269 | DC10: 5031
C11: Suma | D11: =SUM(G11:DC11) -> 451447.8649 | E11: Energie | F11: Wh | G11: =G10*G9 -> 0 | H11: =H10*H9 -> 0.2253546684 | I11: =I10*I9 -> 3.578054266 | J11: 17.88322858 | K11: 55.51475532 | L11: 132.4431878 | M11: 266.9988188 | N11: 478.437064 | O11: 785.406534 | P11: 1204.425918 | Q11: 1748.473824 | R11: 2425.786324 | S11: 3238.941035 | T11: 4184.285497 | U11: 5251.743086 | V11: 6425.003713 | W11: 7682.080998 | X11: 8996.194341 | Y11: 10336.91495 | Z11: 11671.5005 | AA11: 12966.33464 | AB11: 14188.38497 | AC11: 15306.59661 | AD11: 16293.14693 | AE11: 17124.50002 | AF11: 17782.21509 | AG11: 18253.48086 | AH11: 18531.36565 | AI11: 18614.79026 | AJ11: 18508.24561 | AK11: 18221.28954 | AL11: 17767.86645 | AM11: 17165.49856 | AN11: 16434.40019 | AO11: 15596.56446 | AP11: 14674.86851 | AQ11: 13692.23664 | AR11: 12670.89317 | AS11: 11631.72823 | AT11: 10593.79105 | AU11: 9573.91664 | AV11: 8586.484545 | AW11: 7643.301723 | AX11: 6753.596794 | AY11: 5924.109314 | AZ11: 5159.255688 | BA11: 4461.352607 | BB11: 3830.879293 | BC11: 3266.761185 | BD11: 2766.659711 | BE11: 2327.25525 | BF11: 1944.51308 | BG11: 1613.924779 | BH11: 1330.720144 | BI11: 1090.046984 | BJ11: 887.1181174 | BK11: 717.3265393 | BL11: 576.3308949 | BM11: 460.1142963 | BN11: 365.0200011 | BO11: 287.7677139 | BP11: 225.4542581 | BQ11: 175.5421788 | BR11: 135.8395193 | BS11: 104.4736176 | BT11: 79.86133221 | BU11: =BU10*BU9 -> 60.67766224 | BV11: 45.82430323 | BW11: 34.39928842 | BX11: 25.66852463 | BY11: 19.03974062 | BZ11: 14.03912929 | CA11: 10.29077926 | CB11: 7.498852358 | CC11: 5.432364651 | CD11: 3.912364861 | CE11: 2.801267051 | CF11: 1.994079551 | CG11: 1.411272934 | CH11: 0.9930419083 | CI11: 0.6947352854 | CJ11: 0.4832515654 | CK11: 0.3342227249 | CL11: 0.2298337987 | CM11: 0.1571495772 | CN11: 0.1068414836 | CO11: 0.07222702614 | CP11: 0.0485510077 | CQ11: 0.03245195185 | CR11: 0.02156913083 | CS11: 0.01425537766 | CT11: 0.00936879891 | CU11: 0.0061228399 | CV11: 0.003979149185 | CW11: 0.002571581323 | CX11: 0.001652674316 | CY11: 0.001056222427 | CZ11: 0.0006712875188 | DA11: 0.000424278191 | DB11: 0.0002666769884 | DC11: 0.000166692749
G12: =D31/12 -> 10.15757696
H14: Tip: Kliknutim na graf se graf prizpusobi
B30: Úspora [kWh] | E30: et | F30: en
B31: Vyrobená energie | D31: =D11*B7/1000 -> 121.8909235 | E31: =167/365*D31 -> 55.76927186 | F31: =D31-E31 -> 66.12165166

Sheet Varianta A
A1: Ucinnost [-] | B1: 0.27 | C1: 0.27 | E1: cena et | F1: energie | G1: uspora
A2: Plocha turbiny [m2] | B2: 1.075 | D2: temperacni | E2: 2 | F2: 55.76927186 | G2: =F2*E2 -> 111.5385437
A3: Rychlost větru [m/s] | B3: 3.5 | C3: 3.5 | D3: netemperacni | E3: 2 | F3: 66.12165166 | G3: =F3*E3 -> 132.2433033
A4: Investiční náklady [Kč] | B4: 21480 | C4: 21480 | G4: =SUM(G2:G3) -> 243.781847
A5: Úspora [Kč/rok] | B5: 243.781847
A6: NPV [Kč] | B6: -16911.70472
A7: Zivotnost [Roky] | B7: 20
A8: RCF [Kč] | B8: -937.1674424 | U8: 0 | V8: 1 | W8: 2 | X8: 3 | Y8: 4 | Z8: 5 | AA8: 6 | AB8: 7 | AC8: 8 | AD8: 9 | AE8: 10 | AF8: 11 | AG8: 12 | AH8: 13 | AI8: 14 | AJ8: 15 | AK8: 16 | AL8: 17 | AM8: 18 | AN8: 19 | AO8: 20
G9: od | H9: do | K9: od | L9: do | T9: Rychlost | U9: =$G$10+(U8/20)*($H$10-$G$10) -> 2 | V9: =$G$10+(V8/20)*($H$10-$G$10) -> 2.5 | W9: 3 | X9: 3.5 | Y9: 4 | Z9: 4.5 | AA9: 5 | AB9: 5.5 | AC9: 6 | AD9: 6.5 | AE9: 7 | AF9: 7.5 | AG9: 8 | AH9: 8.5 | AI9: 9 | AJ9: 9.5 | AK9: 10 | AL9: 10.5 | AM9: 11 | AN9: 11.5 | AO9: 12
A10: Závislost NPV/rychlost větru, investiční náklady | F10: Rychlost | G10: 2 | H10: 12 | J10: Náklady | K10: 0 | L10: 30000 | T10: Úspora | U10: 45.48699189 | V10: 88.84178104 | W10: 153.5185976 | X10: 243.781847 | Y10: 363.8958714 | Z10: 518.1210904 | AA10: 710.6504821 | AB10: 945.2113458 | AC10: 1223.898674 | AD10: 1545.397026 | AE10: 1903.657399 | AF10: 2288.011307 | AG10: 2684.714178 | AH10: 3079.137594 | AI10: 3457.77031 | AJ10: 3809.556772 | AK10: 4126.494079 | AL10: 4403.639078 | AM10: 4638.74724 | AN10: 4831.740651 | AO10: 4984.144071
R11: 0 | S11: Naklady | T11: =$K$10+(R11/20)*($L$10-$K$10) -> 0 | U11: 812.7108134 | V11: 1587.325807 | W11: 2742.898995 | X11: 4355.622013 | Y11: 6501.685367 | Z11: 9257.209484 | AA11: 12697.10982 | AB11: 16887.98159 | AC11: 21867.25578 | AD11: 27611.42958 | AE11: 34012.42617 | AF11: 40879.63289 | AG11: 47967.47713 | AH11: 55014.5946 | AI11: 61779.58146 | AJ11: 68064.90942 | AK11: 73727.59155 | AL11: 78679.30913 | AM11: 82879.95941 | AN11: 86328.15034 | AO11: 89051.12459
R12: 1 | T12: =$K$10+(R12/20)*($L$10-$K$10) -> 1500 | U12: -672.4377015 | V12: 102.1772925 | W12: 1257.75048 | X12: 2870.473498 | Y12: 5016.536852 | Z12: 7772.060969 | AA12: 11211.9613 | AB12: 15402.83307 | AC12: 20382.10727 | AD12: 26126.28107 | AE12: 32527.27765 | AF12: 39394.48438 | AG12: 46482.32862 | AH12: 53529.44608 | AI12: 60294.43295 | AJ12: 66579.7609 | AK12: 72242.44304 | AL12: 77194.16062 | AM12: 81394.8109 | AN12: 84843.00182 | AO12: 87565.97607
R13: 2 | T13: 3000 | U13: -2157.586216 | V13: -1382.971222 | W13: -227.3980346 | X13: 1385.324983 | Y13: 3531.388338 | Z13: 6286.912455 | AA13: 9726.812788 | AB13: 13917.68456 | AC13: 18896.95875 | AD13: 24641.13256 | AE13: 31042.12914 | AF13: 37909.33586 | AG13: 44997.1801 | AH13: 52044.29757 | AI13: 58809.28443 | AJ13: 65094.61239 | AK13: 70757.29452 | AL13: 75709.0121 | AM13: 79909.66238 | AN13: 83357.85331 | AO13: 86080.82756
R14: 3 | T14: 4500 | U14: -3642.734731 | V14: -2868.119737 | W14: -1712.546549 | X14: -99.82353178 | Y14: 2046.239823 | Z14: 4801.76394 | AA14: 8241.664273 | AB14: 12432.53604 | AC14: 17411.81024 | AD14: 23155.98404 | AE14: 29556.98062 | AF14: 36424.18735 | AG14: 43512.03159 | AH14: 50559.14905 | AI14: 57324.13592 | AJ14: 63609.46387 | AK14: 69272.14601 | AL14: 74223.86359 | AM14: 78424.51387 | AN14: 81872.70479 | AO14: 84595.67904
R15: 4 | T15: 6000 | U15: -5127.883246 | V15: -4353.268252 | W15: -3197.695064 | X15: -1584.972047 | Y15: 561.0913079 | Z15: 3316.615425 | AA15: 6756.515758 | AB15: 10947.38753 | AC15: 15926.66172 | AD15: 21670.83553 | AE15: 28071.83211 | AF15: 34939.03883 | AG15: 42026.88307 | AH15: 49074.00054 | AI15: 55838.9874 | AJ15: 62124.31536 | AK15: 67786.99749 | AL15: 72738.71507 | AM15: 76939.36535 | AN15: 80387.55628 | AO15: 83110.53053
R16: 5 | T16: 7500 | U16: -6613.031761 | V16: -5838.416767 | W16: -4682.843579 | X16: -3070.120561 | Y16: -924.057207 | Z16: 1831.46691 | AA16: 5271.367244 | AB16: 9462.239015 | AC16: 14441.51321 | AD16: 20185.68701 | AE16: 26586.68359 | AF16: 33453.89032 | AG16: 40541.73456 | AH16: 47588.85202 | AI16: 54353.83889 | AJ16: 60639.16684 | AK16: 66301.84898 | AL16: 71253.56656 | AM16: 75454.21684 | AN16: 78902.40776 | AO16: 81625.38201
R17: 6 | T17: 9000 | U17: -8098.180276 | V17: -7323.565282 | W17: -6167.992094 | X17: -4555.269076 | Y17: -2409.205722 | Z17: 346.3183952 | AA17: 3786.218729 | AB17: 7977.0905 | AC17: 12956.36469 | AD17: 18700.5385 | AE17: 25101.53508 | AF17: 31968.7418 | AG17: 39056.58605 | AH17: 46103.70351 | AI17: 52868.69037 | AJ17: 59154.01833 | AK17: 64816.70046 | AL17: 69768.41804 | AM17: 73969.06832 | AN17: 77417.25925 | AO17: 80140.2335
R18: 7 | T18: 10500 | U18: -9583.328791 | V18: -8808.713797 | W18: -7653.140609 | X18: -6040.417591 | Y18: -3894.354237 | Z18: -1138.83012 | AA18: 2301.070214 | AB18: 6491.941985 | AC18: 11471.21618 | AD18: 17215.38998 | AE18: 23616.38656 | AF18: 30483.59329 | AG18: 37571.43753 | AH18: 44618.55499 | AI18: 51383.54186 | AJ18: 57668.86981 | AK18: 63331.55195 | AL18: 68283.26953 | AM18: 72483.91981 | AN18: 75932.11073 | AO18: 78655.08498
R19: 8 | T19: 12000 | U19: -11068.47731 | V19: -10293.86231 | W19: -9138.289124 | X19: -7525.566106 | Y19: -5379.502752 | Z19: -2623.978634 | AA19: 815.921699 | AB19: 5006.79347 | AC19: 9986.067662 | AD19: 15730.24147 | AE19: 22131.23805 | AF19: 28998.44477 | AG19: 36086.28902 | AH19: 43133.40648 | AI19: 49898.39334 | AJ19: 56183.7213 | AK19: 61846.40343 | AL19: 66798.12101 | AM19: 70998.77129 | AN19: 74446.96222 | AO19: 77169.93647
R20: 9 | T20: 13500 | U20: -12553.62582 | V20: -11779.01083 | W20: -10623.43764 | X20: -9010.714621 | Y20: -6864.651266 | Z20: -4109.127149 | AA20: -669.2268159 | AB20: 3521.644955 | AC20: 8500.919147 | AD20: 14245.09295 | AE20: 20646.08953 | AF20: 27513.29626 | AG20: 34601.1405 | AH20: 41648.25796 | AI20: 48413.24483 | AJ20: 54698.57278 | AK20: 60361.25492 | AL20: 65312.9725 | AM20: 69513.62278 | AN20: 72961.8137 | AO20: 75684.78795
R21: 10 | T21: 15000 | U21: -14038.77434 | V21: -13264.15934 | W21: -12108.58615 | X21: -10495.86314 | Y21: -8349.799781 | Z21: -5594.275664 | AA21: -2154.375331 | AB21: 2036.49644 | AC21: 7015.770632 | AD21: 12759.94444 | AE21: 19160.94102 | AF21: 26028.14775 | AG21: 33115.99199 | AH21: 40163.10945 | AI21: 46928.09631 | AJ21: 53213.42427 | AK21: 58876.1064 | AL21: 63827.82398 | AM21: 68028.47427 | AN21: 71476.66519 | AO21: 74199.63944
R22: 11 | T22: 16500 | U22: -15523.92285 | V22: -14749.30786 | W22: -13593.73467 | X22: -11981.01165 | Y22: -9834.948296 | Z22: -7079.424179 | AA22: -3639.523846 | AB22: 551.3479256 | AC22: 5530.622117 | AD22: 11274.79592 | AE22: 17675.79251 | AF22: 24542.99923 | AG22: 31630.84347 | AH22: 38677.96093 | AI22: 45442.9478 | AJ22: 51728.27575 | AK22: 57390.95789 | AL22: 62342.67547 | AM22: 66543.32575 | AN22: 69991.51667 | AO22: 72714.49092
R23: 12 | T23: 18000 | U23: -17009.07136 | V23: -16234.45637 | W23: -15078.88318 | X23: -13466.16017 | Y23: -11320.09681 | Z23: -8564.572694 | AA23: -5124.67236 | AB23: -933.8005892 | AC23: 4045.473602 | AD23: 9789.647407 | AE23: 16190.64399 | AF23: 23057.85072 | AG23: 30145.69496 | AH23: 37192.81242 | AI23: 43957.79928 | AJ23: 50243.12724 | AK23: 55905.80937 | AL23: 60857.52695 | AM23: 65058.17724 | AN23: 68506.36816 | AO23: 71229.34241
R24: 13 | T24: 19500 | U24: -18494.21988 | V24: -17719.60489 | W24: -16564.0317 | X24: -14951.30868 | Y24: -12805.24533 | Z24: -10049.72121 | AA24: -6609.820875 | AB24: -2418.949104 | AC24: 2560.325088 | AD24: 8304.498892 | AE24: 14705.49548 | AF24: 21572.7022 | AG24: 28660.54644 | AH24: 35707.6639 | AI24: 42472.65077 | AJ24: 48757.97872 | AK24: 54420.66086 | AL24: 59372.37844 | AM24: 63573.02872 | AN24: 67021.21965 | AO24: 69744.19389
R25: 14 | T25: 21000 | U25: -19979.36839 | V25: -19204.7534 | W25: -18049.18021 | X25: -16436.4572 | Y25: -14290.39384 | Z25: -11534.86972 | AA25: -8094.96939 | AB25: -3904.097619 | AC25: 1075.176573 | AD25: 6819.350377 | AE25: 13220.34696 | AF25: 20087.55369 | AG25: 27175.39793 | AH25: 34222.51539 | AI25: 40987.50226 | AJ25: 47272.83021 | AK25: 52935.51235 | AL25: 57887.22992 | AM25: 62087.88021 | AN25: 65536.07113 | AO25: 68259.04538
R26: 15 | T26: 22500 | U26: -21464.51691 | V26: -20689.90192 | W26: -19534.32873 | X26: -17921.60571 | Y26: -15775.54236 | Z26: -13020.01824 | AA26: -9580.117905 | AB26: -5389.246134 | AC26: -409.9719421 | AD26: 5334.201862 | AE26: 11735.19845 | AF26: 18602.40517 | AG26: 25690.24941 | AH26: 32737.36687 | AI26: 39502.35374 | AJ26: 45787.68169 | AK26: 51450.36383 | AL26: 56402.08141 | AM26: 60602.73169 | AN26: 64050.92262 | AO26: 66773.89686
R27: 16 | T27: 24000 | U27: -22949.66542 | V27: -22175.05043 | W27: -21019.47724 | X27: -19406.75422 | Y27: -17260.69087 | Z27: -14505.16675 | AA27: -11065.26642 | AB27: -6874.394649 | AC27: -1895.120457 | AD27: 3849.053347 | AE27: 10250.04993 | AF27: 17117.25666 | AG27: 24205.1009 | AH27: 31252.21836 | AI27: 38017.20523 | AJ27: 44302.53318 | AK27: 49965.21532 | AL27: 54916.93289 | AM27: 59117.58318 | AN27: 62565.7741 | AO27: 65288.74835
R28: 17 | T28: 25500 | U28: -24434.81394 | V28: -23660.19895 | W28: -22504.62576 | X28: -20891.90274 | Y28: -18745.83939 | Z28: -15990.31527 | AA28: -12550.41493 | AB28: -8359.543164 | AC28: -3380.268972 | AD28: 2363.904832 | AE28: 8764.901416 | AF28: 15632.10814 | AG28: 22719.95238 | AH28: 29767.06984 | AI28: 36532.05671 | AJ28: 42817.38466 | AK28: 48480.0668 | AL28: 53431.78438 | AM28: 57632.43466 | AN28: 61080.62559 | AO28: 63803.59983
R29: 18 | T29: 27000 | U29: -25919.96245 | V29: -25145.34746 | W29: -23989.77427 | X29: -22377.05125 | Y29: -20230.9879 | Z29: -17475.46378 | AA29: -14035.56345 | AB29: -9844.691678 | AC29: -4865.417487 | AD29: 878.7563176 | AE29: 7279.752901 | AF29: 14146.95963 | AG29: 21234.80387 | AH29: 28281.92133 | AI29: 35046.9082 | AJ29: 41332.23615 | AK29: 46994.91829 | AL29: 51946.63586 | AM29: 56147.28615 | AN29: 59595.47707 | AO29: 62318.45132
R30: 19 | T30: 28500 | U30: -27405.11097 | V30: -26630.49597 | W30: -25474.92279 | X30: -23862.19977 | Y30: -21716.13641 | Z30: -18960.6123 | AA30: -15520.71196 | AB30: -11329.84019 | AC30: -6350.566001 | AD30: -606.3921973 | AE30: 5794.604386 | AF30: 12661.81111 | AG30: 19749.65535 | AH30: 26796.77281 | AI30: 33561.75968 | AJ30: 39847.08763 | AK30: 45509.76977 | AL30: 50461.48735 | AM30: 54662.13763 | AN30: 58110.32856 | AO30: 60833.3028
R31: 20 | T31: 30000 | U31: -28890.25948 | V31: -28115.64449 | W31: -26960.0713 | X31: -25347.34828 | Y31: -23201.28493 | Z31: -20445.76081 | AA31: -17005.86048 | AB31: -12814.98871 | AC31: -7835.714516 | AD31: -2091.540712 | AE31: 4309.455871 | AF31: 11176.6626 | AG31: 18264.50684 | AH31: 25311.6243 | AI31: 32076.61117 | AJ31: 38361.93912 | AK31: 44024.62126 | AL31: 48976.33883 | AM31: 53176.98912 | AN31: 56625.18004 | AO31: 59348.15429
G33: od | H33: do
A34: Závislost NPV / rychlost větru | F34: Rychlost | G34: 2 | H34: 10
U35: 0 | V35: 1 | W35: 2 | X35: 3 | Y35: 4 | Z35: 5 | AA35: 6 | AB35: 7 | AC35: 8 | AD35: 9 | AE35: 10 | AF35: 11 | AG35: 12 | AH35: 13 | AI35: 14 | AJ35: 15 | AK35: 16 | AL35: 17 | AM35: 18 | AN35: 19 | AO35: 20
T36: Rychlost | U36: =$G$34+(U35/20)*($H$34-$G$34) -> 2 | V36: =$G$34+(V35/20)*($H$34-$G$34) -> 2.4 | W36: 2.8 | X36: 3.2 | Y36: 3.6 | Z36: 4 | AA36: 4.4 | AB36: 4.8 | AC36: 5.2 | AD36: 5.6 | AE36: 6 | AF36: 6.4 | AG36: 6.8 | AH36: 7.2 | AI36: 7.6 | AJ36: 8 | AK36: 8.4 | AL36: 8.8 | AM36: 9.2 | AN36: 9.6 | AO36: 10
T37: Úspora | U37: 45.48699189 | V37: 78.60152199 | W37: 124.8163058 | X37: 186.3147188 | Y37: 265.2801361 | Z37: 363.8958714 | AA37: 484.3434656 | AB37: 628.7839694 | AC37: 799.2591451 | AD37: 997.4001436 | AE37: 1223.898674 | AF37: 1477.890638 | AG37: 1756.533899 | AH37: 2054.991242 | AI37: 2366.833517 | AJ37: 2684.714178 | AK37: 3001.112979 | AL37: 3308.984854 | AM37: 3602.225318 | AN37: 3875.932908 | AO37: 4126.494079
T38: NPV | U38: -20454.61592 | V38: -19862.96245 | W38: -19037.24826 | X38: -17938.46324 | Y38: -16527.59728 | Z38: -14765.64137 | AA38: -12613.61816 | AB38: -10032.91641 | AC38: -6987.056202 | AD38: -3446.893941 | AE38: 599.929048 | AF38: 5137.97404 | AG38: 10116.46091 | AH38: 15448.96367 | AI38: 21020.61345 | AJ38: 26700.1504 | AK38: 32353.2111 | AL38: 37853.92222 | AM38: 43093.21562 | AN38: 47983.51742 | AO38: 52460.26482
T39: RCF | U39: -1133.498982 | V39: -1100.712319 | W39: -1054.955107 | X39: -994.0655892 | Y39: -915.8820076 | Z39: -818.2426658 | AA39: -698.9876221 | AB39: -555.9772222 | AC39: -387.1899196 | AD39: -191.0107131 | AE39: 33.24525711 | AF39: 284.7224493 | AG39: 560.6068669 | AH39: 856.1091866 | AI39: 1164.863914 | AJ39: 1479.597242 | AK39: 1792.863381 | AL39: 2097.687019 | AM39: 2388.024113 | AN39: 2659.021727 | AO39: 2907.102094
U52: 0 | V52: 1 | W52: 2 | X52: 3 | Y52: 4 | Z52: 5 | AA52: 6 | AB52: 7 | AC52: 8 | AD52: 9 | AE52: 10 | AF52: 11 | AG52: 12 | AH52: 13 | AI52: 14 | AJ52: 15 | AK52: 16 | AL52: 17 | AM52: 18 | AN52: 19 | AO52: 20
T53: Cena energie | U53: =$G$55+(U52/10)*($H$55-$G$55) -> 1 | V53: =$G$55+(V52/10)*($H$55-$G$55) -> 1.4 | W53: 1.8 | X53: 2.2 | Y53: 2.6 | Z53: 3 | AA53: 3.4 | AB53: 3.8 | AC53: 4.2 | AD53: 4.6 | AE53: 5
G54: od | H54: do | T54: Úspora | U54: 121.8909235 | V54: 170.6472929 | W54: 219.4036623 | X54: 268.1600317 | Y54: 316.9164011 | Z54: 365.6727706 | AA54: 414.42914 | AB54: 463.1855094 | AC54: 511.9418788 | AD54: 560.6982482 | AE54: 609.4546176
A55: Závislost NPV / cena energie | F55: Cena | G55: 1 | H55: 5 | T55: NPV | U55: -19089.51573 | V55: -18218.39132 | W55: -17347.26692 | X55: -16476.14252 | Y55: -15605.01812 | Z55: -14733.89371 | AA55: -13862.76931 | AB55: -12991.64491 | AC55: -12120.52051 | AD55: -11249.3961 | AE55: -10378.2717
T56: RCF | U56: -1057.851525 | V56: -1009.577892 | W56: -961.3042589 | X56: -913.0306259 | Y56: -864.7569928 | Z56: -816.4833597 | AA56: -768.2097266 | AB56: -719.9360935 | AC56: -671.6624605 | AD56: -623.3888274 | AE56: -575.1151943
U74: 0 | V74: 1 | W74: 2 | X74: 3 | Y74: 4 | Z74: 5 | AA74: 6 | AB74: 7 | AC74: 8 | AD74: 9 | AE74: 10
G75: od | H75: do | T75: Rust | U75: =$G$76+(U74/10)*($H$76-$G$76) -> 0 | V75: =$G$76+(V74/10)*($H$76-$G$76) -> 1 | W75: 2 | X75: 3 | Y75: 4 | Z75: 5 | AA75: 6 | AB75: 7 | AC75: 8 | AD75: 9 | AE75: 10
A76: Závislost NPV / růst cen | F76: Růst | G76: 0 | H76: 10 | T76: NPV | U76: -17333.14728 | V76: -17150.80135 | W76: -16911.70472 | X76: -16604.36306 | Y76: -16214.75958 | Z76: -15725.74811 | AA76: -15116.28778 | AB76: -14360.4751 | AC76: -13426.31561 | AD76: -12274.16025 | AE76: -10854.70812
T77: RCF | U77: -1165.059759 | V77: -1048.886724 | W77: -937.1674424 | X77: -830.218153 | Y77: -728.317937 | Z77: -631.7019608 | AA77: -540.5556675 | AB77: -455.0102244 | AC77: -375.1394789 | AD77: -300.9585969 | AE77: -232.4244678
U94: 0 | V94: 1 | W94: 2 | X94: 3 | Y94: 4 | Z94: 5 | AA94: 6 | AB94: 7 | AC94: 8 | AD94: 9 | AE94: 10
G95: od | H95: do | T95: Diskont | U95: =$G$76+(U94/10)*($H$76-$G$76) -> 0 | V95: 1 | W95: 2 | X95: 3 | Y95: 4 | Z95: 5 | AA95: 6 | AB95: 7 | AC95: 8 | AD95: 9 | AE95: 10
A96: Závislost NPV / diskont | F96: diskont | G96: 0 | H96: 10 | T96: NPV | U96: -15725.74811 | V96: -16214.75958 | W96: -16604.36306 | X96: -16911.70472 | Y96: -17150.80135 | Z96: -17333.14728 | AA96: -17468.19725 | AB96: -17563.75176 | AC96: -17626.26549 | AD96: -17661.09499 | AE96: -17672.69805
T97: RCF | U97: -631.7019608 | V97: -728.317937 | W97: -830.218153 | X97: -937.1674424 | Y97: -1048.886724 | Z97: -1165.059759 | AA97: -1285.340529 | AB97: -1409.360882 | AC97: -1536.738148 | AD97: -1667.082428 | AE97: -1800.003332

Sheet Výpočty - varianta B
A1: Rychlost větru | B1: 3.5 | C1: m/s
A2: Parametr k | B2: ='Průběh rychlosti větru'!B8 -> 2 | C2: - | E2: v | F2: 0 | G2: 1 | H2: 2 | I2: 3 | J2: 4 | K2: 5 | L2: 6 | M2: 7 | N2: 8 | O2: 9 | P2: 10 | Q2: 11 | R2: 12 | S2: 13 | T2: 14 | U2: 15
A3: Obdobi | B3: 8760 | C3: h | E3: I | F3: 0 | G3: 0 | H3: 0 | I3: 0 | J3: 0 | K3: 2.1 | L3: 4.3 | M3: 6.8 | N3: 9.9 | O3: 13.3 | P3: 17.5 | Q3: 21.8 | R3: 26 | S3: 28 | T3: 29.3 | U3: 30
A4: Plocha rotoru | B4: 3.125 | C4: m2 | E4: P | F4: =10*F3 -> 0 | G4: =10*G3 -> 0 | H4: 0 | I4: 0 | J4: 0 | K4: 21 | L4: 43 | M4: 68 | N4: 99 | O4: 133 | P4: 175 | Q4: 218 | R4: 260 | S4: 280 | T4: 293 | U4: 300
A5: Vyrobená energie | B5: =D12 -> 334.3839595 | C5: kWh
A6: Ztraty generatoru | B6: 0.05 | C6: -
A7: Topný faktor | B7: 3 | C7: - | E7: Rychlost vetru | F7: m/s | G7: 0 | H7: 0.25 | I7: =H7+($H$7-$G$7) -> 0.5 | J7: =I7+($H$7-$G$7) -> 0.75 | K7: 1 | L7: 1.25 | M7: 1.5 | N7: 1.75 | O7: 2 | P7: 2.25 | Q7: 2.5 | R7: 2.75 | S7: 3 | T7: 3.25 | U7: 3.5 | V7: 3.75 | W7: 4 | X7: 4.25 | Y7: 4.5 | Z7: 4.75 | AA7: 5 | AB7: 5.25 | AC7: 5.5 | AD7: 5.75 | AE7: 6 | AF7: 6.25 | AG7: 6.5 | AH7: 6.75 | AI7: 7 | AJ7: 7.25 | AK7: 7.5 | AL7: 7.75 | AM7: 8 | AN7: 8.25 | AO7: 8.5 | AP7: 8.75 | AQ7: 9 | AR7: 9.25 | AS7: 9.5 | AT7: 9.75 | AU7: 10 | AV7: 10.25 | AW7: 10.5 | AX7: 10.75 | AY7: 11 | AZ7: 11.25 | BA7: 11.5 | BB7: 11.75 | BC7: 12 | BD7: 12.25 | BE7: 12.5 | BF7: 12.75 | BG7: 13 | BH7: 13.25 | BI7: 13.5 | BJ7: 13.75 | BK7: 14 | BL7: 14.25 | BM7: 14.5 | BN7: 14.75 | BO7: 15 | BP7: 15.25 | BQ7: 15.5 | BR7: 15.75 | BS7: 16 | BT7: 16.25 | BU7: 16.5 | BV7: =BU7+($H$7-$G$7) -> 16.75 | BW7: 17 | BX7: 17.25 | BY7: 17.5 | BZ7: 17.75 | CA7: 18 | CB7: 18.25 | CC7: 18.5 | CD7: 18.75 | CE7: 19 | CF7: 19.25 | CG7: 19.5 | CH7: 19.75 | CI7: 20 | CJ7: 20.25 | CK7: 20.5 | CL7: 20.75 | CM7: 21 | CN7: 21.25 | CO7: 21.5 | CP7: 21.75 | CQ7: 22 | CR7: 22.25 | CS7: 22.5 | CT7: 22.75 | CU7: 23 | CV7: 23.25 | CW7: 23.5 | CX7: 23.75 | CY7: 24 | CZ7: 24.25 | DA7: 24.5 | DB7: 24.75 | DC7: 25
E8: Rozdeleni | F8: - | G8: =_xlfn.WEIBULL.DIST(G7,$B$1/0.886,$B$2,FALSE) -> 0 | H8: =_xlfn.WEIBULL.DIST(H7,$B$2,$B$1/0.886,FALSE) -> 0.03191258426 | I8: 0.0630628822 | J8: 0.09271887435 | K8: 0.120207397 | L8: 0.1449394945 | M8: 0.166431204 | N8: 0.1843187607 | O8: 0.1983675894 | P8: 0.2084748624 | Q8: 0.2146658074 | R8: 0.2170843309 | S8: 0.2159788312 | T8: 0.2116843111 | U8: 0.2046020421 | V8: 0.1951780733 | W8: 0.1838818311 | X8: 0.1711859268 | Y8: 0.1575481008 | Z8: 0.1433959972 | AA8: 0.1291152124 | AB8: 0.1150408109 | AC8: 0.1014522706 | AD8: 0.08857162413 | AE8: 0.07656440749 | AF8: 0.06554292747 | AG8: 0.05557129878 | AH8: 0.04667169418 | AI8: 0.03883127641 | AJ8: 0.03200933828 | AK8: 0.02614425355 | AL8: 0.02115992918 | AM8: 0.01697153987 | AN8: =_xlfn.WEIBULL.DIST(AN7,$B$2,$B$1/0.886,FALSE) -> 0.01349041142 | AO8: 0.01062799611 | AP8: 0.008298946393 | AQ8: 0.006423342669 | AR8: 0.004928164775 | AS8: 0.003748117773 | AT8: 0.002825931338 | AU8: 0.002112251302 | AV8: 0.001565234021 | AW8: 0.001149941559 | AX8: 0.0008376203548 | AY8: 0.0006049297749 | AZ8: 0.0004331711724 | BA8: 0.0003075536198 | BB8: 0.0002165200296 | BC8: 0.0001511471269 | BD8: 0.000104624744 | BE8: 7.181401898e-05 | BF8: 4.888003788e-05 | BG8: 3.299195578e-05 | BH8: 2.208234435e-05 | BI8: 1.465712828e-05 | BJ8: 9.647723976e-06 | BK8: 6.297649537e-06 | BL8: 4.076757031e-06 | BM8: 2.61721083e-06 | BN8: 1.666305773e-06 | BO8: 1.052124516e-06 | BP8: 6.588403023e-07 | BQ8: 4.091642447e-07 | BR8: 2.520132811e-07 | BS8: 1.539433656e-07 | BT8: =_xlfn.WEIBULL.DIST(BT7,$B$2,$B$1/0.886,FALSE) -> 9.326393036e-08 | BU8: 5.603829032e-08 | BV8: 3.339470094e-08 | BW8: 1.973761682e-08 | BX8: 1.157015473e-08 | BY8: 6.726879088e-09 | BZ8: 3.879007917e-09 | CA8: 2.218517096e-09 | CB8: 1.258468472e-09 | CC8: 7.080462486e-10 | CD8: 3.951143717e-10 | CE8: 2.18689556e-10 | CF8: 1.20054735e-10 | CG8: 6.537000507e-11 | CH8: 3.530429842e-11 | CI8: 1.89116007e-11 | CJ8: 1.004806325e-11 | CK8: 5.295310889e-12 | CL8: 2.767943379e-12 | CM8: 1.435096566e-12 | CN8: 7.380142115e-13 | CO8: 3.764518542e-13 | CP8: 1.904656497e-13 | CQ8: 9.558455724e-14 | CR8: 4.757994639e-14 | CS8: 2.349235541e-14 | CT8: 1.150526926e-14 | CU8: 5.589021677e-15 | CV8: 2.693051865e-15 | CW8: 1.287136646e-15 | CX8: 6.102062755e-16 | CY8: 2.869470674e-16 | CZ8: =_xlfn.WEIBULL.DIST(CZ7,$B$2,$B$1/0.886,FALSE) -> 1.338446497e-16 | DA8: =_xlfn.WEIBULL.DIST(DA7,$B$2,$B$1/0.886,FALSE) -> 6.192632539e-17 | DB8: =_xlfn.WEIBULL.DIST(DB7,$B$2,$B$1/0.886,FALSE) -> 2.842010076e-17 | DC8: =_xlfn.WEIBULL.DIST(DC7,$B$2,$B$1/0.886,FALSE) -> 1.293757359e-17
C9: Kontrola | D9: =SUM(G9:DC9) -> 8754.150237 | E9: Doba rychlosti | F9: h | G9: =G8*$B$3 -> 0 | H9: =H8*$B$3*($H$7-$G$7) -> 69.88855954 | I9: 138.107712 | J9: 203.0543348 | K9: 263.2541995 | L9: 317.417493 | M9: 364.4843369 | N9: 403.6580859 | O9: 434.4250209 | P9: 456.5599486 | Q9: 470.1181181 | R9: 475.4146848 | S9: 472.9936404 | T9: 463.5886413 | U9: 448.0784721 | V9: 427.4399806 | W9: 402.7012101 | X9: 374.8971796 | Y9: 345.0303408 | Z9: 314.0372339 | AA9: 282.7623152 | AB9: 251.9393758 | AC9: 222.1804727 | AD9: 193.9718569 | AE9: 167.6760524 | AF9: 143.5390112 | AG9: 121.7011443 | AH9: 102.2110102 | AI9: 85.04049533 | AJ9: 70.10045084 | AK9: 57.25591528 | AL9: 46.34024491 | AM9: 37.16767231 | AN9: =AN8*$B$3*($H$7-$G$7) -> 29.54400102 | AO9: 23.27531148 | AP9: 18.1746926 | AQ9: 14.06712045 | AR9: 10.79268086 | AS9: 8.208377924 | AT9: 6.188789631 | AU9: 4.625830352 | AV9: 3.427862506 | AW9: 2.518372015 | AX9: 1.834388577 | AY9: 1.324796207 | AZ9: 0.9486448677 | BA9: 0.6735424274 | BB9: 0.4741788649 | BC9: 0.331012208 | BD9: 0.2291281893 | BE9: 0.1572727016 | BF9: 0.107047283 | BG9: 0.07225238316 | BH9: 0.04836033413 | BI9: 0.03209911094 | BJ9: 0.02112851551 | BK9: 0.01379185249 | BL9: 0.008928097898 | BM9: 0.005731691717 | BN9: 0.003649209644 | BO9: 0.00230415269 | BP9: 0.001442860262 | BQ9: 0.0008960696959 | BR9: 0.0005519090857 | BS9: 0.0003371359706 | BT9: =BT8*$B$3*($H$7-$G$7) -> 0.0002042480075 | BU9: 0.0001227238558 | BV9: 7.313439507e-05 | BW9: 4.322538084e-05 | BX9: 2.533863885e-05 | BY9: 1.47318652e-05 | BZ9: 8.495027339e-06 | CA9: 4.858552441e-06 | CB9: 2.756045954e-06 | CC9: 1.550621284e-06 | CD9: 8.653004739e-07 | CE9: 4.789301277e-07 | CF9: 2.629198696e-07 | CG9: 1.431603111e-07 | CH9: 7.731641353e-08 | CI9: 4.141640553e-08 | CJ9: 2.200525852e-08 | CK9: 1.159673085e-08 | CL9: 6.061796001e-09 | CM9: 3.14286148e-09 | CN9: 1.616251123e-09 | CO9: 8.244295607e-10 | CP9: 4.171197728e-10 | CQ9: 2.093301803e-10 | CR9: 1.042000826e-10 | CS9: 5.144825834e-11 | CT9: 2.519653968e-11 | CU9: 1.223995747e-11 | CV9: 5.897783585e-12 | CW9: 2.818829254e-12 | CX9: 1.336351743e-12 | CY9: 6.284140776e-13 | CZ9: =CZ8*$B$3*($H$7-$G$7) -> 2.931197827e-13 | DA9: =DA8*$B$3*($H$7-$G$7) -> 1.356186526e-13 | DB9: =DB8*$B$3*($H$7-$G$7) -> 6.224002067e-14 | DC9: =DC8*$B$3*($H$7-$G$7) -> 2.833328616e-14
E10: Nabíjecí výkon | F10: W | G10: 0 | H10: 0 | I10: 0 | J10: 0 | K10: 0 | L10: 0 | M10: 0 | N10: 0 | O10: 0 | P10: 0 | Q10: 0 | R10: 0 | S10: 0 | T10: 0 | U10: 0 | V10: 0 | W10: 0 | X10: 5.25 | Y10: 10.5 | Z10: 15.75 | AA10: 21 | AB10: 26.5 | AC10: 32 | AD10: 37.5 | AE10: 43 | AF10: 49.25 | AG10: 55.5 | AH10: 61.75 | AI10: 68 | AJ10: 75.75 | AK10: 83.5 | AL10: 91.25 | AM10: 99 | AN10: 107.5 | AO10: 116 | AP10: 124.5 | AQ10: 133 | AR10: 143.5 | AS10: 154 | AT10: 164.5 | AU10: 175 | AV10: 185.75 | AW10: 196.5 | AX10: 207.25 | AY10: 218 | AZ10: 228.5 | BA10: 239 | BB10: 249.5 | BC10: 260 | BD10: 265 | BE10: 270 | BF10: 275 | BG10: 280 | BH10: 283.25 | BI10: 286.5 | BJ10: 289.75 | BK10: 293 | BL10: 294.75 | BM10: 296.5 | BN10: 298.25 | BO10: 300 | BP10: 300 | BQ10: 300 | BR10: 300 | BS10: 300 | BT10: 300 | BU10: 300 | BV10: 300 | BW10: 300 | BX10: 300 | BY10: 300 | BZ10: 300 | CA10: 300 | CB10: 300 | CC10: 300 | CD10: 300 | CE10: 300 | CF10: 300 | CG10: 300 | CH10: 300 | CI10: 300 | CJ10: 300 | CK10: 300 | CL10: 300 | CM10: 300 | CN10: 300 | CO10: 300 | CP10: 300 | CQ10: 300 | CR10: 300 | CS10: 300 | CT10: 300 | CU10: 300 | CV10: 300 | CW10: 300 | CX10: 300 | CY10: 300 | CZ10: 300 | DA10: 300 | DB10: 300 | DC10: 300
E11: Vysledny vykon | F11: W | G11: =$B$7*G10/(1-$B$6) -> 0 | H11: =$B$7*H10/(1-$B$6) -> 0 | I11: 0 | J11: 0 | K11: 0 | L11: 0 | M11: 0 | N11: 0 | O11: 0 | P11: 0 | Q11: 0 | R11: 0 | S11: 0 | T11: 0 | U11: 0 | V11: 0 | W11: 0 | X11: 16.57894737 | Y11: 33.15789474 | Z11: 49.73684211 | AA11: 66.31578947 | AB11: 83.68421053 | AC11: 101.0526316 | AD11: 118.4210526 | AE11: 135.7894737 | AF11: 155.5263158 | AG11: 175.2631579 | AH11: 195 | AI11: 214.7368421 | AJ11: 239.2105263 | AK11: 263.6842105 | AL11: 288.1578947 | AM11: 312.6315789 | AN11: 339.4736842 | AO11: 366.3157895 | AP11: 393.1578947 | AQ11: 420 | AR11: 453.1578947 | AS11: 486.3157895 | AT11: 519.4736842 | AU11: 552.6315789 | AV11: 586.5789474 | AW11: 620.5263158 | AX11: 654.4736842 | AY11: 688.4210526 | AZ11: 721.5789474 | BA11: 754.7368421 | BB11: 787.8947368 | BC11: 821.0526316 | BD11: 836.8421053 | BE11: 852.6315789 | BF11: 868.4210526 | BG11: 884.2105263 | BH11: 894.4736842 | BI11: 904.7368421 | BJ11: 915 | BK11: 925.2631579 | BL11: 930.7894737 | BM11: 936.3157895 | BN11: 941.8421053 | BO11: 947.3684211 | BP11: 947.3684211 | BQ11: 947.3684211 | BR11: 947.3684211 | BS11: 947.3684211 | BT11: =$B$7*BT10/(1-$B$6) -> 947.3684211 | BU11: 947.3684211 | BV11: 947.3684211 | BW11: 947.3684211 | BX11: 947.3684211 | BY11: 947.3684211 | BZ11: 947.3684211 | CA11: 947.3684211 | CB11: 947.3684211 | CC11: 947.3684211 | CD11: 947.3684211 | CE11: 947.3684211 | CF11: 947.3684211 | CG11: 947.3684211 | CH11: 947.3684211 | CI11: 947.3684211 | CJ11: 947.3684211 | CK11: 947.3684211 | CL11: 947.3684211 | CM11: 947.3684211 | CN11: 947.3684211 | CO11: 947.3684211 | CP11: 947.3684211 | CQ11: 947.3684211 | CR11: 947.3684211 | CS11: 947.3684211 | CT11: 947.3684211 | CU11: 947.3684211 | CV11: 947.3684211 | CW11: 947.3684211 | CX11: 947.3684211 | CY11: 947.3684211 | CZ11: 947.3684211 | DA11: 947.3684211 | DB11: 947.3684211 | DC11: 947.3684211
C12: Suma | D12: =SUM(G12:DC12) -> 334.3839595 | E12: Energie | F12: kWh | G12: =G11*G9/1000 -> 0 | H12: =H11*H9/1000 -> 0 | I12: 0 | J12: 0 | K12: 0 | L12: 0 | M12: 0 | N12: 0 | O12: 0 | P12: 0 | Q12: 0 | R12: 0 | S12: 0 | T12: 0 | U12: 0 | V12: 0 | W12: 0 | X12: 6.21540061 | Y12: 11.44047972 | Z12: 15.61922032 | AA12: 18.75160616 | AB12: 21.08334776 | AC12: 22.45192145 | AD12: 22.97035147 | AE12: 22.76864291 | AF12: 22.32409358 | AG12: 21.32972688 | AH12: 19.931147 | AI12: 18.26132742 | AJ12: 16.76876574 | AK12: 15.09748082 | AL12: 13.35330741 | AM12: 11.61978808 | AN12: 10.02941087 | AO12: 8.526114101 | AP12: 7.145523881 | AQ12: 5.908190587 | AR12: 4.890788536 | AS12: 3.99186379 | AT12: 3.21491335 | AU12: 2.556379931 | AV12: 2.01071198 | AW12: 1.562716108 | AX12: 1.20055905 | AY12: 0.9120175994 | AZ12: 0.684522165 | BA12: 0.5083472847 | BB12: 0.373603032 | BC12: 0.2717784444 | BD12: 0.1917441163 | BE12: 0.1340956719 | BF12: 0.09296211415 | BG12: 0.06388631774 | BH12: 0.04325704624 | BI12: 0.02904124827 | BJ12: 0.01933259169 | BK12: 0.01276109298 | BL12: 0.008310179543 | BM12: 0.005366673455 | BN12: 0.003436979293 | BO12: 0.002182881495 | BP12: 0.001366920248 | BQ12: 0.000848908133 | BR12: 0.0005228612391 | BS12: 0.0003193919721 | BT12: =BT11*BT9/1000 -> 0.0001934981124 | BU12: 0.0001162647055 | BV12: 6.928521638e-05 | BW12: 4.09503608e-05 | BX12: 2.400502628e-05 | BY12: 1.395650388e-05 | BZ12: 8.047920636e-06 | CA12: 4.602839154e-06 | CB12: 2.610990904e-06 | CC12: 1.469009638e-06 | CD12: 8.197583437e-07 | CE12: 4.537232789e-07 | CF12: 2.490819817e-07 | CG12: 1.356255579e-07 | CH12: 7.324712861e-08 | CI12: 3.923659471e-08 | CJ12: 2.084708702e-08 | CK12: 1.098637659e-08 | CL12: 5.742754106e-09 | CM12: 2.977447718e-09 | CN12: 1.531185275e-09 | CO12: 7.810385312e-10 | CP12: 3.951661006e-10 | CQ12: 1.983128024e-10 | CR12: 9.871586772e-11 | CS12: 4.874045527e-11 | CT12: 2.387040602e-11 | CU12: 1.159574919e-11 | CV12: 5.587373923e-12 | CW12: 2.67046982e-12 | CX12: 1.266017441e-12 | CY12: 5.953396524e-13 | CZ12: 2.776924258e-13 | DA12: 1.284808288e-13 | DB12: 5.896423011e-14 | DC12: 2.684206057e-14
G13: =D32/12 -> 27.86532996
H15: Tip: Kliknutim na graf se graf prizpusobi
B31: Úspora [kWh] | E31: et | F31: en
B32: Vyrobená energie | D32: =D12 -> 334.3839595 | E32: =167/365*D32 -> 152.992113 | F32: =D32-E32 -> 181.3918465

Sheet Varianta B
E1: cena et | F1: energie | G1: uspora
A2: Plocha turbiny [m2] | B2: 3.125 | C2: 3.125 | D2: temperacni | E2: 2 | F2: 152.992113 | G2: =F2*E2 -> 305.984226
A3: Rychlost větru [m/s] | B3: 3.5 | C3: 3.5 | D3: netemperacni | E3: 1 | F3: 181.3918465 | G3: =F3*E3 -> 181.3918465
A4: Investiční náklady [Kč] | B4: 20000 | C4: 20000 | G4: =SUM(G2:G3) -> 487.3760725
A5: Úspora [Kč/rok] | B5: 487.3760725
A6: NPV [Kč] | B6: -13111.39125
A7: Zivotnost [Roky] | B7: 15
A8: RCF [Kč] | B8: -945.6431002 | U8: 0 | V8: 1 | W8: 2 | X8: 3 | Y8: 4 | Z8: 5 | AA8: 6 | AB8: 7 | AC8: 8 | AD8: 9 | AE8: 10 | AF8: 11 | AG8: 12 | AH8: 13 | AI8: 14 | AJ8: 15 | AK8: 16 | AL8: 17 | AM8: 18 | AN8: 19 | AO8: 20
G9: od | H9: do | K9: od | L9: do | T9: Rychlost | U9: =$G$10+(U8/20)*($H$10-$G$10) -> 2 | V9: =$G$10+(V8/20)*($H$10-$G$10) -> 2.5 | W9: 3 | X9: 3.5 | Y9: 4 | Z9: 4.5 | AA9: 5 | AB9: 5.5 | AC9: 6 | AD9: 6.5 | AE9: 7 | AF9: 7.5 | AG9: 8 | AH9: 8.5 | AI9: 9 | AJ9: 9.5 | AK9: 10 | AL9: 10.5 | AM9: 11 | AN9: 11.5 | AO9: 12
A10: Závislost NPV/rychlost větru, investiční náklady | F10: Rychlost | G10: 2 | H10: 12 | J10: Náklady | K10: 0 | L10: 30000 | T10: Úspora | U10: 20.56780257 | V10: 96.95467817 | W10: 251.8650959 | X10: 487.3760725 | Y10: 798.2267541 | Z10: 1176.157219 | AA10: 1609.885117 | AB10: 2085.434145 | AC10: 2587.652597 | AD10: 3101.98834 | AE10: 3615.695265 | AF10: 4118.251116 | AG10: 4601.202288 | AH10: 5057.788106 | AI10: 5482.610208 | AJ10: 5871.448213 | AK10: 6221.19781 | AL10: 6529.859384 | AM10: 6796.514041 | AN10: 7021.254589 | AO10: 7205.067592
R11: 0 | S11: Naklady | T11: =$K$10+(R11/20)*($L$10-$K$10) -> 0 | U11: 282.3501612 | V11: 1330.971985 | W11: 3457.547308 | X11: 6690.588952 | Y11: 10957.8771 | Z11: 16146.0214 | AA11: 22100.1403 | AB11: 28628.37024 | AC11: 35522.71204 | AD11: 42583.39727 | AE11: 49635.45023 | AF11: 56534.42377 | AG11: 63164.26868 | AH11: 69432.17595 | AI11: 75264.03808 | AJ11: 80601.91864 | AK11: 85403.20233 | AL11: 89640.43891 | AM11: 93301.01397 | AN11: 96386.20159 | AO11: 98909.5451
R12: 1 | T12: =$K$10+(R12/20)*($L$10-$K$10) -> 1500 | U12: -1202.798354 | V12: -154.1765301 | W12: 1972.398793 | X12: 5205.440437 | Y12: 9472.728581 | Z12: 14660.87288 | AA12: 20614.99178 | AB12: 27143.22172 | AC12: 34037.56352 | AD12: 41098.24876 | AE12: 48150.30172 | AF12: 55049.27525 | AG12: 61679.12016 | AH12: 67947.02743 | AI12: 73778.88957 | AJ12: 79116.77012 | AK12: 83918.05382 | AL12: 88155.29039 | AM12: 91815.86545 | AN12: 94901.05308 | AO12: 97424.39658
R13: 2 | T13: 3000 | U13: -2687.946868 | V13: -1639.325045 | W13: 487.2502786 | X13: 3720.291922 | Y13: 7987.580066 | Z13: 13175.72437 | AA13: 19129.84327 | AB13: 25658.07321 | AC13: 32552.41501 | AD13: 39613.10024 | AE13: 46665.1532 | AF13: 53564.12674 | AG13: 60193.97165 | AH13: 66461.87892 | AI13: 72293.74105 | AJ13: 77631.62161 | AK13: 82432.9053 | AL13: 86670.14188 | AM13: 90330.71694 | AN13: 93415.90456 | AO13: 95939.24807
R14: 3 | T14: 4500 | U14: -4173.095383 | V14: -3124.47356 | W14: -997.8982363 | X14: 2235.143407 | Y14: 6502.431551 | Z14: 11690.57585 | AA14: 17644.69475 | AB14: 24172.92469 | AC14: 31067.26649 | AD14: 38127.95173 | AE14: 45180.00469 | AF14: 52078.97822 | AG14: 58708.82313 | AH14: 64976.7304 | AI14: 70808.59254 | AJ14: 76146.47309 | AK14: 80947.75679 | AL14: 85184.99336 | AM14: 88845.56842 | AN14: 91930.75605 | AO14: 94454.09955
R15: 4 | T15: 6000 | U15: -5658.243898 | V15: -4609.622075 | W15: -2483.046751 | X15: 749.9948923 | Y15: 5017.283036 | Z15: 10205.42734 | AA15: 16159.54624 | AB15: 22687.77618 | AC15: 29582.11798 | AD15: 36642.80321 | AE15: 43694.85617 | AF15: 50593.82971 | AG15: 57223.67462 | AH15: 63491.58189 | AI15: 69323.44402 | AJ15: 74661.32458 | AK15: 79462.60827 | AL15: 83699.84485 | AM15: 87360.41991 | AN15: 90445.60753 | AO15: 92968.95104
R16: 5 | T16: 7500 | U16: -7143.392413 | V16: -6094.77059 | W16: -3968.195266 | X16: -735.1536226 | Y16: 3532.134521 | Z16: 8720.278824 | AA16: 14674.39772 | AB16: 21202.62766 | AC16: 28096.96946 | AD16: 35157.6547 | AE16: 42209.70766 | AF16: 49108.68119 | AG16: 55738.5261 | AH16: 62006.43337 | AI16: 67838.29551 | AJ16: 73176.17607 | AK16: 77977.45976 | AL16: 82214.69633 | AM16: 85875.27139 | AN16: 88960.45902 | AO16: 91483.80252
R17: 6 | T17: 9000 | U17: -8628.540928 | V17: -7579.919104 | W17: -5453.343781 | X17: -2220.302137 | Y17: 2046.986007 | Z17: 7235.13031 | AA17: 13189.24921 | AB17: 19717.47915 | AC17: 26611.82095 | AD17: 33672.50618 | AE17: 40724.55914 | AF17: 47623.53268 | AG17: 54253.37759 | AH17: 60521.28486 | AI17: 66353.14699 | AJ17: 71691.02755 | AK17: 76492.31124 | AL17: 80729.54782 | AM17: 84390.12288 | AN17: 87475.3105 | AO17: 89998.65401
R18: 7 | T18: 10500 | U18: -10113.68944 | V18: -9065.067619 | W18: -6938.492296 | X18: -3705.450652 | Y18: 561.8374917 | Z18: 5749.981795 | AA18: 11704.10069 | AB18: 18232.33063 | AC18: 25126.67243 | AD18: 32187.35767 | AE18: 39239.41063 | AF18: 46138.38416 | AG18: 52768.22907 | AH18: 59036.13634 | AI18: 64867.99848 | AJ18: 70205.87904 | AK18: 75007.16273 | AL18: 79244.3993 | AM18: 82904.97436 | AN18: 85990.16199 | AO18: 88513.50549
R19: 8 | T19: 12000 | U19: -11598.83796 | V19: -10550.21613 | W19: -8423.640811 | X19: -5190.599167 | Y19: -923.3110231 | Z19: 4264.83328 | AA19: 10218.95218 | AB19: 16747.18212 | AC19: 23641.52392 | AD19: 30702.20915 | AE19: 37754.26211 | AF19: 44653.23565 | AG19: 51283.08056 | AH19: 57550.98783 | AI19: 63382.84996 | AJ19: 68720.73052 | AK19: 73522.01421 | AL19: 77759.25079 | AM19: 81419.82585 | AN19: 84505.01347 | AO19: 87028.35698
R20: 9 | T20: 13500 | U20: -13083.98647 | V20: -12035.36465 | W20: -9908.789325 | X20: -6675.747682 | Y20: -2408.459538 | Z20: 2779.684765 | AA20: 8733.803662 | AB20: 15262.0336 | AC20: 22156.3754 | AD20: 29217.06064 | AE20: 36269.1136 | AF20: 43168.08713 | AG20: 49797.93204 | AH20: 56065.83931 | AI20: 61897.70145 | AJ20: 67235.58201 | AK20: 72036.8657 | AL20: 76274.10227 | AM20: 79934.67733 | AN20: 83019.86496 | AO20: 85543.20846
R21: 10 | T21: 15000 | U21: -14569.13499 | V21: -13520.51316 | W21: -11393.93784 | X21: -8160.896197 | Y21: -3893.608053 | Z21: 1294.53625 | AA21: 7248.655148 | AB21: 13776.88509 | AC21: 20671.22689 | AD21: 27731.91212 | AE21: 34783.96508 | AF21: 41682.93862 | AG21: 48312.78353 | AH21: 54580.6908 | AI21: 60412.55293 | AJ21: 65750.43349 | AK21: 70551.71718 | AL21: 74788.95376 | AM21: 78449.52882 | AN21: 81534.71644 | AO21: 84058.05995
R22: 11 | T22: 16500 | U22: -16054.2835 | V22: -15005.66168 | W22: -12879.08636 | X22: -9646.044712 | Y22: -5378.756568 | Z22: -190.6122646 | AA22: 5763.506633 | AB22: 12291.73657 | AC22: 19186.07837 | AD22: 26246.76361 | AE22: 33298.81657 | AF22: 40197.7901 | AG22: 46827.63501 | AH22: 53095.54228 | AI22: 58927.40442 | AJ22: 64265.28498 | AK22: 69066.56867 | AL22: 73303.80524 | AM22: 76964.3803 | AN22: 80049.56793 | AO22: 82572.91143
R23: 12 | T23: 18000 | U23: -17539.43202 | V23: -16490.81019 | W23: -14364.23487 | X23: -11131.19323 | Y23: -6863.905083 | Z23: -1675.760779 | AA23: 4278.358118 | AB23: 10806.58806 | AC23: 17700.92986 | AD23: 24761.61509 | AE23: 31813.66805 | AF23: 38712.64159 | AG23: 45342.4865 | AH23: 51610.39377 | AI23: 57442.2559 | AJ23: 62780.13646 | AK23: 67581.42016 | AL23: 71818.65673 | AM23: 75479.23179 | AN23: 78564.41941 | AO23: 81087.76292
R24: 13 | T24: 19500 | U24: -19024.58053 | V24: -17975.95871 | W24: -15849.38338 | X24: -12616.34174 | Y24: -8349.053597 | Z24: -3160.909294 | AA24: 2793.209603 | AB24: 9321.439543 | AC24: 16215.78134 | AD24: 23276.46658 | AE24: 30328.51954 | AF24: 37227.49307 | AG24: 43857.33798 | AH24: 50125.24525 | AI24: 55957.10739 | AJ24: 61294.98795 | AK24: 66096.27164 | AL24: 70333.50821 | AM24: 73994.08327 | AN24: 77079.2709 | AO24: 79602.6144
R25: 14 | T25: 21000 | U25: -20509.72905 | V25: -19461.10722 | W25: -17334.5319 | X25: -14101.49026 | Y25: -9834.202112 | Z25: -4646.057809 | AA25: 1308.061088 | AB25: 7836.291029 | AC25: 14730.63283 | AD25: 21791.31806 | AE25: 28843.37102 | AF25: 35742.34456 | AG25: 42372.18947 | AH25: 48640.09674 | AI25: 54471.95887 | AJ25: 59809.83943 | AK25: 64611.12313 | AL25: 68848.3597 | AM25: 72508.93476 | AN25: 75594.12238 | AO25: 78117.46589
R26: 15 | T26: 22500 | U26: -21994.87756 | V26: -20946.25574 | W26: -18819.68041 | X26: -15586.63877 | Y26: -11319.35063 | Z26: -6131.206324 | AA26: -177.0874267 | AB26: 6351.142514 | AC26: 13245.48431 | AD26: 20306.16955 | AE26: 27358.22251 | AF26: 34257.19604 | AG26: 40887.04096 | AH26: 47154.94822 | AI26: 52986.81036 | AJ26: 58324.69092 | AK26: 63125.97461 | AL26: 67363.21118 | AM26: 71023.78624 | AN26: 74108.97387 | AO26: 76632.31737
R27: 16 | T27: 24000 | U27: -23480.02608 | V27: -22431.40425 | W27: -20304.82893 | X27: -17071.78729 | Y27: -12804.49914 | Z27: -7616.354839 | AA27: -1662.235942 | AB27: 4865.993999 | AC27: 11760.3358 | AD27: 18821.02103 | AE27: 25873.07399 | AF27: 32772.04753 | AG27: 39401.89244 | AH27: 45669.79971 | AI27: 51501.66184 | AJ27: 56839.5424 | AK27: 61640.8261 | AL27: 65878.06267 | AM27: 69538.63773 | AN27: 72623.82535 | AO27: 75147.16886
R28: 17 | T28: 25500 | U28: -24965.17459 | V28: -23916.55277 | W28: -21789.97744 | X28: -18556.9358 | Y28: -14289.64766 | Z28: -9101.503354 | AA28: -3147.384456 | AB28: 3380.845484 | AC28: 10275.18728 | AD28: 17335.87252 | AE28: 24387.92548 | AF28: 31286.89902 | AG28: 37916.74393 | AH28: 44184.65119 | AI28: 50016.51333 | AJ28: 55354.39389 | AK28: 60155.67758 | AL28: 64392.91415 | AM28: 68053.48921 | AN28: 71138.67684 | AO28: 73662.02034
R29: 18 | T29: 27000 | U29: -26450.32311 | V29: -25401.70128 | W29: -23275.12596 | X29: -20042.08432 | Y29: -15774.79617 | Z29: -10586.65187 | AA29: -4632.532971 | AB29: 1895.696969 | AC29: 8790.038768 | AD29: 15850.724 | AE29: 22902.77697 | AF29: 29801.7505 | AG29: 36431.59541 | AH29: 42699.50268 | AI29: 48531.36482 | AJ29: 53869.24537 | AK29: 58670.52907 | AL29: 62907.76564 | AM29: 66568.3407 | AN29: 69653.52832 | AO29: 72176.87183
R30: 19 | T30: 28500 | U30: -27935.47162 | V30: -26886.8498 | W30: -24760.27447 | X30: -21527.23283 | Y30: -17259.94469 | Z30: -12071.80038 | AA30: -6117.681486 | AB30: 410.5484544 | AC30: 7304.890253 | AD30: 14365.57549 | AE30: 21417.62845 | AF30: 28316.60199 | AG30: 34946.4469 | AH30: 41214.35416 | AI30: 47046.2163 | AJ30: 52384.09686 | AK30: 57185.38055 | AL30: 61422.61712 | AM30: 65083.19218 | AN30: 68168.37981 | AO30: 70691.72331
R31: 20 | T31: 30000 | U31: -29420.62014 | V31: -28371.99831 | W31: -26245.42299 | X31: -23012.38135 | Y31: -18745.0932 | Z31: -13556.9489 | AA31: -7602.830001 | AB31: -1074.60006 | AC31: 5819.741738 | AD31: 12880.42697 | AE31: 19932.47994 | AF31: 26831.45347 | AG31: 33461.29838 | AH31: 39729.20565 | AI31: 45561.06779 | AJ31: 50898.94834 | AK31: 55700.23204 | AL31: 59937.46861 | AM31: 63598.04367 | AN31: 66683.23129 | AO31: 69206.5748
G33: od | H33: do
A34: Závislost RCF / rychlost větru | F34: Rychlost | G34: 2 | H34: 10
U35: 0 | V35: 1 | W35: 2 | X35: 3 | Y35: 4 | Z35: 5 | AA35: 6 | AB35: 7 | AC35: 8 | AD35: 9 | AE35: 10 | AF35: 11 | AG35: 12 | AH35: 13 | AI35: 14 | AJ35: 15 | AK35: 16 | AL35: 17 | AM35: 18 | AN35: 19 | AO35: 20
T36: Rychlost | U36: =$G$34+(U35/20)*($H$34-$G$34) -> 2 | V36: =$G$34+(V35/20)*($H$34-$G$34) -> 2.4 | W36: 2.8 | X36: 3.2 | Y36: 3.6 | Z36: 4 | AA36: 4.4 | AB36: 4.8 | AC36: 5.2 | AD36: 5.6 | AE36: 6 | AF36: 6.4 | AG36: 6.8 | AH36: 7.2 | AI36: 7.6 | AJ36: 8 | AK36: 8.4 | AL36: 8.8 | AM36: 9.2 | AN36: 9.6 | AO36: 10
T37: Úspora | U37: 20.56780257 | V37: 75.7140576 | W37: 180.080479 | X37: 336.611451 | Y37: 543.7437823 | Z37: 798.2267541 | AA37: 1095.701085 | AB37: 1430.546336 | AC37: 1795.928722 | AD37: 2184.228586 | AE37: 2587.652597 | AF37: 2998.795159 | AG37: 3411.011201 | AH37: 3818.571698 | AI37: 4216.647974 | AJ37: 4601.202288 | AK37: 4968.856975 | AL37: 5316.788374 | AM37: 5642.662155 | AN37: 5944.605051 | AO37: 6221.19781
T38: NPV | U38: -19519.63004 | V38: -18762.59467 | W38: -17329.87594 | X38: -15181.05401 | Y38: -12337.58802 | Z38: -8844.103102 | AA38: -4760.442489 | AB38: -163.7623043 | AC38: 4852.124798 | AD38: 10182.61788 | AE38: 15720.73184 | AF38: 21364.80432 | AG38: 27023.61331 | AH38: 32618.51202 | AI38: 38083.21348 | AJ38: 43362.28848 | AK38: 48409.36922 | AL38: 53185.69309 | AM38: 57659.21497 | AN38: 61804.21904 | AO38: 65601.22214
T39: RCF | U39: -1407.829506 | V39: -1353.229254 | W39: -1249.896163 | X39: -1094.915003 | Y39: -889.8334866 | Z39: -637.8701481 | AA39: -343.3411077 | AB39: -11.81115644 | AC39: 349.9535823 | AD39: 734.4088937 | AE39: 1133.838607 | AF39: 1540.91045 | AG39: 1949.045146 | AH39: 2352.570391 | AI39: 2746.705317 | AJ39: 3127.452163 | AK39: 3491.466704 | AL39: 3835.953238 | AM39: 4158.600546 | AN39: 4457.553908 | AO39: 4731.408125
U52: 0 | V52: 1 | W52: 2 | X52: 3 | Y52: 4 | Z52: 5 | AA52: 6 | AB52: 7 | AC52: 8 | AD52: 9 | AE52: 10 | AF52: 11 | AG52: 12 | AH52: 13 | AI52: 14 | AJ52: 15 | AK52: 16 | AL52: 17 | AM52: 18 | AN52: 19 | AO52: 20
T53: Cena energie | U53: =$G$55+(U52/10)*($H$55-$G$55) -> 1 | V53: =$G$55+(V52/10)*($H$55-$G$55) -> 1.4 | W53: 1.8 | X53: 2.2 | Y53: 2.6 | Z53: 3 | AA53: 3.4 | AB53: 3.8 | AC53: 4.2 | AD53: 4.6 | AE53: 5
G54: od | H54: do | T54: Úspora | U54: 334.3839595 | V54: 468.1375433 | W54: 601.8911272 | X54: 735.644711 | Y54: 869.3982948 | Z54: 1003.151879 | AA54: 1136.905462 | AB54: 1270.659046 | AC54: 1404.41263 | AD54: 1538.166214 | AE54: 1671.919798
A55: Závislost RCF / cena energie | F55: Cena | G55: 1 | H55: 5 | T55: NPV | U55: -15211.63252 | V55: -13375.49344 | W55: -11539.35437 | X55: -9703.215295 | Y55: -7867.076222 | Z55: -6030.937149 | AA55: -4194.798076 | AB55: -2358.659003 | AC55: -522.5199294 | AD55: 1313.619144 | AE55: 3149.758217
T56: RCF | U56: -1097.12044 | V56: -964.6911489 | W56: -832.261858 | X56: -699.8325671 | Y56: -567.4032761 | Z56: -434.9739852 | AA56: -302.5446943 | AB56: -170.1154034 | AC56: -37.68611253 | AD56: 94.74317837 | AE56: 227.1724693
U74: 0 | V74: 1 | W74: 2 | X74: 3 | Y74: 4 | Z74: 5 | AA74: 6 | AB74: 7 | AC74: 8 | AD74: 9 | AE74: 10
G75: od | H75: do | T75: Rust | U75: =$G$76+(U74/10)*($H$76-$G$76) -> 0 | V75: =$G$76+(V74/10)*($H$76-$G$76) -> 1 | W75: 2 | X75: 3 | Y75: 4 | Z75: 5 | AA75: 6 | AB75: 7 | AC75: 8 | AD75: 9 | AE75: 10
A76: Závislost RCF / růst cen | F76: Růst | G76: 0 | H76: 10 | T76: NPV | U76: -13768.67581 | V76: -13468.21218 | W76: -13111.39125 | X76: -12689.35891 | Y76: -12191.7334 | Z76: -11606.31433 | AA76: -10918.73134 | AB76: -10112.0186 | AC76: -9166.098407 | AD76: -8057.152804 | AE76: -6756.857076
T77: RCF | U77: -1153.35489 | V77: -1048.169973 | W77: -945.6431002 | X77: -845.9572608 | Y77: -749.2838989 | Z77: -655.780571 | AA77: -565.5887134 | AB77: -478.83158 | AC77: -395.6124108 | AD77: -316.0128887 | AE77: -240.091933
U94: 0 | V94: 1 | W94: 2 | X94: 3 | Y94: 4 | Z94: 5 | AA94: 6 | AB94: 7 | AC94: 8 | AD94: 9 | AE94: 10
G95: od | H95: do | T95: Diskont | U95: =$G$76+(U94/10)*($H$76-$G$76) -> 0 | V95: 1 | W95: 2 | X95: 3 | Y95: 4 | Z95: 5 | AA95: 6 | AB95: 7 | AC95: 8 | AD95: 9 | AE95: 10
A96: Závislost RCF / diskont | F96: diskont | G96: 0 | H96: 10 | T96: NPV | U96: -11606.31433 | V96: -12191.7334 | W96: -12689.35891 | X96: -13111.39125 | Y96: -13468.21218 | Z96: -13768.67581 | AA96: -14020.35 | AB96: -14229.71717 | AC96: -14402.34173 | AD96: -14543.00995 | AE96: -14655.84712
T97: RCF | U97: -655.780571 | V97: -749.2838989 | W97: -845.9572608 | X97: -945.6431002 | Y97: -1048.169973 | Z97: -1153.35489 | AA97: -1261.005707 | AB97: -1370.923504 | AC97: -1482.904912 | AD97: -1596.744319 | AE97: -1712.23595
G115: od | H115: do
A116: Závislost RCF / investiční náklady | F116: Náklady | G116: 0 | H116: 30000
U117: 0 | V117: 1 | W117: 2 | X117: 3 | Y117: 4 | Z117: 5 | AA117: 6 | AB117: 7 | AC117: 8 | AD117: 9 | AE117: 10 | AF117: 11 | AG117: 12 | AH117: 13 | AI117: 14 | AJ117: 15 | AK117: 16 | AL117: 17 | AM117: 18 | AN117: 19 | AO117: 20
T118: Ni | U118: =$G$116+(U117/20)*($H$116-$G$116) -> 0 | V118: =$G$116+(V117/20)*($H$116-$G$116) -> 1500 | W118: 3000 | X118: 4500 | Y118: 6000 | Z118: 7500 | AA118: 9000 | AB118: 10500 | AC118: 12000 | AD118: 13500 | AE118: 15000 | AF118: 16500 | AG118: 18000 | AH118: 19500 | AI118: 21000 | AJ118: 22500 | AK118: 24000 | AL118: 25500 | AM118: 27000 | AN118: 28500 | AO118: =$G$116+(AO117/20)*($H$116-$G$116) -> 30000
T119: NPV | U119: 6690.588952 | V119: 5205.440437 | W119: 3720.291922 | X119: 2235.143407 | Y119: 749.9948923 | Z119: -735.1536226 | AA119: -2220.302137 | AB119: -3705.450652 | AC119: -5190.599167 | AD119: -6675.747682 | AE119: -8160.896197 | AF119: -9646.044712 | AG119: -11131.19323 | AH119: -12616.34174 | AI119: -14101.49026 | AJ119: -15586.63877 | AK119: -17071.78729 | AL119: -18556.9358 | AM119: -20042.08432 | AN119: -21527.23283 | AO119: -23012.38135
T120: RCF | U120: 482.5505669 | V120: 375.4360418 | W120: 268.3215168 | X120: 161.2069918 | Y120: 54.09246675 | Z120: -53.02205828 | AA120: -160.1365833 | AB120: -267.2511083 | AC120: -374.3656334 | AD120: -481.4801584 | AE120: -588.5946834 | AF120: -695.7092084 | AG120: -802.8237335 | AH120: -909.9382585 | AI120: -1017.052784 | AJ120: -1124.167309 | AK120: -1231.281834 | AL120: -1338.396359 | AM120: -1445.510884 | AN120: -1552.625409 | AO120: -1659.739934

Sheet Výpočty - Varianta C
E1: Prevodni tabulka
A2: Rychlost větru | B2: 3.5 | C2: m/s | E2: v [m/s] | F2: 2 | G2: 2.5 | H2: 3 | I2: 3.5 | J2: 4 | K2: 4.5 | L2: 5 | M2: 5.5 | N2: 6 | O2: 6.5 | P2: 7 | Q2: 7.5 | R2: 8 | S2: 8.5 | T2: 9 | U2: 9.5 | V2: 10 | W2: 10.5 | X2: 11 | Y2: 11.5 | Z2: 12
A3: Plocha rotoru | B3: 7.07 | C3: m2 | E3: P [W] | F3: 120 | G3: 180 | H3: 240 | I3: 290 | J3: 350 | K3: 400 | L3: 440 | M3: 485 | N3: 520 | O3: 550 | P3: 580 | Q3: 605 | R3: 625 | S3: 650 | T3: 675 | U3: 700 | V3: 725 | W3: 760 | X3: 790 | Y3: 820 | Z3: 850
A4: Vyrobena energie | B4: =HLOOKUP(B2,F2:Z3,2)*12 -> 3480 | C4: kWh
A7: Úspora [kWh] | D7: et | E7: en
A8: Vyrobená energie | C8: =B4 -> 3480 | D8: =167/365*C8 -> 1592.219178 | E8: =C8-D8 -> 1887.780822

Sheet Varianta C
B1: 18600 | C1: =9300*2 -> 18600 | E1: cena et | F1: energie | G1: uspora
A2: Plocha turbiny [m2] | B2: 7.07 | C2: 7.07 | D2: temperacni | E2: 2 | F2: 1592.219178 | G2: =F2*E2 -> 3184.438356
A3: Rychlost větru [m/s] | B3: 3.5 | C3: 3.5 | D3: netemperacni | E3: 1 | F3: 1887.780822 | G3: =F3*E3 -> 1887.780822
A4: Investiční náklady [Kč] | B4: 115000 | C4: 115000 | G4: =SUM(G2:G3) -> 5072.219178
A5: Úspora [Kč/rok] | B5: 5072.219178
A6: NPV [Kč] | B6: -44231.10368
A7: Zivotnost [Roky] | B7: 15
A8: RCF [Kč] | B8: -3190.114399 | U8: 0 | V8: 1 | W8: 2 | X8: 3 | Y8: 4 | Z8: 5 | AA8: 6 | AB8: 7 | AC8: 8 | AD8: 9 | AE8: 10 | AF8: 11 | AG8: 12 | AH8: 13 | AI8: 14 | AJ8: 15 | AK8: 16 | AL8: 17 | AM8: 18 | AN8: 19 | AO8: 20
G9: od | H9: do | K9: od | L9: do | T9: Rychlost | U9: =$G$10+(U8/20)*($H$10-$G$10) -> 2 | V9: =$G$10+(V8/20)*($H$10-$G$10) -> 2.5 | W9: 3 | X9: 3.5 | Y9: 4 | Z9: 4.5 | AA9: 5 | AB9: 5.5 | AC9: 6 | AD9: 6.5 | AE9: 7 | AF9: 7.5 | AG9: 8 | AH9: 8.5 | AI9: 9 | AJ9: 9.5 | AK9: 10 | AL9: 10.5 | AM9: 11 | AN9: 11.5 | AO9: 12
A10: Závislost NPV/rychlost větru, investiční náklady | F10: Rychlost | G10: 2 | H10: 12 | J10: Náklady | K10: 0 | L10: 200000 | T10: Úspora | U10: 2098.849315 | V10: 3148.273973 | W10: 4197.69863 | X10: 5072.219178 | Y10: 6121.643836 | Z10: 6996.164384 | AA10: 7695.780822 | AB10: 8482.849315 | AC10: 9095.013699 | AD10: 9619.726027 | AE10: 10144.43836 | AF10: 10581.69863 | AG10: 10931.50685 | AH10: 11368.76712 | AI10: 11806.0274 | AJ10: 12243.28767 | AK10: 12680.54795 | AL10: 13292.71233 | AM10: 13817.42466 | AN10: 14342.13699 | AO10: 14866.84932
R11: 0 | S11: Naklady | T11: =$K$10+(R11/20)*($L$10-$K$10) -> 0 | U11: 28812.53067 | V11: 43218.79601 | W11: 57625.06134 | X11: 69630.28246 | Y11: 84036.54779 | Z11: 96041.76891 | AA11: 105645.9458 | AB11: 116450.6448 | AC11: 124854.2996 | AD11: 132057.4322 | AE11: 139260.5649 | AF11: 145263.1755 | AG11: 150065.2639 | AH11: 156067.8745 | AI11: 162070.485 | AJ11: 168073.0956 | AK11: 174075.7061 | AL11: 182479.3609 | AM11: 189682.4936 | AN11: 196885.6263 | AO11: 204088.7589
R12: 1 | T12: =$K$10+(R12/20)*($L$10-$K$10) -> 10000 | U12: 18911.54057 | V12: 33317.80591 | W12: 47724.07125 | X12: 59729.29236 | Y12: 74135.5577 | Z12: 86140.77881 | AA12: 95744.9557 | AB12: 106549.6547 | AC12: 114953.3095 | AD12: 122156.4421 | AE12: 129359.5748 | AF12: 135362.1854 | AG12: 140164.2738 | AH12: 146166.8844 | AI12: 152169.4949 | AJ12: 158172.1055 | AK12: 164174.716 | AL12: 172578.3708 | AM12: 179781.5035 | AN12: 186984.6362 | AO12: 194187.7688
R13: 2 | T13: 20000 | U13: 9010.550474 | V13: 23416.81581 | W13: 37823.08115 | X13: 49828.30226 | Y13: 64234.5676 | Z13: 76239.78871 | AA13: 85843.9656 | AB13: 96648.6646 | AC13: 105052.3194 | AD13: 112255.4521 | AE13: 119458.5847 | AF13: 125461.1953 | AG13: 130263.2837 | AH13: 136265.8943 | AI13: 142268.5048 | AJ13: 148271.1154 | AK13: 154273.7259 | AL13: 162677.3807 | AM13: 169880.5134 | AN13: 177083.6461 | AO13: 184286.7787
R14: 3 | T14: 30000 | U14: -890.4396247 | V14: 13515.82571 | W14: 27922.09105 | X14: 39927.31216 | Y14: 54333.5775 | Z14: 66338.79861 | AA14: 75942.9755 | AB14: 86747.6745 | AC14: 95151.32928 | AD14: 102354.462 | AE14: 109557.5946 | AF14: 115560.2052 | AG14: 120362.2936 | AH14: 126364.9042 | AI14: 132367.5147 | AJ14: 138370.1253 | AK14: 144372.7358 | AL14: 152776.3906 | AM14: 159979.5233 | AN14: 167182.656 | AO14: 174385.7886
R15: 4 | T15: 40000 | U15: -10791.42972 | V15: 3614.835612 | W15: 18021.10095 | X15: 30026.32206 | Y15: 44432.5874 | Z15: 56437.80851 | AA15: 66041.9854 | AB15: 76846.6844 | AC15: 85250.33918 | AD15: 92453.47185 | AE15: 99656.60452 | AF15: 105659.2151 | AG15: 110461.3035 | AH15: 116463.9141 | AI15: 122466.5246 | AJ15: 128469.1352 | AK15: 134471.7457 | AL15: 142875.4005 | AM15: 150078.5332 | AN15: 157281.6659 | AO15: 164484.7985
R16: 5 | T16: 50000 | U16: -20692.41982 | V16: -6286.154487 | W16: 8120.11085 | X16: 20125.33196 | Y16: 34531.5973 | Z16: 46536.81841 | AA16: 56140.9953 | AB16: 66945.69431 | AC16: 75349.34908 | AD16: 82552.48175 | AE16: 89755.61442 | AF16: 95758.22498 | AG16: 100560.3134 | AH16: 106562.924 | AI16: 112565.5345 | AJ16: 118568.1451 | AK16: 124570.7557 | AL16: 132974.4104 | AM16: 140177.5431 | AN16: 147380.6758 | AO16: 154583.8084
R17: 6 | T17: 60000 | U17: -30593.40992 | V17: -16187.14459 | W17: -1780.879249 | X17: 10224.34186 | Y17: 24630.6072 | Z17: 36635.82831 | AA17: 46240.0052 | AB17: 57044.70421 | AC17: 65448.35899 | AD17: 72651.49165 | AE17: 79854.62432 | AF17: 85857.23488 | AG17: 90659.32332 | AH17: 96661.93388 | AI17: 102664.5444 | AJ17: 108667.155 | AK17: 114669.7656 | AL17: 123073.4203 | AM17: 130276.553 | AN17: 137479.6857 | AO17: 144682.8183
R18: 7 | T18: 70000 | U18: -40494.40002 | V18: -26088.13468 | W18: -11681.86935 | X18: 323.351765 | Y18: 14729.6171 | Z18: 26734.83821 | AA18: 36339.01511 | AB18: 47143.71411 | AC18: 55547.36889 | AD18: 62750.50156 | AE18: 69953.63422 | AF18: 75956.24478 | AG18: 80758.33323 | AH18: 86760.94378 | AI18: 92763.55434 | AJ18: 98766.1649 | AK18: 104768.7755 | AL18: 113172.4302 | AM18: 120375.5629 | AN18: 127578.6956 | AO18: 134781.8282
R19: 8 | T19: 80000 | U19: -50395.39012 | V19: -35989.12478 | W19: -21582.85945 | X19: -9577.638334 | Y19: 4828.627002 | Z19: 16833.84812 | AA19: 26438.02501 | AB19: 37242.72401 | AC19: 45646.37879 | AD19: 52849.51146 | AE19: 60052.64412 | AF19: 66055.25468 | AG19: 70857.34313 | AH19: 76859.95368 | AI19: 82862.56424 | AJ19: 88865.1748 | AK19: 94867.78535 | AL19: 103271.4401 | AM19: 110474.5728 | AN19: 117677.7055 | AO19: 124880.8381
R20: 9 | T20: 90000 | U20: -60296.38022 | V20: -45890.11488 | W20: -31483.84955 | X20: -19478.62843 | Y20: -5072.363097 | Z20: 6932.858017 | AA20: 16537.03491 | AB20: 27341.73391 | AC20: 35745.38869 | AD20: 42948.52136 | AE20: 50151.65403 | AF20: 56154.26458 | AG20: 60956.35303 | AH20: 66958.96358 | AI20: 72961.57414 | AJ20: 78964.1847 | AK20: 84966.79525 | AL20: 93370.45003 | AM20: 100573.5827 | AN20: 107776.7154 | AO20: 114979.848
R21: 10 | T21: 100000 | U21: -70197.37032 | V21: -55791.10498 | W21: -41384.83965 | X21: -29379.61853 | Y21: -14973.3532 | Z21: -2968.132082 | AA21: 6636.044808 | AB21: 17440.74381 | AC21: 25844.39859 | AD21: 33047.53126 | AE21: 40250.66393 | AF21: 46253.27448 | AG21: 51055.36293 | AH21: 57057.97348 | AI21: 63060.58404 | AJ21: 69063.1946 | AK21: 75065.80516 | AL21: 83469.45993 | AM21: 90672.5926 | AN21: 97875.72527 | AO21: 105078.8579
R22: 11 | T22: 110000 | U22: -80098.36042 | V22: -65692.09508 | W22: -51285.82974 | X22: -39280.60863 | Y22: -24874.34329 | Z22: -12869.12218 | AA22: -3264.945291 | AB22: 7539.753711 | AC22: 15943.40849 | AD22: 23146.54116 | AE22: 30349.67383 | AF22: 36352.28438 | AG22: 41154.37283 | AH22: 47156.98339 | AI22: 53159.59394 | AJ22: 59162.2045 | AK22: 65164.81506 | AL22: 73568.46984 | AM22: 80771.6025 | AN22: 87974.73517 | AO22: 95177.86784
R23: 12 | T23: 120000 | U23: -89999.35052 | V23: -75593.08518 | W23: -61186.81984 | X23: -49181.59873 | Y23: -34775.33339 | Z23: -22770.11228 | AA23: -13165.93539 | AB23: -2361.236388 | AC23: 6042.418392 | AD23: 13245.55106 | AE23: 20448.68373 | AF23: 26451.29428 | AG23: 31253.38273 | AH23: 37255.99329 | AI23: 43258.60384 | AJ23: 49261.2144 | AK23: 55263.82496 | AL23: 63667.47974 | AM23: 70870.6124 | AN23: 78073.74507 | AO23: 85276.87774
R24: 13 | T24: 130000 | U24: -99900.34061 | V24: -85494.07528 | W24: -71087.80994 | X24: -59082.58883 | Y24: -44676.32349 | Z24: -32671.10238 | AA24: -23066.92549 | AB24: -12262.22649 | AC24: -3858.571707 | AD24: 3344.560961 | AE24: 10547.69363 | AF24: 16550.30419 | AG24: 21352.39263 | AH24: 27355.00319 | AI24: 33357.61374 | AJ24: 39360.2243 | AK24: 45362.83486 | AL24: 53766.48964 | AM24: 60969.62231 | AN24: 68172.75497 | AO24: 75375.88764
R25: 14 | T25: 140000 | U25: -109801.3307 | V25: -95395.06538 | W25: -80988.80004 | X25: -68983.57893 | Y25: -54577.31359 | Z25: -42572.09248 | AA25: -32967.91559 | AB25: -22163.21659 | AC25: -13759.56181 | AD25: -6556.429138 | AE25: 646.70353 | AF25: 6649.314087 | AG25: 11451.40253 | AH25: 17454.01309 | AI25: 23456.62365 | AJ25: 29459.2342 | AK25: 35461.84476 | AL25: 43865.49954 | AM25: 51068.63221 | AN25: 58271.76487 | AO25: 65474.89754
R26: 15 | T26: 150000 | U26: -119702.3208 | V26: -105296.0555 | W26: -90889.79014 | X26: -78884.56903 | Y26: -64478.30369 | Z26: -52473.08258 | AA26: -42868.90569 | AB26: -32064.20668 | AC26: -23660.55191 | AD26: -16457.41924 | AE26: -9254.286569 | AF26: -3251.676012 | AG26: 1550.412433 | AH26: 7553.02299 | AI26: 13555.63355 | AJ26: 19558.2441 | AK26: 25560.85466 | AL26: 33964.50944 | AM26: 41167.64211 | AN26: 48370.77478 | AO26: 55573.90744
R27: 16 | T27: 160000 | U27: -129603.3109 | V27: -115197.0456 | W27: -100790.7802 | X27: -88785.55913 | Y27: -74379.29379 | Z27: -62374.07268 | AA27: -52769.89579 | AB27: -41965.19678 | AC27: -33561.542 | AD27: -26358.40934 | AE27: -19155.27667 | AF27: -13152.66611 | AG27: -8350.577666 | AH27: -2347.967109 | AI27: 3654.643448 | AJ27: 9657.254004 | AK27: 15659.86456 | AL27: 24063.51934 | AM27: 31266.65201 | AN27: 38469.78468 | AO27: 45672.91734
R28: 17 | T28: 170000 | U28: -139504.301 | V28: -125098.0357 | W28: -110691.7703 | X28: -98686.54923 | Y28: -84280.28389 | Z28: -72275.06278 | AA28: -62670.88588 | AB28: -51866.18688 | AC28: -43462.5321 | AD28: -36259.39944 | AE28: -29056.26677 | AF28: -23053.65621 | AG28: -18251.56776 | AH28: -12248.95721 | AI28: -6246.346651 | AJ28: -243.7360947 | AK28: 5758.874462 | AL28: 14162.52924 | AM28: 21365.66191 | AN28: 28568.79458 | AO28: 35771.92725
R29: 18 | T29: 180000 | U29: -149405.2911 | V29: -134999.0258 | W29: -120592.7604 | X29: -108587.5393 | Y29: -94181.27399 | Z29: -82176.05287 | AA29: -72571.87598 | AB29: -61767.17698 | AC29: -53363.5222 | AD29: -46160.38953 | AE29: -38957.25687 | AF29: -32954.64631 | AG29: -28152.55786 | AH29: -22149.94731 | AI29: -16147.33675 | AJ29: -10144.72619 | AK29: -4142.115637 | AL29: 4261.539142 | AM29: 11464.67181 | AN29: 18667.80448 | AO29: 25870.93715
R30: 19 | T30: 190000 | U30: -159306.2812 | V30: -144900.0159 | W30: -130493.7505 | X30: -118488.5294 | Y30: -104082.2641 | Z30: -92077.04297 | AA30: -82472.86608 | AB30: -71668.16708 | AC30: -63264.5123 | AD30: -56061.37963 | AE30: -48858.24697 | AF30: -42855.63641 | AG30: -38053.54796 | AH30: -32050.93741 | AI30: -26048.32685 | AJ30: -20045.71629 | AK30: -14043.10574 | AL30: -5639.450957 | AM30: 1563.681712 | AN30: 8766.81438 | AO30: 15969.94705
R31: 20 | T31: 200000 | U31: -169207.2713 | V31: -154801.006 | W31: -140394.7406 | X31: -128389.5195 | Y31: -113983.2542 | Z31: -101978.0331 | AA31: -92373.85618 | AB31: -81569.15718 | AC31: -73165.5024 | AD31: -65962.36973 | AE31: -58759.23706 | AF31: -52756.62651 | AG31: -47954.53806 | AH31: -41951.92751 | AI31: -35949.31695 | AJ31: -29946.70639 | AK31: -23944.09583 | AL31: -15540.44106 | AM31: -8337.308387 | AN31: -1134.175719 | AO31: 6068.956949
G33: od | H33: do
A34: Závislost NPV / rychlost větru | F34: Rychlost | G34: 2 | H34: 12
U35: 0 | V35: 1 | W35: 2 | X35: 3 | Y35: 4 | Z35: 5 | AA35: 6 | AB35: 7 | AC35: 8 | AD35: 9 | AE35: 10 | AF35: 11 | AG35: 12 | AH35: 13 | AI35: 14 | AJ35: 15 | AK35: 16 | AL35: 17 | AM35: 18 | AN35: 19 | AO35: 20
T36: Rychlost | U36: =$G$34+(U35/20)*($H$34-$G$34) -> 2 | V36: =$G$34+(V35/20)*($H$34-$G$34) -> 2.5 | W36: 3 | X36: 3.5 | Y36: 4 | Z36: 4.5 | AA36: 5 | AB36: 5.5 | AC36: 6 | AD36: 6.5 | AE36: 7 | AF36: 7.5 | AG36: 8 | AH36: 8.5 | AI36: 9 | AJ36: 9.5 | AK36: 10 | AL36: 10.5 | AM36: 11 | AN36: 11.5 | AO36: 12
T37: Úspora | U37: 2098.849315 | V37: 3148.273973 | W37: 4197.69863 | X37: 5072.219178 | Y37: 6121.643836 | Z37: 6996.164384 | AA37: 7695.780822 | AB37: 8482.849315 | AC37: 9095.013699 | AD37: 9619.726027 | AE37: 10144.43836 | AF37: 10581.69863 | AG37: 10931.50685 | AH37: 11368.76712 | AI37: 11806.0274 | AJ37: 12243.28767 | AK37: 12680.54795 | AL37: 13292.71233 | AM37: 13817.42466 | AN37: 14342.13699 | AO37: 14866.84932
T38: NPV | U38: -85048.85547 | V38: -70642.59013 | W38: -56236.32479 | X38: -44231.10368 | Y38: -29824.83834 | Z38: -17819.61723 | AA38: -8215.44034 | AB38: 2589.258662 | AC38: 10992.91344 | AD38: 18196.04611 | AE38: 25399.17878 | AF38: 31401.78933 | AG38: 36203.87778 | AH38: 42206.48834 | AI38: 48209.09889 | AJ38: 54211.70945 | AK38: 60214.32001 | AL38: 68617.97479 | AM38: 75821.10745 | AN38: 83024.24012 | AO38: 90227.37279
T39: RCF | U39: -6134.044957 | V39: -5095.010642 | W39: -4055.976328 | X39: -3190.114399 | Y39: -2151.080085 | Z39: -1285.218156 | AA39: -592.5286132 | AB39: 186.7471226 | AC39: 792.8504726 | AD39: 1312.36763 | AE39: 1831.884787 | AF39: 2264.815751 | AG39: 2611.160523 | AH39: 3044.091487 | AI39: 3477.022451 | AJ39: 3909.953416 | AK39: 4342.88438 | AL39: 4948.98773 | AM39: 5468.504887 | AN39: 5988.022045 | AO39: 6507.539202
U52: 0 | V52: 1 | W52: 2 | X52: 3 | Y52: 4 | Z52: 5 | AA52: 6 | AB52: 7 | AC52: 8 | AD52: 9 | AE52: 10 | AF52: 11 | AG52: 12 | AH52: 13 | AI52: 14 | AJ52: 15 | AK52: 16 | AL52: 17 | AM52: 18 | AN52: 19 | AO52: 20
T53: Cena energie | U53: =$G$55+(U52/10)*($H$55-$G$55) -> 1 | V53: =$G$55+(V52/10)*($H$55-$G$55) -> 1.4 | W53: 1.8 | X53: 2.2 | Y53: 2.6 | Z53: 3 | AA53: 3.4 | AB53: 3.8 | AC53: 4.2 | AD53: 4.6 | AE53: 5
G54: od | H54: do | T54: Úspora | U54: 3480 | V54: 4872 | W54: 6264 | X54: 7656 | Y54: 9048 | Z54: 10440 | AA54: 11832 | AB54: 13224 | AC54: 14616 | AD54: 16008 | AE54: 17400
A55: Závislost NPV / cena energie | F55: Cena | G55: 1 | H55: 5 | T55: NPV | U55: -66088.72994 | V55: -46979.66746 | W55: -27870.60498 | X55: -8761.542504 | Y55: 10347.51998 | Z55: 29456.58245 | AA55: 48565.64493 | AB55: 67674.70741 | AC55: 86783.76989 | AD55: 105892.8324 | AE55: 125001.8949
T56: RCF | U56: -4766.569031 | V56: -3388.351209 | W56: -2010.133387 | X56: -631.9155656 | Y56: 746.3022562 | Z56: 2124.520078 | AA56: 3502.7379 | AB56: 4880.955722 | AC56: 6259.173543 | AD56: 7637.391365 | AE56: 9015.609187
U74: 0 | V74: 1 | W74: 2 | X74: 3 | Y74: 4 | Z74: 5 | AA74: 6 | AB74: 7 | AC74: 8 | AD74: 9 | AE74: 10
G75: od | H75: do | T75: Rust | U75: =$G$76+(U74/10)*($H$76-$G$76) -> 0 | V75: =$G$76+(V74/10)*($H$76-$G$76) -> 1 | W75: 2 | X75: 3 | Y75: 4 | Z75: 5 | AA75: 6 | AB75: 7 | AC75: 8 | AD75: 9 | AE75: 10
A76: Závislost NPV / růst cen | F76: Růst | G76: 0 | H76: 10 | T76: NPV | U76: -52862.30748 | V76: -48848.74436 | W76: -44231.10368 | X76: -38916.71233 | Y76: -32796.97713 | Z76: -25744.35607 | AA76: -17608.70007 | AB76: -8212.823818 | AC76: 2652.870011 | AD76: 15236.93164 | AE76: 29834.84295
T77: RCF | U77: -4428.094733 | V77: -3801.676599 | W77: -3190.114399 | X77: -2594.447489 | Y77: -2015.648316 | Z77: -1454.608935 | AA77: -912.128132 | AB77: -388.8995423 | AC77: 114.4989126 | AD77: 597.6139336 | AE77: 1060.123817
U94: 0 | V94: 1 | W94: 2 | X94: 3 | Y94: 4 | Z94: 5 | AA94: 6 | AB94: 7 | AC94: 8 | AD94: 9 | AE94: 10
G95: od | H95: do | T95: Diskont | U95: =$G$76+(U94/10)*($H$76-$G$76) -> 0 | V95: 1 | W95: 2 | X95: 3 | Y95: 4 | Z95: 5 | AA95: 6 | AB95: 7 | AC95: 8 | AD95: 9 | AE95: 10
A96: Závislost NPV / diskont | F96: diskont | G96: 0 | H96: 10 | T96: NPV | U96: -25744.35607 | V96: -32796.97713 | W96: -38916.71233 | X96: -44231.10368 | Y96: -48848.74436 | Z96: -52862.30748 | AA96: -56351.05965 | AB96: -59382.95184 | AC96: -62016.36266 | AD96: -64301.55506 | AE96: -66281.89634
T97: RCF | U97: -1454.608935 | V97: -2015.648316 | W97: -2594.447489 | X97: -3190.114399 | Y97: -3801.676599 | Z97: -4428.094733 | AA97: -5068.276312 | AB97: -5721.089426 | AC97: -6385.37611 | AD97: -7059.965105 | AE97: -7743.683787
